Workbook

Sheet الرئيسية
D1: برنامج توزيع ملاحظة الثانوية
B12: تصميم وتنفيذ أ/ محمود عادل عيد
A16: https://www.facebook.com/M3id11
A18: 1066905051

Sheet البيانات الاساسية
G1: ح
B2: الامتحان | C2: امتحانات إتمام الشهادة الثانوية العامة | E2: م | F2: أسماء الملاحظين | J2: م | K2: أسماء المراقبين | O2: م | P2: العلوم | Q2: الرياضيات | R2: الأدبية | V2: اليوم والتاريخ | W2: الوقت | Y2: زمن الإجابة | Z2: المادة | AA2: الشعبة | AB2: الوقت | AD2: زمن الإجابة | AF2: م | AG2: عدد الطلاب في اللجنة | AH2: بداية ارقام الجلوس | AI2: نهاية ارقام الجلوس | AJ2: الشعبة
B3: المحافظة | C3: محافطة الدقهلية | E3: =IF(ROW()-2<=$C$9,ROW()-2,"") -> 1 | F3: ملاحظ 1 | G3: =IFERROR(IF(F3="","",IF(MATCH(F3,'كشف الملاحظة'!$I$18:$I$77,0)>=0,"")),"ح") -> ح | H3: =IF(G3=$G$1,E3,"") -> 1 | J3: =IF(ROW()-2<=$C$10,ROW()-2,"") -> 1 | K3: مراقب 1 | O3: 1 | P3: =$Z$3 -> التربية الدينية | Q3: =$Z$3 -> التربية الدينية | R3: =$Z$3 -> التربية الدينية | S3: ='جدول الامتحانات'!J3 -> اليوم الأول -الفترة الأولى | T3: =V4 -> 2022-06-21 | U3: 1 | V3: ='جدول الامتحانات'!A3 -> الثلاثاء | W3: ='جدول الامتحانات'!B3 -> 9 | X3: ='جدول الامتحانات'!C3 -> 10.3 | Y3: ='جدول الامتحانات'!D3 -> ساعة ونصف | Z3: ='جدول الامتحانات'!E3 -> التربية الدينية | AA3: ='جدول الامتحانات'!F3 -> العامة | AB3: ='جدول الامتحانات'!G3 -> 9 | AC3: ='جدول الامتحانات'!H3 -> 10.3 | AD3: ='جدول الامتحانات'!I3 -> ساعة ونصف | AE3: علمي علوم | AF3: =IF(ROW()-2<=$C$8,ROW()-2,"") -> 1 | AG3: =C12 -> 20 | AH3: =IF(AG3="","",C13) -> 100 | AI3: =IF(AG3="","",AG3+AH3) -> 120 | AJ3: علمي علوم | AK3: =AF3 -> 1
B4: الإدارة | C4: ادارة شربين التعليمية | E4: =IF(ROW()-2<=$C$9,ROW()-2,"") -> 2 | F4: ملاحظ 2 | G4: =IFERROR(IF(F4="","",IF(MATCH(F4,'كشف الملاحظة'!$I$18:$I$77,0)>=0,"")),"ح") -> ح | H4: =IF(G4=$G$1,E4,"") -> 2 | J4: =IF(ROW()-2<=$C$10,ROW()-2,"") -> 2 | K4: مراقب 2 | O4: 2 | P4: =$Z$4 -> التربية الوطنية | Q4: =$Z$4 -> التربية الوطنية | R4: =$Z$4 -> التربية الوطنية | S4: ='جدول الامتحانات'!J4 -> اليوم الأول -الفترة الثانية | T4: =V4 -> 2022-06-21 | U4: 2 | V4: ='جدول الامتحانات'!A4 -> 2022-06-21 | W4: ='جدول الامتحانات'!B4 -> 9 | X4: ='جدول الامتحانات'!C4 -> 12.3 | Y4: ='جدول الامتحانات'!D4 -> ساعة ونصف | Z4: ='جدول الامتحانات'!E4 -> التربية الوطنية | AA4: ='جدول الامتحانات'!F4 -> العامة | AB4: ='جدول الامتحانات'!G4 -> 9 | AC4: ='جدول الامتحانات'!H4 -> 12.3 | AD4: ='جدول الامتحانات'!I4 -> ساعة ونصف | AE4: علمي رياضيات | AF4: =IF(ROW()-2<=$C$8,ROW()-2,"") -> 2 | AG4: 20 | AH4: =IF(AG4="","",IF(AG4="","",AI3+$AF$3)) -> 121 | AI4: =IF(AH4="","",AH4+AG4-1) -> 140 | AJ4: علمي علوم | AK4: =AF4 -> 2
B5: رقم اللجنة | C5: لجنة رقم 500 | E5: 3 | F5: ملاحظ 3 | G5: =IFERROR(IF(F5="","",IF(MATCH(F5,'كشف الملاحظة'!$I$18:$I$77,0)>=0,"")),"ح") -> ح | H5: 3 | O5: 3 | P5: =$Z$5 -> الاقتصاد | Q5: =$Z$5 -> الاقتصاد | R5: =$Z$5 -> الاقتصاد | S5: ='جدول الامتحانات'!J5 -> اليوم الثاني -الفترة الأولى | T5: =V6 -> 2022-06-22 | U5: 3 | V5: ='جدول الامتحانات'!A5 -> الأربعاء | W5: ='جدول الامتحانات'!B5 -> 9 | X5: ='جدول الامتحانات'!C5 -> 10.3 | Y5: ='جدول الامتحانات'!D5 -> ساعة ونصف | Z5: ='جدول الامتحانات'!E5 -> الاقتصاد | AA5: ='جدول الامتحانات'!F5 -> العامة | AB5: ='جدول الامتحانات'!G5 -> 9 | AC5: ='جدول الامتحانات'!H5 -> 10.3 | AD5: ='جدول الامتحانات'!I5 -> ساعة ونصف | AE5: الأدبية | AF5: 3 | AG5: 20 | AH5: =IF(AG5="","",IF(AG5="","",AI4+$AF$3)) -> 141 | AI5: =IF(AH5="","",AH5+AG5-1) -> 160 | AJ5: علمي رياضيات | AK5: 3
B6: رئيس اللجنة | C6: أ/ محمود | E6: 4 | F6: ملاحظ 4 | G6: =IFERROR(IF(F6="","",IF(MATCH(F6,'كشف الملاحظة'!$I$18:$I$77,0)>=0,"")),"ح") -> ح | H6: 4 | O6: 4 | P6: =$Z$6 -> الإحصاء | Q6: =$Z$6 -> الإحصاء | R6: =$Z$6 -> الإحصاء | S6: ='جدول الامتحانات'!J6 -> اليوم الثاني -الفترة الثانية | T6: =V6 -> 2022-06-22 | U6: 4 | V6: ='جدول الامتحانات'!A6 -> 2022-06-22 | W6: ='جدول الامتحانات'!B6 -> 9 | X6: ='جدول الامتحانات'!C6 -> 12.3 | Y6: ='جدول الامتحانات'!D6 -> ساعة ونصف | Z6: ='جدول الامتحانات'!E6 -> الإحصاء | AA6: ='جدول الامتحانات'!F6 -> العامة | AB6: ='جدول الامتحانات'!G6 -> 9 | AC6: ='جدول الامتحانات'!H6 -> 12.3 | AD6: ='جدول الامتحانات'!I6 -> ساعة ونصف | AE6: علمي علوم | AF6: 4 | AG6: 20 | AH6: 161 | AI6: 180 | AJ6: علمي علوم | AK6: 4
B7: المراقب الأول | C7: أ/ محمود | E7: 5 | F7: ملاحظ 5 | G7: =IFERROR(IF(F7="","",IF(MATCH(F7,'كشف الملاحظة'!$I$18:$I$77,0)>=0,"")),"ح") -> ح | H7: 5 | O7: 5 | P7: =$Z$7 -> اللغة العربية | Q7: =$Z$7 -> اللغة العربية | R7: =$Z$7 -> اللغة العربية | S7: ='جدول الامتحانات'!J7:J8 -> اليوم الثالث | T7: =V8 -> 2022-06-26 | U7: 5 | V7: ='جدول الامتحانات'!A7 -> الأحد | W7: ='جدول الامتحانات'!B7:B8 -> 9 | X7: ='جدول الامتحانات'!C7:C8 -> 12 | Y7: ='جدول الامتحانات'!D7:D8 -> ثلاث ساعات | Z7: ='جدول الامتحانات'!E7:E8 -> اللغة العربية | AA7: ='جدول الامتحانات'!F7:F8 -> العامة | AB7: ='جدول الامتحانات'!G7:G8 -> 9 | AC7: ='جدول الامتحانات'!H7:H8 -> 12 | AD7: ='جدول الامتحانات'!I7:I8 -> ثلاث ساعات | AF7: 5 | AG7: 20 | AH7: 181 | AI7: 200 | AJ7: الأدبية | AK7: 5
B8: عدد اللجان | C8: 5 | E8: 6 | F8: ملاحظ 6 | G8: =IFERROR(IF(F8="","",IF(MATCH(F8,'كشف الملاحظة'!$I$18:$I$77,0)>=0,"")),"ح") -> ح | H8: 6 | O8: 6 | P8: =$Z$9 -> اللغة الأجنبية الثانية | Q8: =$Z$9 -> اللغة الأجنبية الثانية | R8: =$Z$9 -> اللغة الأجنبية الثانية | S8: ='جدول الامتحانات'!J9 -> اليوم الرابع | T8: =V10 -> 2022-06-28 | U8: 5 | V8: ='جدول الامتحانات'!A8 -> 2022-06-26
B9: عدد الملاحظين | C9: 10 | E9: 7 | F9: ملاحظ 7 | G9: =IFERROR(IF(F9="","",IF(MATCH(F9,'كشف الملاحظة'!$I$18:$I$77,0)>=0,"")),"ح") -> ح | H9: 7 | O9: 7 | P9: =$Z$11 -> الكيمياء | Q9: =$Z$11 -> الكيمياء | R9: =Z12 -> الجغرافيا | S9: ='جدول الامتحانات'!J11 -> اليوم الخامس | T9: =V12 -> 2022-07-03 | U9: 6 | V9: ='جدول الامتحانات'!A9 -> الثلاثاء | W9: ='جدول الامتحانات'!B9:B10 -> 9 | X9: ='جدول الامتحانات'!C9:C10 -> 11 | Y9: ='جدول الامتحانات'!D9:D10 -> ساعتان | Z9: ='جدول الامتحانات'!E9:E10 -> اللغة الأجنبية الثانية | AA9: ='جدول الامتحانات'!F9:F10 -> العامة | AB9: ='جدول الامتحانات'!G9:G10 -> 9 | AC9: ='جدول الامتحانات'!H9:H10 -> 11 | AD9: ='جدول الامتحانات'!I9:I10 -> ساعتان
B10: عدد المراقبين | C10: 2 | E10: 8 | F10: ملاحظ 8 | G10: =IFERROR(IF(F10="","",IF(MATCH(F10,'كشف الملاحظة'!$I$18:$I$77,0)>=0,"")),"ح") -> ح | H10: 8 | O10: 8 | Q10: =Z13 -> الرياضيات التطبيقية (الديناميكا) | S10: ='جدول الامتحانات'!J13 -> اليوم السادس | T10: =V14 -> 2022-07-05 | U10: 6 | V10: ='جدول الامتحانات'!A10 -> 2022-06-28
B11: العام الدراسي | C11: 2022/2021 | E11: 9 | F11: ملاحظ 9 | G11: =IFERROR(IF(F11="","",IF(MATCH(F11,'كشف الملاحظة'!$I$18:$I$77,0)>=0,"")),"ح") -> ح | H11: 9 | O11: 9 | P11: =$Z$15 -> اللغة الأجنبية الاولي | Q11: =$Z$15 -> اللغة الأجنبية الاولي | R11: =$Z$15 -> اللغة الأجنبية الاولي | S11: ='جدول الامتحانات'!J15 -> اليوم السابع | T11: =V16 -> 2022-07-07 | U11: 7 | V11: ='جدول الامتحانات'!A11 -> الأحد | W11: ='جدول الامتحانات'!B11 -> 9 | X11: ='جدول الامتحانات'!C11 -> 12 | Y11: ='جدول الامتحانات'!D11 -> ثلاث ساعات | Z11: ='جدول الامتحانات'!E11 -> الكيمياء | AA11: ='جدول الامتحانات'!F11 -> العلو م والرياضبات | AB11: ='جدول الامتحانات'!G11 -> 9 | AC11: ='جدول الامتحانات'!H11 -> 12 | AD11: ='جدول الامتحانات'!I11 -> ثلاث ساعات
B12: عدد الطلاب في اللجنة | C12: 20 | E12: 10 | F12: ملاحظ 10 | G12: =IFERROR(IF(F12="","",IF(MATCH(F12,'كشف الملاحظة'!$I$18:$I$77,0)>=0,"")),"ح") -> ح | H12: 10 | O12: 10 | P12: =$Z$17 -> الفيزياء | Q12: =$Z$17 -> الفيزياء | R12: =Z18 -> التاريخ | S12: ='جدول الامتحانات'!J17 -> اليوم الثامن | T12: =V18 -> 2022-07-14 | U12: 7 | V12: ='جدول الامتحانات'!A12 -> 2022-07-03 | W12: ='جدول الامتحانات'!B12 -> 9 | X12: ='جدول الامتحانات'!C12 -> 12 | Y12: ='جدول الامتحانات'!D12 -> ثلاث ساعات | Z12: ='جدول الامتحانات'!E12 -> الجغرافيا | AA12: ='جدول الامتحانات'!F12 -> الأدبية | AB12: ='جدول الامتحانات'!G12 -> 9 | AC12: ='جدول الامتحانات'!H12 -> 12 | AD12: ='جدول الامتحانات'!I12 -> ثلاث ساعات
B13: بداية ارقام الجلوس | C13: 100 | G13: =IFERROR(IF(F13="","",IF(MATCH(F13,'كشف الملاحظة'!$I$18:$I$77,0)>=0,"")),"ح") ->  | O13: 11 | P13: =Z19 -> الجيولوجيا والعلوم البيئية | Q13: =Z20 -> الرياضيات البحتة (تفاضل وتكامل) | R13: =Z21 -> علم النفس والاجتماع | S13: ='جدول الامتحانات'!J19 -> اليوم التاسع | T13: =V20 -> 2022-07-17 | U13: 8 | V13: ='جدول الامتحانات'!A13 -> الثلاثاء | W13: ='جدول الامتحانات'!B13:B14 -> 9 | X13: ='جدول الامتحانات'!C13:C14 -> 11 | Y13: ='جدول الامتحانات'!D13:D14 -> ساعتان | Z13: ='جدول الامتحانات'!E13:E14 -> الرياضيات التطبيقية (الديناميكا) | AA13: ='جدول الامتحانات'!F13:F14 -> الرياضيات | AB13: ='جدول الامتحانات'!G13:G14 -> 9 | AC13: ='جدول الامتحانات'!H13:H14 -> 11 | AD13: ='جدول الامتحانات'!I13:I14 -> ساعتان
G14: =IFERROR(IF(F14="","",IF(MATCH(F14,'كشف الملاحظة'!$I$18:$I$77,0)>=0,"")),"ح") ->  | O14: 12 | Q14: الرياضيات البحتة جبر وهندسة فراغية ) | S14: ='جدول الامتحانات'!J22 -> اليوم العاشر | T14: =V23 -> 2022-07-19 | U14: 8 | V14: ='جدول الامتحانات'!A14 -> 2022-07-05
G15: =IFERROR(IF(F15="","",IF(MATCH(F15,'كشف الملاحظة'!$I$18:$I$77,0)>=0,"")),"ح") ->  | O15: 13 | P15: =Z24 -> الاحياء | Q15: =Z25 -> الرياضيات التطبيقية (الاستاتيكا) | R15: =Z26 -> الفلسقة والمنطق | S15: ='جدول الامتحانات'!J24 -> اليوم الحادي عشر | T15: =V25 -> 2022-07-21 | U15: 9 | V15: ='جدول الامتحانات'!A15 -> الخميس | W15: ='جدول الامتحانات'!B15:B16 -> 9 | X15: ='جدول الامتحانات'!C15:C16 -> 12 | Y15: ='جدول الامتحانات'!D15:D16 -> ثلاث ساعات | Z15: ='جدول الامتحانات'!E15:E16 -> اللغة الأجنبية الاولي | AA15: ='جدول الامتحانات'!F15:F16 -> العامة | AB15: ='جدول الامتحانات'!G15:G16 -> 9 | AC15: ='جدول الامتحانات'!H15:H16 -> 12 | AD15: ='جدول الامتحانات'!I15:I16 -> ثلاث ساعات
G16: =IFERROR(IF(F16="","",IF(MATCH(F16,'كشف الملاحظة'!$I$18:$I$77,0)>=0,"")),"ح") ->  | U16: 9 | V16: ='جدول الامتحانات'!A16 -> 2022-07-07
G17: =IFERROR(IF(F17="","",IF(MATCH(F17,'كشف الملاحظة'!$I$18:$I$77,0)>=0,"")),"ح") ->  | U17: 10 | V17: ='جدول الامتحانات'!A17 -> الخميس | W17: ='جدول الامتحانات'!B17 -> 9 | X17: ='جدول الامتحانات'!C17 -> 12 | Y17: ='جدول الامتحانات'!D17 -> ثلاث ساعات | Z17: ='جدول الامتحانات'!E17 -> الفيزياء | AA17: ='جدول الامتحانات'!F17 -> العلوم والرياضيات | AB17: ='جدول الامتحانات'!G17 -> 9 | AC17: ='جدول الامتحانات'!H17 -> 12 | AD17: ='جدول الامتحانات'!I17 -> ثلاث ساعات
G18: =IFERROR(IF(F18="","",IF(MATCH(F18,'كشف الملاحظة'!$I$18:$I$77,0)>=0,"")),"ح") ->  | U18: 10 | V18: ='جدول الامتحانات'!A18 -> 2022-07-14 | W18: ='جدول الامتحانات'!B18 -> 9 | X18: ='جدول الامتحانات'!C18 -> 12 | Y18: ='جدول الامتحانات'!D18 -> ثلاث ساعات | Z18: ='جدول الامتحانات'!E18 -> التاريخ | AA18: ='جدول الامتحانات'!F18 -> الأدبية | AB18: ='جدول الامتحانات'!G18 -> 9 | AC18: ='جدول الامتحانات'!H18 -> 12 | AD18: ='جدول الامتحانات'!I18 -> ثلاث ساعات
G19: =IFERROR(IF(F19="","",IF(MATCH(F19,'كشف الملاحظة'!$I$18:$I$77,0)>=0,"")),"ح") ->  | U19: 11 | V19: ='جدول الامتحانات'!A19 -> الأحد | W19: ='جدول الامتحانات'!B19 -> 9 | X19: ='جدول الامتحانات'!C19 -> 12 | Y19: ='جدول الامتحانات'!D19 -> ثلاث ساعات | Z19: ='جدول الامتحانات'!E19 -> الجيولوجيا والعلوم البيئية | AA19: ='جدول الامتحانات'!F19 -> العلوم | AB19: ='جدول الامتحانات'!G19 -> 9 | AC19: ='جدول الامتحانات'!H19 -> 12 | AD19: ='جدول الامتحانات'!I19 -> ثلاث ساعات
G20: =IFERROR(IF(F20="","",IF(MATCH(F20,'كشف الملاحظة'!$I$18:$I$77,0)>=0,"")),"ح") ->  | U20: 11 | V20: ='جدول الامتحانات'!A20 -> 2022-07-17 | W20: ='جدول الامتحانات'!B20 -> 9 | X20: ='جدول الامتحانات'!C20 -> 11 | Y20: ='جدول الامتحانات'!D20 -> ساعتان | Z20: ='جدول الامتحانات'!E20 -> الرياضيات البحتة (تفاضل وتكامل) | AA20: ='جدول الامتحانات'!F20 -> الرياضيات | AB20: ='جدول الامتحانات'!G20 -> 9 | AC20: ='جدول الامتحانات'!H20 -> 11 | AD20: ='جدول الامتحانات'!I20 -> ساعتان
G21: =IFERROR(IF(F21="","",IF(MATCH(F21,'كشف الملاحظة'!$I$18:$I$77,0)>=0,"")),"ح") ->  | U21: 11 | W21: ='جدول الامتحانات'!B21 -> 9 | X21: ='جدول الامتحانات'!C21 -> 12 | Y21: ='جدول الامتحانات'!D21 -> ثلاث ساعات | Z21: ='جدول الامتحانات'!E21 -> علم النفس والاجتماع | AA21: ='جدول الامتحانات'!F21 -> الأدبية | AB21: ='جدول الامتحانات'!G21 -> 9 | AC21: ='جدول الامتحانات'!H21 -> 12 | AD21: ='جدول الامتحانات'!I21 -> ثلاث ساعات
G22: =IFERROR(IF(F22="","",IF(MATCH(F22,'كشف الملاحظة'!$I$18:$I$77,0)>=0,"")),"ح") ->  | U22: 12 | V22: ='جدول الامتحانات'!A22 -> الثلاثاء | W22: ='جدول الامتحانات'!B22:B23 -> 9 | X22: ='جدول الامتحانات'!C22:C23 -> 11 | Y22: ='جدول الامتحانات'!D22:D23 -> ساعتان | Z22: ='جدول الامتحانات'!E22:E23 -> الرياضيات البحتة جبر وهندسة فراغية ) | AA22: ='جدول الامتحانات'!F22:F23 -> الرياضيات | AB22: ='جدول الامتحانات'!G22:G23 -> 9 | AC22: ='جدول الامتحانات'!H22:H23 -> 11 | AD22: ='جدول الامتحانات'!I22:I23 -> ساعتان
G23: =IFERROR(IF(F23="","",IF(MATCH(F23,'كشف الملاحظة'!$I$18:$I$77,0)>=0,"")),"ح") ->  | U23: 12 | V23: ='جدول الامتحانات'!A23 -> 2022-07-19
G24: =IFERROR(IF(F24="","",IF(MATCH(F24,'كشف الملاحظة'!$I$18:$I$77,0)>=0,"")),"ح") ->  | U24: 13 | V24: ='جدول الامتحانات'!A24 -> الخميس | W24: ='جدول الامتحانات'!B24 -> 9 | X24: ='جدول الامتحانات'!C24 -> 12 | Y24: ='جدول الامتحانات'!D24 -> ثلاث ساعات | Z24: ='جدول الامتحانات'!E24 -> الاحياء | AA24: ='جدول الامتحانات'!F24 -> العلوم | AB24: ='جدول الامتحانات'!G24 -> 9 | AC24: ='جدول الامتحانات'!H24 -> 12 | AD24: ='جدول الامتحانات'!I24 -> ثلاث ساعات
G25: =IFERROR(IF(F25="","",IF(MATCH(F25,'كشف الملاحظة'!$I$18:$I$77,0)>=0,"")),"ح") ->  | U25: 13 | V25: ='جدول الامتحانات'!A25:A26 -> 2022-07-21 | W25: ='جدول الامتحانات'!B25 -> 9 | X25: ='جدول الامتحانات'!C25 -> 11 | Y25: ='جدول الامتحانات'!D25 -> ساعتان | Z25: ='جدول الامتحانات'!E25 -> الرياضيات التطبيقية (الاستاتيكا) | AA25: ='جدول الامتحانات'!F25 -> الرياضيات | AB25: ='جدول الامتحانات'!G25 -> 9 | AC25: ='جدول الامتحانات'!H25 -> 11 | AD25: ='جدول الامتحانات'!I25 -> ساعتان
G26: =IFERROR(IF(F26="","",IF(MATCH(F26,'كشف الملاحظة'!$I$18:$I$77,0)>=0,"")),"ح") ->  | U26: 13 | W26: ='جدول الامتحانات'!B26 -> 9 | X26: ='جدول الامتحانات'!C26 -> 12 | Y26: ='جدول الامتحانات'!D26 -> ثلاث ساعات | Z26: ='جدول الامتحانات'!E26 -> الفلسقة والمنطق | AA26: ='جدول الامتحانات'!F26 -> الأدبية | AB26: ='جدول الامتحانات'!G26 -> 9 | AC26: ='جدول الامتحانات'!H26 -> 12 | AD26: ='جدول الامتحانات'!I26 -> ثلاث ساعات
G27: =IFERROR(IF(F27="","",IF(MATCH(F27,'كشف الملاحظة'!$I$18:$I$77,0)>=0,"")),"ح") -> 
G28: =IFERROR(IF(F28="","",IF(MATCH(F28,'كشف الملاحظة'!$I$18:$I$77,0)>=0,"")),"ح") -> 
G29: =IFERROR(IF(F29="","",IF(MATCH(F29,'كشف الملاحظة'!$I$18:$I$77,0)>=0,"")),"ح") -> 
G30: =IFERROR(IF(F30="","",IF(MATCH(F30,'كشف الملاحظة'!$I$18:$I$77,0)>=0,"")),"ح") -> 
G31: =IFERROR(IF(F31="","",IF(MATCH(F31,'كشف الملاحظة'!$I$18:$I$77,0)>=0,"")),"ح") -> 
G32: =IFERROR(IF(F32="","",IF(MATCH(F32,'كشف الملاحظة'!$I$18:$I$77,0)>=0,"")),"ح") -> 
G33: =IFERROR(IF(F33="","",IF(MATCH(F33,'كشف الملاحظة'!$I$18:$I$77,0)>=0,"")),"ح") -> 
G34: =IFERROR(IF(F34="","",IF(MATCH(F34,'كشف الملاحظة'!$I$18:$I$77,0)>=0,"")),"ح") -> 
G35: =IFERROR(IF(F35="","",IF(MATCH(F35,'كشف الملاحظة'!$I$18:$I$77,0)>=0,"")),"ح") -> 
G36: =IFERROR(IF(F36="","",IF(MATCH(F36,'كشف الملاحظة'!$I$18:$I$77,0)>=0,"")),"ح") -> 
G37: =IFERROR(IF(F37="","",IF(MATCH(F37,'كشف الملاحظة'!$I$18:$I$77,0)>=0,"")),"ح") -> 
G38: =IFERROR(IF(F38="","",IF(MATCH(F38,'كشف الملاحظة'!$I$18:$I$77,0)>=0,"")),"ح") -> 
G39: =IFERROR(IF(F39="","",IF(MATCH(F39,'كشف الملاحظة'!$I$18:$I$77,0)>=0,"")),"ح") -> 
G40: =IFERROR(IF(F40="","",IF(MATCH(F40,'كشف الملاحظة'!$I$18:$I$77,0)>=0,"")),"ح") -> 
G41: =IFERROR(IF(F41="","",IF(MATCH(F41,'كشف الملاحظة'!$I$18:$I$77,0)>=0,"")),"ح") -> 
G42: =IFERROR(IF(F42="","",IF(MATCH(F42,'كشف الملاحظة'!$I$18:$I$77,0)>=0,"")),"ح") -> 
G43: =IFERROR(IF(F43="","",IF(MATCH(F43,'كشف الملاحظة'!$I$18:$I$77,0)>=0,"")),"ح") -> 
G44: =IFERROR(IF(F44="","",IF(MATCH(F44,'كشف الملاحظة'!$I$18:$I$77,0)>=0,"")),"ح") -> 
G45: =IFERROR(IF(F45="","",IF(MATCH(F45,'كشف الملاحظة'!$I$18:$I$77,0)>=0,"")),"ح") -> 
G46: =IFERROR(IF(F46="","",IF(MATCH(F46,'كشف الملاحظة'!$I$18:$I$77,0)>=0,"")),"ح") -> 
G47: =IFERROR(IF(F47="","",IF(MATCH(F47,'كشف الملاحظة'!$I$18:$I$77,0)>=0,"")),"ح") -> 
G48: =IFERROR(IF(F48="","",IF(MATCH(F48,'كشف الملاحظة'!$I$18:$I$77,0)>=0,"")),"ح") -> 
G49: =IFERROR(IF(F49="","",IF(MATCH(F49,'كشف الملاحظة'!$I$18:$I$77,0)>=0,"")),"ح") -> 
G50: =IFERROR(IF(F50="","",IF(MATCH(F50,'كشف الملاحظة'!$I$18:$I$77,0)>=0,"")),"ح") -> 
G51: =IFERROR(IF(F51="","",IF(MATCH(F51,'كشف الملاحظة'!$I$18:$I$77,0)>=0,"")),"ح") -> 
G52: =IFERROR(IF(F52="","",IF(MATCH(F52,'كشف الملاحظة'!$I$18:$I$77,0)>=0,"")),"ح") -> 
G53: =IFERROR(IF(F53="","",IF(MATCH(F53,'كشف الملاحظة'!$I$18:$I$77,0)>=0,"")),"ح") -> 
G54: =IFERROR(IF(F54="","",IF(MATCH(F54,'كشف الملاحظة'!$I$18:$I$77,0)>=0,"")),"ح") -> 
G55: =IFERROR(IF(F55="","",IF(MATCH(F55,'كشف الملاحظة'!$I$18:$I$77,0)>=0,"")),"ح") -> 
G56: =IFERROR(IF(F56="","",IF(MATCH(F56,'كشف الملاحظة'!$I$18:$I$77,0)>=0,"")),"ح") -> 
G57: =IFERROR(IF(F57="","",IF(MATCH(F57,'كشف الملاحظة'!$I$18:$I$77,0)>=0,"")),"ح") -> 
G58: =IFERROR(IF(F58="","",IF(MATCH(F58,'كشف الملاحظة'!$I$18:$I$77,0)>=0,"")),"ح") -> 
G59: =IFERROR(IF(F59="","",IF(MATCH(F59,'كشف الملاحظة'!$I$18:$I$77,0)>=0,"")),"ح") -> 
G60: =IFERROR(IF(F60="","",IF(MATCH(F60,'كشف الملاحظة'!$I$18:$I$77,0)>=0,"")),"ح") -> 
G61: =IFERROR(IF(F61="","",IF(MATCH(F61,'كشف الملاحظة'!$I$18:$I$77,0)>=0,"")),"ح") -> 
G62: =IFERROR(IF(F62="","",IF(MATCH(F62,'كشف الملاحظة'!$I$18:$I$77,0)>=0,"")),"ح") -> 
G63: =IFERROR(IF(F63="","",IF(MATCH(F63,'كشف الملاحظة'!$I$18:$I$77,0)>=0,"")),"ح") -> 
G64: =IFERROR(IF(F64="","",IF(MATCH(F64,'كشف الملاحظة'!$I$18:$I$77,0)>=0,"")),"ح") -> 
G65: =IFERROR(IF(F65="","",IF(MATCH(F65,'كشف الملاحظة'!$I$18:$I$77,0)>=0,"")),"ح") -> 
G66: =IFERROR(IF(F66="","",IF(MATCH(F66,'كشف الملاحظة'!$I$18:$I$77,0)>=0,"")),"ح") -> 
G67: =IFERROR(IF(F67="","",IF(MATCH(F67,'كشف الملاحظة'!$I$18:$I$77,0)>=0,"")),"ح") -> 
E68: =IF(ROW()-2<=$C$9,ROW()-2,"") ->  | G68: =IFERROR(IF(F68="","",IF(MATCH(F68,'كشف الملاحظة'!$I$18:$I$77,0)>=0,"")),"ح") ->  | H68: =IF(G68=$G$1,E68,"") -> 
G69: =IFERROR(IF(F69="","",IF(MATCH(F69,'كشف الملاحظة'!$I$18:$I$77,0)>=0,"")),"ح") -> 
G70: =IFERROR(IF(F70="","",IF(MATCH(F70,'كشف الملاحظة'!$I$18:$I$77,0)>=0,"")),"ح") -> 
G71: =IFERROR(IF(F71="","",IF(MATCH(F71,'كشف الملاحظة'!$I$18:$I$77,0)>=0,"")),"ح") -> 
G72: =IFERROR(IF(F72="","",IF(MATCH(F72,'كشف الملاحظة'!$I$18:$I$77,0)>=0,"")),"ح") -> 
G73: =IFERROR(IF(F73="","",IF(MATCH(F73,'كشف الملاحظة'!$I$18:$I$77,0)>=0,"")),"ح") -> 
G74: =IFERROR(IF(F74="","",IF(MATCH(F74,'كشف الملاحظة'!$I$18:$I$77,0)>=0,"")),"ح") -> 
G75: =IFERROR(IF(F75="","",IF(MATCH(F75,'كشف الملاحظة'!$I$18:$I$77,0)>=0,"")),"ح") -> 
G76: =IFERROR(IF(F76="","",IF(MATCH(F76,'كشف الملاحظة'!$I$18:$I$77,0)>=0,"")),"ح") -> 
G77: =IFERROR(IF(F77="","",IF(MATCH(F77,'كشف الملاحظة'!$I$18:$I$77,0)>=0,"")),"ح") -> 
G78: =IFERROR(IF(F78="","",IF(MATCH(F78,'كشف الملاحظة'!$I$18:$I$77,0)>=0,"")),"ح") -> 
G79: =IFERROR(IF(F79="","",IF(MATCH(F79,'كشف الملاحظة'!$I$18:$I$77,0)>=0,"")),"ح") -> 
G80: =IFERROR(IF(F80="","",IF(MATCH(F80,'كشف الملاحظة'!$I$18:$I$77,0)>=0,"")),"ح") -> 
G81: =IFERROR(IF(F81="","",IF(MATCH(F81,'كشف الملاحظة'!$I$18:$I$77,0)>=0,"")),"ح") -> 
G82: =IFERROR(IF(F82="","",IF(MATCH(F82,'كشف الملاحظة'!$I$18:$I$77,0)>=0,"")),"ح") -> 
G83: =IFERROR(IF(F83="","",IF(MATCH(F83,'كشف الملاحظة'!$I$18:$I$77,0)>=0,"")),"ح") -> 
G84: =IFERROR(IF(F84="","",IF(MATCH(F84,'كشف الملاحظة'!$I$18:$I$77,0)>=0,"")),"ح") -> 
G85: =IFERROR(IF(F85="","",IF(MATCH(F85,'كشف الملاحظة'!$I$18:$I$77,0)>=0,"")),"ح") -> 
G86: =IFERROR(IF(F86="","",IF(MATCH(F86,'كشف الملاحظة'!$I$18:$I$77,0)>=0,"")),"ح") -> 
G87: =IFERROR(IF(F87="","",IF(MATCH(F87,'كشف الملاحظة'!$I$18:$I$77,0)>=0,"")),"ح") -> 
G88: =IFERROR(IF(F88="","",IF(MATCH(F88,'كشف الملاحظة'!$I$18:$I$77,0)>=0,"")),"ح") -> 
G89: =IFERROR(IF(F89="","",IF(MATCH(F89,'كشف الملاحظة'!$I$18:$I$77,0)>=0,"")),"ح") -> 
G90: =IFERROR(IF(F90="","",IF(MATCH(F90,'كشف الملاحظة'!$I$18:$I$77,0)>=0,"")),"ح") -> 
G91: =IFERROR(IF(F91="","",IF(MATCH(F91,'كشف الملاحظة'!$I$18:$I$77,0)>=0,"")),"ح") -> 
G92: =IFERROR(IF(F92="","",IF(MATCH(F92,'كشف الملاحظة'!$I$18:$I$77,0)>=0,"")),"ح") -> 
G93: =IFERROR(IF(F93="","",IF(MATCH(F93,'كشف الملاحظة'!$I$18:$I$77,0)>=0,"")),"ح") -> 
G94: =IFERROR(IF(F94="","",IF(MATCH(F94,'كشف الملاحظة'!$I$18:$I$77,0)>=0,"")),"ح") -> 
G95: =IFERROR(IF(F95="","",IF(MATCH(F95,'كشف الملاحظة'!$I$18:$I$77,0)>=0,"")),"ح") -> 
G96: =IFERROR(IF(F96="","",IF(MATCH(F96,'كشف الملاحظة'!$I$18:$I$77,0)>=0,"")),"ح") -> 
G97: =IFERROR(IF(F97="","",IF(MATCH(F97,'كشف الملاحظة'!$I$18:$I$77,0)>=0,"")),"ح") -> 
G98: =IFERROR(IF(F98="","",IF(MATCH(F98,'كشف الملاحظة'!$I$18:$I$77,0)>=0,"")),"ح") -> 
G99: =IFERROR(IF(F99="","",IF(MATCH(F99,'كشف الملاحظة'!$I$18:$I$77,0)>=0,"")),"ح") -> 
G100: =IFERROR(IF(F100="","",IF(MATCH(F100,'كشف الملاحظة'!$I$18:$I$77,0)>=0,"")),"ح") -> 
G101: =IFERROR(IF(F101="","",IF(MATCH(F101,'كشف الملاحظة'!$I$18:$I$77,0)>=0,"")),"ح") -> 
G102: =IFERROR(IF(F102="","",IF(MATCH(F102,'كشف الملاحظة'!$I$18:$I$77,0)>=0,"")),"ح") -> 
G103: =IFERROR(IF(F103="","",IF(MATCH(F103,'كشف الملاحظة'!$I$18:$I$77,0)>=0,"")),"ح") -> 
G104: =IFERROR(IF(F104="","",IF(MATCH(F104,'كشف الملاحظة'!$I$18:$I$77,0)>=0,"")),"ح") -> 
G105: =IFERROR(IF(F105="","",IF(MATCH(F105,'كشف الملاحظة'!$I$18:$I$77,0)>=0,"")),"ح") -> 
G106: =IFERROR(IF(F106="","",IF(MATCH(F106,'كشف الملاحظة'!$I$18:$I$77,0)>=0,"")),"ح") -> 
G107: =IFERROR(IF(F107="","",IF(MATCH(F107,'كشف الملاحظة'!$I$18:$I$77,0)>=0,"")),"ح") -> 
G108: =IFERROR(IF(F108="","",IF(MATCH(F108,'كشف الملاحظة'!$I$18:$I$77,0)>=0,"")),"ح") -> 
G109: =IFERROR(IF(F109="","",IF(MATCH(F109,'كشف الملاحظة'!$I$18:$I$77,0)>=0,"")),"ح") -> 
G110: =IFERROR(IF(F110="","",IF(MATCH(F110,'كشف الملاحظة'!$I$18:$I$77,0)>=0,"")),"ح") -> 
G111: =IFERROR(IF(F111="","",IF(MATCH(F111,'كشف الملاحظة'!$I$18:$I$77,0)>=0,"")),"ح") -> 
G112: =IFERROR(IF(F112="","",IF(MATCH(F112,'كشف الملاحظة'!$I$18:$I$77,0)>=0,"")),"ح") -> 
G113: =IFERROR(IF(F113="","",IF(MATCH(F113,'كشف الملاحظة'!$I$18:$I$77,0)>=0,"")),"ح") -> 
G114: =IFERROR(IF(F114="","",IF(MATCH(F114,'كشف الملاحظة'!$I$18:$I$77,0)>=0,"")),"ح") -> 
G115: =IFERROR(IF(F115="","",IF(MATCH(F115,'كشف الملاحظة'!$I$18:$I$77,0)>=0,"")),"ح") -> 
G116: =IFERROR(IF(F116="","",IF(MATCH(F116,'كشف الملاحظة'!$I$18:$I$77,0)>=0,"")),"ح") -> 
G117: =IFERROR(IF(F117="","",IF(MATCH(F117,'كشف الملاحظة'!$I$18:$I$77,0)>=0,"")),"ح") -> 
G118: =IFERROR(IF(F118="","",IF(MATCH(F118,'كشف الملاحظة'!$I$18:$I$77,0)>=0,"")),"ح") -> 
G119: =IFERROR(IF(F119="","",IF(MATCH(F119,'كشف الملاحظة'!$I$18:$I$77,0)>=0,"")),"ح") -> 
G120: =IFERROR(IF(F120="","",IF(MATCH(F120,'كشف الملاحظة'!$I$18:$I$77,0)>=0,"")),"ح") -> 
G121: =IFERROR(IF(F121="","",IF(MATCH(F121,'كشف الملاحظة'!$I$18:$I$77,0)>=0,"")),"ح") -> 
G122: =IFERROR(IF(F122="","",IF(MATCH(F122,'كشف الملاحظة'!$I$18:$I$77,0)>=0,"")),"ح") -> 
G123: =IFERROR(IF(F123="","",IF(MATCH(F123,'كشف الملاحظة'!$I$18:$I$77,0)>=0,"")),"ح") -> 
G124: =IFERROR(IF(F124="","",IF(MATCH(F124,'كشف الملاحظة'!$I$18:$I$77,0)>=0,"")),"ح") -> 
G125: =IFERROR(IF(F125="","",IF(MATCH(F125,'كشف الملاحظة'!$I$18:$I$77,0)>=0,"")),"ح") -> 
G126: =IFERROR(IF(F126="","",IF(MATCH(F126,'كشف الملاحظة'!$I$18:$I$77,0)>=0,"")),"ح") -> 
G127: =IFERROR(IF(F127="","",IF(MATCH(F127,'كشف الملاحظة'!$I$18:$I$77,0)>=0,"")),"ح") -> 
G128: =IFERROR(IF(F128="","",IF(MATCH(F128,'كشف الملاحظة'!$I$18:$I$77,0)>=0,"")),"ح") -> 
G129: =IFERROR(IF(F129="","",IF(MATCH(F129,'كشف الملاحظة'!$I$18:$I$77,0)>=0,"")),"ح") -> 
G130: =IFERROR(IF(F130="","",IF(MATCH(F130,'كشف الملاحظة'!$I$18:$I$77,0)>=0,"")),"ح") -> 
G131: =IFERROR(IF(F131="","",IF(MATCH(F131,'كشف الملاحظة'!$I$18:$I$77,0)>=0,"")),"ح") -> 
E132: =IF(ROW()-2<=$C$9,ROW()-2,"") ->  | G132: =IFERROR(IF(F132="","",IF(MATCH(F132,'كشف الملاحظة'!$I$18:$I$77,0)>=0,"")),"ح") ->  | H132: =IF(G132=$G$1,E132,"") -> 
G133: =IFERROR(IF(F133="","",IF(MATCH(F133,'كشف الملاحظة'!$I$18:$I$77,0)>=0,"")),"ح") -> 
G134: =IFERROR(IF(F134="","",IF(MATCH(F134,'كشف الملاحظة'!$I$18:$I$77,0)>=0,"")),"ح") -> 
G135: =IFERROR(IF(F135="","",IF(MATCH(F135,'كشف الملاحظة'!$I$18:$I$77,0)>=0,"")),"ح") -> 
G136: =IFERROR(IF(F136="","",IF(MATCH(F136,'كشف الملاحظة'!$I$18:$I$77,0)>=0,"")),"ح") -> 
G137: =IFERROR(IF(F137="","",IF(MATCH(F137,'كشف الملاحظة'!$I$18:$I$77,0)>=0,"")),"ح") -> 
G138: =IFERROR(IF(F138="","",IF(MATCH(F138,'كشف الملاحظة'!$I$18:$I$77,0)>=0,"")),"ح") -> 
G139: =IFERROR(IF(F139="","",IF(MATCH(F139,'كشف الملاحظة'!$I$18:$I$77,0)>=0,"")),"ح") -> 
G140: =IFERROR(IF(F140="","",IF(MATCH(F140,'كشف الملاحظة'!$I$18:$I$77,0)>=0,"")),"ح") -> 
G141: =IFERROR(IF(F141="","",IF(MATCH(F141,'كشف الملاحظة'!$I$18:$I$77,0)>=0,"")),"ح") -> 
G142: =IFERROR(IF(F142="","",IF(MATCH(F142,'كشف الملاحظة'!$I$18:$I$77,0)>=0,"")),"ح") -> 
G143: =IFERROR(IF(F143="","",IF(MATCH(F143,'كشف الملاحظة'!$I$18:$I$77,0)>=0,"")),"ح") -> 
G144: =IFERROR(IF(F144="","",IF(MATCH(F144,'كشف الملاحظة'!$I$18:$I$77,0)>=0,"")),"ح") -> 
G145: =IFERROR(IF(F145="","",IF(MATCH(F145,'كشف الملاحظة'!$I$18:$I$77,0)>=0,"")),"ح") -> 
G146: =IFERROR(IF(F146="","",IF(MATCH(F146,'كشف الملاحظة'!$I$18:$I$77,0)>=0,"")),"ح") -> 
G147: =IFERROR(IF(F147="","",IF(MATCH(F147,'كشف الملاحظة'!$I$18:$I$77,0)>=0,"")),"ح") -> 
G148: =IFERROR(IF(F148="","",IF(MATCH(F148,'كشف الملاحظة'!$I$18:$I$77,0)>=0,"")),"ح") -> 
G149: =IFERROR(IF(F149="","",IF(MATCH(F149,'كشف الملاحظة'!$I$18:$I$77,0)>=0,"")),"ح") -> 
G150: =IFERROR(IF(F150="","",IF(MATCH(F150,'كشف الملاحظة'!$I$18:$I$77,0)>=0,"")),"ح") -> 
G151: =IFERROR(IF(F151="","",IF(MATCH(F151,'كشف الملاحظة'!$I$18:$I$77,0)>=0,"")),"ح") -> 
G152: =IFERROR(IF(F152="","",IF(MATCH(F152,'كشف الملاحظة'!$I$18:$I$77,0)>=0,"")),"ح") -> 
G153: =IFERROR(IF(F153="","",IF(MATCH(F153,'كشف الملاحظة'!$I$18:$I$77,0)>=0,"")),"ح") -> 
G154: =IFERROR(IF(F154="","",IF(MATCH(F154,'كشف الملاحظة'!$I$18:$I$77,0)>=0,"")),"ح") -> 
G155: =IFERROR(IF(F155="","",IF(MATCH(F155,'كشف الملاحظة'!$I$18:$I$77,0)>=0,"")),"ح") -> 
G156: =IFERROR(IF(F156="","",IF(MATCH(F156,'كشف الملاحظة'!$I$18:$I$77,0)>=0,"")),"ح") -> 
G157: =IFERROR(IF(F157="","",IF(MATCH(F157,'كشف الملاحظة'!$I$18:$I$77,0)>=0,"")),"ح") -> 
G158: =IFERROR(IF(F158="","",IF(MATCH(F158,'كشف الملاحظة'!$I$18:$I$77,0)>=0,"")),"ح") -> 
G159: =IFERROR(IF(F159="","",IF(MATCH(F159,'كشف الملاحظة'!$I$18:$I$77,0)>=0,"")),"ح") -> 
G160: =IFERROR(IF(F160="","",IF(MATCH(F160,'كشف الملاحظة'!$I$18:$I$77,0)>=0,"")),"ح") -> 
G161: =IFERROR(IF(F161="","",IF(MATCH(F161,'كشف الملاحظة'!$I$18:$I$77,0)>=0,"")),"ح") -> 
G162: =IFERROR(IF(F162="","",IF(MATCH(F162,'كشف الملاحظة'!$I$18:$I$77,0)>=0,"")),"ح") -> 
G163: =IFERROR(IF(F163="","",IF(MATCH(F163,'كشف الملاحظة'!$I$18:$I$77,0)>=0,"")),"ح") -> 
G164: =IFERROR(IF(F164="","",IF(MATCH(F164,'كشف الملاحظة'!$I$18:$I$77,0)>=0,"")),"ح") -> 
G165: =IFERROR(IF(F165="","",IF(MATCH(F165,'كشف الملاحظة'!$I$18:$I$77,0)>=0,"")),"ح") -> 
G166: =IFERROR(IF(F166="","",IF(MATCH(F166,'كشف الملاحظة'!$I$18:$I$77,0)>=0,"")),"ح") -> 
G167: =IFERROR(IF(F167="","",IF(MATCH(F167,'كشف الملاحظة'!$I$18:$I$77,0)>=0,"")),"ح") -> 
G168: =IFERROR(IF(F168="","",IF(MATCH(F168,'كشف الملاحظة'!$I$18:$I$77,0)>=0,"")),"ح") -> 
G169: =IFERROR(IF(F169="","",IF(MATCH(F169,'كشف الملاحظة'!$I$18:$I$77,0)>=0,"")),"ح") -> 
G170: =IFERROR(IF(F170="","",IF(MATCH(F170,'كشف الملاحظة'!$I$18:$I$77,0)>=0,"")),"ح") -> 
G171: =IFERROR(IF(F171="","",IF(MATCH(F171,'كشف الملاحظة'!$I$18:$I$77,0)>=0,"")),"ح") -> 
G172: =IFERROR(IF(F172="","",IF(MATCH(F172,'كشف الملاحظة'!$I$18:$I$77,0)>=0,"")),"ح") -> 
G173: =IFERROR(IF(F173="","",IF(MATCH(F173,'كشف الملاحظة'!$I$18:$I$77,0)>=0,"")),"ح") -> 
G174: =IFERROR(IF(F174="","",IF(MATCH(F174,'كشف الملاحظة'!$I$18:$I$77,0)>=0,"")),"ح") -> 
G175: =IFERROR(IF(F175="","",IF(MATCH(F175,'كشف الملاحظة'!$I$18:$I$77,0)>=0,"")),"ح") -> 
G176: =IFERROR(IF(F176="","",IF(MATCH(F176,'كشف الملاحظة'!$I$18:$I$77,0)>=0,"")),"ح") -> 
G177: =IFERROR(IF(F177="","",IF(MATCH(F177,'كشف الملاحظة'!$I$18:$I$77,0)>=0,"")),"ح") -> 
G178: =IFERROR(IF(F178="","",IF(MATCH(F178,'كشف الملاحظة'!$I$18:$I$77,0)>=0,"")),"ح") -> 
G179: =IFERROR(IF(F179="","",IF(MATCH(F179,'كشف الملاحظة'!$I$18:$I$77,0)>=0,"")),"ح") -> 
G180: =IFERROR(IF(F180="","",IF(MATCH(F180,'كشف الملاحظة'!$I$18:$I$77,0)>=0,"")),"ح") -> 
G181: =IFERROR(IF(F181="","",IF(MATCH(F181,'كشف الملاحظة'!$I$18:$I$77,0)>=0,"")),"ح") -> 
G182: =IFERROR(IF(F182="","",IF(MATCH(F182,'كشف الملاحظة'!$I$18:$I$77,0)>=0,"")),"ح") -> 
G183: =IFERROR(IF(F183="","",IF(MATCH(F183,'كشف الملاحظة'!$I$18:$I$77,0)>=0,"")),"ح") -> 
G184: =IFERROR(IF(F184="","",IF(MATCH(F184,'كشف الملاحظة'!$I$18:$I$77,0)>=0,"")),"ح") -> 
G185: =IFERROR(IF(F185="","",IF(MATCH(F185,'كشف الملاحظة'!$I$18:$I$77,0)>=0,"")),"ح") -> 
G186: =IFERROR(IF(F186="","",IF(MATCH(F186,'كشف الملاحظة'!$I$18:$I$77,0)>=0,"")),"ح") -> 
G187: =IFERROR(IF(F187="","",IF(MATCH(F187,'كشف الملاحظة'!$I$18:$I$77,0)>=0,"")),"ح") -> 
G188: =IFERROR(IF(F188="","",IF(MATCH(F188,'كشف الملاحظة'!$I$18:$I$77,0)>=0,"")),"ح") -> 
G189: =IFERROR(IF(F189="","",IF(MATCH(F189,'كشف الملاحظة'!$I$18:$I$77,0)>=0,"")),"ح") -> 
G190: =IFERROR(IF(F190="","",IF(MATCH(F190,'كشف الملاحظة'!$I$18:$I$77,0)>=0,"")),"ح") -> 
G191: =IFERROR(IF(F191="","",IF(MATCH(F191,'كشف الملاحظة'!$I$18:$I$77,0)>=0,"")),"ح") -> 
G192: =IFERROR(IF(F192="","",IF(MATCH(F192,'كشف الملاحظة'!$I$18:$I$77,0)>=0,"")),"ح") -> 
G193: =IFERROR(IF(F193="","",IF(MATCH(F193,'كشف الملاحظة'!$I$18:$I$77,0)>=0,"")),"ح") -> 
G194: =IFERROR(IF(F194="","",IF(MATCH(F194,'كشف الملاحظة'!$I$18:$I$77,0)>=0,"")),"ح") -> 
G195: =IFERROR(IF(F195="","",IF(MATCH(F195,'كشف الملاحظة'!$I$18:$I$77,0)>=0,"")),"ح") -> 
E196: =IF(ROW()-2<=$C$9,ROW()-2,"") ->  | G196: =IFERROR(IF(F196="","",IF(MATCH(F196,'كشف الملاحظة'!$I$18:$I$77,0)>=0,"")),"ح") ->  | H196: =IF(G196=$G$1,E196,"") -> 
G197: =IFERROR(IF(F197="","",IF(MATCH(F197,'كشف الملاحظة'!$I$18:$I$77,0)>=0,"")),"ح") -> 
G198: =IFERROR(IF(F198="","",IF(MATCH(F198,'كشف الملاحظة'!$I$18:$I$77,0)>=0,"")),"ح") -> 
G199: =IFERROR(IF(F199="","",IF(MATCH(F199,'كشف الملاحظة'!$I$18:$I$77,0)>=0,"")),"ح") -> 
G200: =IFERROR(IF(F200="","",IF(MATCH(F200,'كشف الملاحظة'!$I$18:$I$77,0)>=0,"")),"ح") -> 
... 116 more rows

Sheet جدول الامتحانات
A2: اليوم والتاريخ | B2: الوقت | D2: زمن الإجابة | E2: المادة | F2: الشعبة | G2: الوقت | I2: زمن الإجابة | J2: الأيام والفترات
A3: =IF(A4="","",TEXT(A4,"ddd")) -> الثلاثاء | B3: 9 | C3: 10.3 | D3: ساعة ونصف | E3: التربية الدينية | F3: العامة | G3: =B3 -> 9 | H3: 10.3 | I3: ساعة ونصف | J3: اليوم الأول -الفترة الأولى
A4: 2022-06-21 | B4: 9 | C4: 12.3 | D4: ساعة ونصف | E4: التربية الوطنية | F4: العامة | G4: 9 | H4: 12.3 | I4: ساعة ونصف | J4: اليوم الأول -الفترة الثانية
A5: =IF(A6="","",TEXT(A6,"ddd")) -> الأربعاء | B5: 9 | C5: 10.3 | D5: ساعة ونصف | E5: الاقتصاد | F5: العامة | G5: 9 | H5: 10.3 | I5: ساعة ونصف | J5: اليوم الثاني -الفترة الأولى
A6: 2022-06-22 | B6: 9 | C6: 12.3 | D6: ساعة ونصف | E6: الإحصاء | F6: العامة | G6: 9 | H6: 12.3 | I6: ساعة ونصف | J6: اليوم الثاني -الفترة الثانية
A7: =IF(A8="","",TEXT(A8,"ddd")) -> الأحد | B7: 9 | C7: 12 | D7: ثلاث ساعات | E7: اللغة العربية | F7: العامة | G7: 9 | H7: 12 | I7: ثلاث ساعات | J7: اليوم الثالث
A8: 2022-06-26
A9: =IF(A10="","",TEXT(A10,"ddd")) -> الثلاثاء | B9: 9 | C9: 11 | D9: ساعتان | E9: اللغة الأجنبية الثانية | F9: العامة | G9: =B9 -> 9 | H9: =C9 -> 11 | I9: =D9 -> ساعتان | J9: اليوم الرابع
A10: 2022-06-28
A11: =IF(A12="","",TEXT(A12,"ddd")) -> الأحد | B11: 9 | C11: 12 | D11: ثلاث ساعات | E11: الكيمياء | F11: العلو م والرياضبات | G11: =B11 -> 9 | H11: 12 | I11: ثلاث ساعات | J11: اليوم الخامس
A12: 2022-07-03 | B12: 9 | C12: 12 | D12: ثلاث ساعات | E12: الجغرافيا | F12: الأدبية | G12: 9 | H12: 12 | I12: ثلاث ساعات
A13: =IF(A14="","",TEXT(A14,"ddd")) -> الثلاثاء | B13: 9 | C13: 11 | D13: ساعتان | E13: الرياضيات التطبيقية (الديناميكا) | F13: الرياضيات | G13: 9 | H13: 11 | I13: ساعتان | J13: اليوم السادس
A14: 2022-07-05
A15: =IF(A16="","",TEXT(A16,"ddd")) -> الخميس | B15: 9 | C15: 12 | D15: ثلاث ساعات | E15: اللغة الأجنبية الاولي | F15: العامة | G15: =B15 -> 9 | H15: =C15 -> 12 | I15: =D15 -> ثلاث ساعات | J15: اليوم السابع
A16: 2022-07-07
A17: =IF(A18="","",TEXT(A18,"ddd")) -> الخميس | B17: 9 | C17: 12 | D17: ثلاث ساعات | E17: الفيزياء | F17: العلوم والرياضيات | G17: =B17 -> 9 | H17: 12 | I17: ثلاث ساعات | J17: اليوم الثامن
A18: 2022-07-14 | B18: 9 | C18: 12 | D18: ثلاث ساعات | E18: التاريخ | F18: الأدبية | G18: 9 | H18: 12 | I18: ثلاث ساعات
A19: =IF(A20="","",TEXT(A20,"ddd")) -> الأحد | B19: 9 | C19: 12 | D19: ثلاث ساعات | E19: الجيولوجيا والعلوم البيئية | F19: العلوم | G19: 9 | H19: 12 | I19: ثلاث ساعات | J19: اليوم التاسع
A20: 2022-07-17 | B20: 9 | C20: 11 | D20: ساعتان | E20: الرياضيات البحتة (تفاضل وتكامل) | F20: الرياضيات | G20: 9 | H20: 11 | I20: ساعتان
B21: 9 | C21: 12 | D21: ثلاث ساعات | E21: علم النفس والاجتماع | F21: الأدبية | G21: 9 | H21: 12 | I21: ثلاث ساعات
A22: =IF(A23="","",TEXT(A23,"ddd")) -> الثلاثاء | B22: 9 | C22: 11 | D22: ساعتان | E22: الرياضيات البحتة جبر وهندسة فراغية ) | F22: الرياضيات | G22: 9 | H22: 11 | I22: ساعتان | J22: اليوم العاشر
A23: 2022-07-19
A24: =IF(A25="","",TEXT(A25,"ddd")) -> الخميس | B24: 9 | C24: 12 | D24: ثلاث ساعات | E24: الاحياء | F24: العلوم | G24: =B24 -> 9 | H24: 12 | I24: ثلاث ساعات | J24: اليوم الحادي عشر
A25: 2022-07-21 | B25: 9 | C25: 11 | D25: ساعتان | E25: الرياضيات التطبيقية (الاستاتيكا) | F25: الرياضيات | G25: 9 | H25: 11 | I25: ساعتان
B26: 9 | C26: 12 | D26: ثلاث ساعات | E26: الفلسقة والمنطق | F26: الأدبية | G26: 9 | H26: 12 | I26: ثلاث ساعات

Sheet الثانوية العامة
A1: 1 | E1: 1 | Z1: كود التوزيع للملاحظين بطئ جدا | AL1: =IF(C12>=$C$2,"",C12+1) -> 
A2: عدد مرات الدخول لكل ملاحظ | D2: الفترة 1 | E2: الفترة 2 | F2: الفترة 3 | G2: الفترة 4 | H2: الفترة 5 | I2: الفترة 6 | J2: الفترة 7 | K2: الفترة 8 | L2: الفترة 9 | M2: الفترة 10 | N2: الفترة 11 | O2: الفترة 12 | P2: الفترة 13 | Q2: الفترة 1 | R2: الفترة 2 | S2: الفترة 3 | T2: الفترة 4 | U2: الفترة 5 | V2: الفترة 6 | W2: الفترة 7 | X2: الفترة 8 | Y2: الفترة 9 | Z2: الفترة 10 | AA2: الفترة 11 | AB2: الفترة 12 | AC2: الفترة 13 | AF2: عدد مرات الدخول لكل ملاحظ
B3: 1 | C3: 1 | AF3: =COUNTIF($D$3:$AC$230,B3) -> 0
B4: 2 | C4: 2 | AF4: =COUNTIF($D$3:$AC$230,B4) -> 0
B5: 3 | C5: 3 | AF5: =COUNTIF($D$3:$AC$230,B5) -> 0
B6: 4 | C6: 4 | AF6: 0
B7: 5 | C7: 5 | AF7: =COUNTIF($D$3:$AC$230,B7) -> 0
B8: 6 | AF8: =COUNTIF($D$3:$AC$230,B8) -> 0
B9: 7 | AF9: 0
B10: 8 | AF10: 0
B11: 9 | AF11: 0
B12: 10 | AF12: 0
AF13: 0
AF14: 0
AF15: 0
AF16: 0
AF17: 0
AF18: 0
AF19: 0
AF20: 0
AF21: 0
AF22: 0
AF23: 0
AF24: 0
AF25: 0
AF26: 0
AF27: 0
AF28: 0
AF29: 0
AF30: 0
AF31: 0
AF32: 0
AF33: 0
AF34: 0
AF35: 0
AF36: 0
AF37: 0
AF38: 0
AF39: 0
AF40: 0
AF41: 0
AF42: 0
AF43: 0
AF44: 0
AF45: 0
AF46: 0
AF47: 0
AF48: 0
AF49: 0
AF50: 0
AF51: 0
AF52: 0
AF53: 0
AF54: 0
AF55: 0
AF56: 0
AF57: 0
AF58: 0
AF59: 0
AF60: 0
AF61: 0
AF62: 0
AF63: 0
AF64: 0
AF65: 0
AF66: 0
AF67: 0
AF68: 0
AF69: =COUNTIF($D$3:$AC$230,B69) -> 0
AF70: 0
AF71: 0
AF72: 0
AF73: 0
AF74: 0
AF75: 0
AF76: 0
AF77: 0
AF78: 0
AF79: 0
AF80: 0
AF81: 0
AF82: 0
AF83: 0
AF84: 0
AF85: 0
AF86: 0
AF87: 0
AF88: 0
AF89: 0
AF90: 0
AF91: 0
AF92: 0
AF93: 0
AF94: 0
AF95: 0
AF96: 0
AF97: 0
AF98: 0
AF99: 0
AF100: 0
AF101: 0
AF102: 0
AF103: 0
AF104: 0
AF105: 0
AF106: 0
AF107: 0
AF108: 0
AF109: 0
AF110: 0
AF111: 0
AF112: 0
AF113: 0
AF114: 0
AF115: 0
AF116: 0
AF117: 0
AF118: 0
AF119: 0
AF120: 0
AF121: 0
AF122: 0
AF123: 0
AF124: 0
AF125: 0
AF126: 0
AF127: 0
AF128: 0
AF129: 0
AF130: 0
AF131: 0
AF132: 0
AF133: =COUNTIF($D$3:$AC$230,B133) -> 0
AF134: 0
AF135: 0
AF136: 0
AF137: 0
AF138: 0
AF139: 0
AF140: 0
AF141: 0
AF142: 0
AF143: 0
AF144: 0
AF145: 0
AF146: 0
AF147: 0
AF148: 0
AF149: 0
AF150: 0
AF151: 0
AF152: =COUNTIF($D$3:$AC$230,B152) -> 0
AF153: =COUNTIF($D$3:$AC$230,B153) -> 0
AF154: =COUNTIF($D$3:$AC$230,B154) -> 0
AF155: 0
AF156: 0
AF157: 0
AF158: 0
AF159: 0
AF160: 0
AF161: 0
AF162: 0
AF163: 0
AF164: 0
AF165: 0
AF166: 0
AF167: 0
AF168: 0
AF169: 0
AF170: 0
AF171: 0
AF172: 0
AF173: 0
AF174: 0
AF175: 0
AF176: 0
AF177: 0
AF178: 0
AF179: 0
AF180: 0
AF181: 0
AF182: 0
AF183: 0
AF184: 0
AF185: 0
AF186: 0
AF187: 0
AF188: 0
AF189: 0
AF190: 0
AF191: 0
AF192: 0
AF193: 0
AF194: 0
AF195: 0
AF196: 0
AF197: 0
AF198: 0
AF199: 0
AF200: 0
... 56 more rows

Sheet كشف الملاحظة
U1: تصميم محمود عيد 01066905051 | AC1: 13
A2: ='البيانات الاساسية'!C3 -> محافطة الدقهلية | I2: =IF(VLOOKUP(Y8,'البيانات الاساسية'!$O$3:$U$15,5,0)="","",VLOOKUP(Y8,'البيانات الاساسية'!$O$3:$U$15,5,0)) -> اليوم التاسع | L2: =IF(Q2="","",TEXT(Q2,"ddd")) -> Sun | Q2: =IF(VLOOKUP($Y$8,'البيانات الاساسية'!$O$3:$T$15,6,0)="","",VLOOKUP($Y$8,'البيانات الاساسية'!$O$3:$T$15,6,0)) -> 2022-07-17
A3: ='البيانات الاساسية'!C2 -> امتحانات إتمام الشهادة الثانوية العامة | G3: ="كشف الملاحظة"&" "&A3&" "&'البيانات الاساسية'!C11 -> كشف الملاحظة امتحانات إتمام الشهادة الثانوية العامة 2022/2021
A4: ='البيانات الاساسية'!C4 -> ادارة شربين التعليمية
A5: ='البيانات الاساسية'!C5 -> لجنة رقم 500
E7: =IF(VLOOKUP(Y8,'البيانات الاساسية'!$O$3:$R$15,2,0)="","",VLOOKUP(Y8,'البيانات الاساسية'!$O$3:$R$15,2,0)) -> الجيولوجيا والعلوم البيئية | J7: من الساعة | N7: =IFERROR(IF(VLOOKUP(E7,'البيانات الاساسية'!$Z$3:$AD$27,3,0)="","",VLOOKUP(E7,'البيانات الاساسية'!$Z$3:$AD$27,3,0)),"") -> 9 | P7: =IFERROR(IF(VLOOKUP(E7,'البيانات الاساسية'!$Z$3:$AD$27,5,0)="","","زمن الإجابة"&" "&VLOOKUP(E7,'البيانات الاساسية'!$Z$3:$AD$27,5,0)),"") -> زمن الإجابة ثلاث ساعات | U7: علمي علوم | AA7: =Y8 -> 11
J8: من الساعة | N8: =IFERROR(IF(VLOOKUP(E7,'البيانات الاساسية'!$Z$3:$AD$27,4,0)="","",VLOOKUP(E7,'البيانات الاساسية'!$Z$3:$AD$27,4,0)),"") -> 12 | Y8: 11
E10: =IF(VLOOKUP(Y8,'البيانات الاساسية'!$O$3:$R$15,3,0)="","",VLOOKUP(Y8,'البيانات الاساسية'!$O$3:$R$15,3,0)) -> الرياضيات البحتة (تفاضل وتكامل) | J10: من الساعة | N10: =IFERROR(IF(VLOOKUP(E10,'البيانات الاساسية'!$Z$3:$AD$27,3,0)="","",VLOOKUP(E10,'البيانات الاساسية'!$Z$3:$AD$27,3,0)),"") -> 9 | P10: =IFERROR(IF(VLOOKUP(E10,'البيانات الاساسية'!$Z$3:$AD$27,5,0)="","","زمن الإجابة"&" "&VLOOKUP(E10,'البيانات الاساسية'!$Z$3:$AD$27,5,0)),"") -> زمن الإجابة ساعتان | U10: علمي رياضيات
J11: من الساعة | N11: =IFERROR(IF(VLOOKUP(E10,'البيانات الاساسية'!$Z$3:$AD$27,4,0)="","",VLOOKUP(E10,'البيانات الاساسية'!$Z$3:$AD$27,4,0)),"") -> 11
E13: =IF(VLOOKUP(Y8,'البيانات الاساسية'!$O$3:$R$15,4,0)="","",VLOOKUP(Y8,'البيانات الاساسية'!$O$3:$R$15,4,0)) -> علم النفس والاجتماع | J13: من الساعة | N13: =IFERROR(IF(VLOOKUP(E13,'البيانات الاساسية'!$Z$3:$AD$27,3,0)="","",VLOOKUP(E13,'البيانات الاساسية'!$Z$3:$AD$27,3,0)),"") -> 9 | P13: =IFERROR(IF(VLOOKUP(E13,'البيانات الاساسية'!$Z$3:$AD$27,5,0)="","","زمن الإجابة"&" "&VLOOKUP(E13,'البيانات الاساسية'!$Z$3:$AD$27,5,0)),"") -> زمن الإجابة ثلاث ساعات | U13: الأدبية
J14: من الساعة | N14: =IFERROR(IF(VLOOKUP(E13,'البيانات الاساسية'!$Z$3:$AD$27,4,0)="","",VLOOKUP(E13,'البيانات الاساسية'!$Z$3:$AD$27,4,0)),"") -> 12
A16: اللجنة | E16: العدد | F16: ارقام الجلوس | H16: الملاحظ | Q16: التوقيع
F17: من | G17: الي
A18: =IF($E$7="",AG18,AF18) -> 1 | B18: =A18 -> 1 | D18: =IF($Y$8=1,VLOOKUP(B18,'الثانوية العامة'!$B$3:$AC$151,3,0),IF($Y$8=2,VLOOKUP(B18,'الثانوية العامة'!$B$3:$AC$151,4,0),IF($Y$8=3,VLOOKUP(B18,'الثانوية العامة'!$B$3:$AC$151,5,0),IF($Y$8=4,VLOOKUP(B18,'الثانوية العامة'!$B$3:$AC$151,6,0),IF($Y$8=5,VLOOKUP(B18,'الثانوية العامة'!$B$3:$AC$151,7,0),IF($Y$8=6,VLOOKUP(B18,'الثانوية العامة'!$B$3:$AC$151,8,0),IF($Y$8=7,VLOOKUP(B18,'الثانوية العامة'!$B$3:$AC$151,9,0),IF($Y$8=9,VLOOKUP(B18,'الثانوية العامة'!$B$3:$AC$151,11,0),IF($Y$8=10,VLOOKUP(B18,'الثانوية العامة'!$B$3:$AC$151,12,0),IF($Y$8=11,VLOOKUP(B18,'الثانوية العامة'!$B$3:$AC$151,13,0),IF($Y$8=12,VLOOKUP(B18,'الثانوية العامة'!$B$3:$AC$151,14,0),IF($Y$8=13,VLOOKUP(B18,'الثانوية العامة'!$B$3:$AC$151,15,0),IF($Y$8=8,VLOOKUP(B18,'الثانوية العامة'!$B$3:$AC$151,10,0)))))))))))))) -> 0 | E18: =IFERROR(VLOOKUP(A18,'البيانات الاساسية'!$AF$3:$AJ$69,2,0),"") -> 20 | F18: =IFERROR(VLOOKUP(A18,'البيانات الاساسية'!$AF$3:$AJ$69,3,0),"") -> 100 | G18: =IFERROR(VLOOKUP(A18,'البيانات الاساسية'!$AF$3:$AJ$69,4,0),"") -> 120 | H18: 1 | I18: =IFERROR(IF(A18="","",VLOOKUP(D18,'البيانات الاساسية'!$E$3:$F$316,2,0)),"") ->  | X18: =IF(ROW()-17<='البيانات الاساسية'!$C$8,ROW()-17,"") -> 1 | AE18: =VLOOKUP(X18,'البيانات الاساسية'!$AF$3:$AK$32,5,0) -> علمي علوم | AF18: 1 | AG18: =IF(AE18=$U$10,AF18,"") -> 
B19: =A18 -> 1 | C19: =IF($Y$8=1,VLOOKUP(B19,'الثانوية العامة'!$B$3:$AC$151,16,0),IF($Y$8=2,VLOOKUP(B19,'الثانوية العامة'!$B$3:$AC$151,17,0),IF($Y$8=3,VLOOKUP(B19,'الثانوية العامة'!$B$3:$AC$151,18,0),IF($Y$8=4,VLOOKUP(B19,'الثانوية العامة'!$B$3:$AC$151,19,0),IF($Y$8=5,VLOOKUP(B19,'الثانوية العامة'!$B$3:$AC$151,20,0),IF($Y$8=6,VLOOKUP(B19,'الثانوية العامة'!$B$3:$AC$151,21,0),IF($Y$8=7,VLOOKUP(B19,'الثانوية العامة'!$B$3:$AC$151,22,0),IF($Y$8=8,VLOOKUP(B19,'الثانوية العامة'!$B$3:$AC$151,23,0),IF($Y$8=9,VLOOKUP(B19,'الثانوية العامة'!$B$3:$AC$151,24,0),IF($Y$8=10,VLOOKUP(B19,'الثانوية العامة'!$B$3:$AC$151,25,0),IF($Y$8=11,VLOOKUP(B19,'الثانوية العامة'!$B$3:$AC$151,26,0),IF($Y$8=12,VLOOKUP(B19,'الثانوية العامة'!$B$3:$AC$151,27,0),IF($Y$8=13,VLOOKUP(B19,'الثانوية العامة'!$B$3:$AC$151,28,0)))))))))))))) -> 0 | H19: 2 | I19: =IFERROR(IF(A18="","",VLOOKUP(C19,'البيانات الاساسية'!$E$3:$F$316,2,0)),"") ->  | X19: =IF(ROW()-17<='البيانات الاساسية'!$C$8,ROW()-17,"") -> 2
A20: =IF($E$7="",AG20,AF20) -> 2 | B20: =A20 -> 2 | D20: =IF($Y$8=1,VLOOKUP(B20,'الثانوية العامة'!$B$3:$AC$151,3,0),IF($Y$8=2,VLOOKUP(B20,'الثانوية العامة'!$B$3:$AC$151,4,0),IF($Y$8=3,VLOOKUP(B20,'الثانوية العامة'!$B$3:$AC$151,5,0),IF($Y$8=4,VLOOKUP(B20,'الثانوية العامة'!$B$3:$AC$151,6,0),IF($Y$8=5,VLOOKUP(B20,'الثانوية العامة'!$B$3:$AC$151,7,0),IF($Y$8=6,VLOOKUP(B20,'الثانوية العامة'!$B$3:$AC$151,8,0),IF($Y$8=7,VLOOKUP(B20,'الثانوية العامة'!$B$3:$AC$151,9,0),IF($Y$8=9,VLOOKUP(B20,'الثانوية العامة'!$B$3:$AC$151,11,0),IF($Y$8=10,VLOOKUP(B20,'الثانوية العامة'!$B$3:$AC$151,12,0),IF($Y$8=11,VLOOKUP(B20,'الثانوية العامة'!$B$3:$AC$151,13,0),IF($Y$8=12,VLOOKUP(B20,'الثانوية العامة'!$B$3:$AC$151,14,0),IF($Y$8=13,VLOOKUP(B20,'الثانوية العامة'!$B$3:$AC$151,15,0),IF($Y$8=8,VLOOKUP(B20,'الثانوية العامة'!$B$3:$AC$151,10,0)))))))))))))) -> 0 | E20: =IFERROR(VLOOKUP(A20,'البيانات الاساسية'!$AF$3:$AJ$69,2,0),"") -> 20 | F20: =IFERROR(VLOOKUP(A20,'البيانات الاساسية'!$AF$3:$AJ$69,3,0),"") -> 121 | G20: =IFERROR(VLOOKUP(A20,'البيانات الاساسية'!$AF$3:$AJ$69,4,0),"") -> 140 | H20: 1 | I20: =IFERROR(IF(A20="","",VLOOKUP(D20,'البيانات الاساسية'!$E$3:$F$316,2,0)),"") ->  | X20: =IF(ROW()-17<='البيانات الاساسية'!$C$8,ROW()-17,"") -> 3 | Z20: طباعة ورقة | AE20: =VLOOKUP(X19,'البيانات الاساسية'!$AF$3:$AK$32,5,0) -> علمي علوم | AF20: 2 | AG20: =IF(AE20=$U$10,AF20,"") -> 
B21: 2 | C21: =IF($Y$8=1,VLOOKUP(B21,'الثانوية العامة'!$B$3:$AC$151,16,0),IF($Y$8=2,VLOOKUP(B21,'الثانوية العامة'!$B$3:$AC$151,17,0),IF($Y$8=3,VLOOKUP(B21,'الثانوية العامة'!$B$3:$AC$151,18,0),IF($Y$8=4,VLOOKUP(B21,'الثانوية العامة'!$B$3:$AC$151,19,0),IF($Y$8=5,VLOOKUP(B21,'الثانوية العامة'!$B$3:$AC$151,20,0),IF($Y$8=6,VLOOKUP(B21,'الثانوية العامة'!$B$3:$AC$151,21,0),IF($Y$8=7,VLOOKUP(B21,'الثانوية العامة'!$B$3:$AC$151,22,0),IF($Y$8=8,VLOOKUP(B21,'الثانوية العامة'!$B$3:$AC$151,23,0),IF($Y$8=9,VLOOKUP(B21,'الثانوية العامة'!$B$3:$AC$151,24,0),IF($Y$8=10,VLOOKUP(B21,'الثانوية العامة'!$B$3:$AC$151,25,0),IF($Y$8=11,VLOOKUP(B21,'الثانوية العامة'!$B$3:$AC$151,26,0),IF($Y$8=12,VLOOKUP(B21,'الثانوية العامة'!$B$3:$AC$151,27,0),IF($Y$8=13,VLOOKUP(B21,'الثانوية العامة'!$B$3:$AC$151,28,0)))))))))))))) -> 0 | H21: 2 | I21: =IFERROR(IF(A20="","",VLOOKUP(C21,'البيانات الاساسية'!$E$3:$F$316,2,0)),"") ->  | X21: =IF(ROW()-17<='البيانات الاساسية'!$C$8,ROW()-17,"") -> 4
A22: =IF($E$7="",AG22,AF22) -> 3 | B22: =A22 -> 3 | D22: =IF($Y$8=1,VLOOKUP(B22,'الثانوية العامة'!$B$3:$AC$151,3,0),IF($Y$8=2,VLOOKUP(B22,'الثانوية العامة'!$B$3:$AC$151,4,0),IF($Y$8=3,VLOOKUP(B22,'الثانوية العامة'!$B$3:$AC$151,5,0),IF($Y$8=4,VLOOKUP(B22,'الثانوية العامة'!$B$3:$AC$151,6,0),IF($Y$8=5,VLOOKUP(B22,'الثانوية العامة'!$B$3:$AC$151,7,0),IF($Y$8=6,VLOOKUP(B22,'الثانوية العامة'!$B$3:$AC$151,8,0),IF($Y$8=7,VLOOKUP(B22,'الثانوية العامة'!$B$3:$AC$151,9,0),IF($Y$8=9,VLOOKUP(B22,'الثانوية العامة'!$B$3:$AC$151,11,0),IF($Y$8=10,VLOOKUP(B22,'الثانوية العامة'!$B$3:$AC$151,12,0),IF($Y$8=11,VLOOKUP(B22,'الثانوية العامة'!$B$3:$AC$151,13,0),IF($Y$8=12,VLOOKUP(B22,'الثانوية العامة'!$B$3:$AC$151,14,0),IF($Y$8=13,VLOOKUP(B22,'الثانوية العامة'!$B$3:$AC$151,15,0),IF($Y$8=8,VLOOKUP(B22,'الثانوية العامة'!$B$3:$AC$151,10,0)))))))))))))) -> 0 | E22: =IFERROR(VLOOKUP(A22,'البيانات الاساسية'!$AF$3:$AJ$69,2,0),"") -> 20 | F22: =IFERROR(VLOOKUP(A22,'البيانات الاساسية'!$AF$3:$AJ$69,3,0),"") -> 141 | G22: =IFERROR(VLOOKUP(A22,'البيانات الاساسية'!$AF$3:$AJ$69,4,0),"") -> 160 | H22: 1 | I22: =IFERROR(IF(A22="","",VLOOKUP(D22,'البيانات الاساسية'!$E$3:$F$316,2,0)),"") ->  | X22: =IF(ROW()-17<='البيانات الاساسية'!$C$8,ROW()-17,"") -> 5 | AE22: =VLOOKUP(X20,'البيانات الاساسية'!$AF$3:$AK$32,5,0) -> علمي رياضيات | AF22: 3 | AG22: =IF(AE22=$U$10,AF22,"") -> 3
B23: 3 | C23: =IF($Y$8=1,VLOOKUP(B23,'الثانوية العامة'!$B$3:$AC$151,16,0),IF($Y$8=2,VLOOKUP(B23,'الثانوية العامة'!$B$3:$AC$151,17,0),IF($Y$8=3,VLOOKUP(B23,'الثانوية العامة'!$B$3:$AC$151,18,0),IF($Y$8=4,VLOOKUP(B23,'الثانوية العامة'!$B$3:$AC$151,19,0),IF($Y$8=5,VLOOKUP(B23,'الثانوية العامة'!$B$3:$AC$151,20,0),IF($Y$8=6,VLOOKUP(B23,'الثانوية العامة'!$B$3:$AC$151,21,0),IF($Y$8=7,VLOOKUP(B23,'الثانوية العامة'!$B$3:$AC$151,22,0),IF($Y$8=8,VLOOKUP(B23,'الثانوية العامة'!$B$3:$AC$151,23,0),IF($Y$8=9,VLOOKUP(B23,'الثانوية العامة'!$B$3:$AC$151,24,0),IF($Y$8=10,VLOOKUP(B23,'الثانوية العامة'!$B$3:$AC$151,25,0),IF($Y$8=11,VLOOKUP(B23,'الثانوية العامة'!$B$3:$AC$151,26,0),IF($Y$8=12,VLOOKUP(B23,'الثانوية العامة'!$B$3:$AC$151,27,0),IF($Y$8=13,VLOOKUP(B23,'الثانوية العامة'!$B$3:$AC$151,28,0)))))))))))))) -> 0 | H23: 2 | I23: =IFERROR(IF(A22="","",VLOOKUP(C23,'البيانات الاساسية'!$E$3:$F$316,2,0)),"") ->  | X23: =IF(ROW()-17<='البيانات الاساسية'!$C$8,ROW()-17,"") -> 
A24: =IF($E$7="",AG24,AF24) -> 4 | B24: =A24 -> 4 | D24: =IF($Y$8=1,VLOOKUP(B24,'الثانوية العامة'!$B$3:$AC$151,3,0),IF($Y$8=2,VLOOKUP(B24,'الثانوية العامة'!$B$3:$AC$151,4,0),IF($Y$8=3,VLOOKUP(B24,'الثانوية العامة'!$B$3:$AC$151,5,0),IF($Y$8=4,VLOOKUP(B24,'الثانوية العامة'!$B$3:$AC$151,6,0),IF($Y$8=5,VLOOKUP(B24,'الثانوية العامة'!$B$3:$AC$151,7,0),IF($Y$8=6,VLOOKUP(B24,'الثانوية العامة'!$B$3:$AC$151,8,0),IF($Y$8=7,VLOOKUP(B24,'الثانوية العامة'!$B$3:$AC$151,9,0),IF($Y$8=9,VLOOKUP(B24,'الثانوية العامة'!$B$3:$AC$151,11,0),IF($Y$8=10,VLOOKUP(B24,'الثانوية العامة'!$B$3:$AC$151,12,0),IF($Y$8=11,VLOOKUP(B24,'الثانوية العامة'!$B$3:$AC$151,13,0),IF($Y$8=12,VLOOKUP(B24,'الثانوية العامة'!$B$3:$AC$151,14,0),IF($Y$8=13,VLOOKUP(B24,'الثانوية العامة'!$B$3:$AC$151,15,0),IF($Y$8=8,VLOOKUP(B24,'الثانوية العامة'!$B$3:$AC$151,10,0)))))))))))))) -> 0 | E24: =IFERROR(VLOOKUP(A24,'البيانات الاساسية'!$AF$3:$AJ$69,2,0),"") -> 20 | F24: =IFERROR(VLOOKUP(A24,'البيانات الاساسية'!$AF$3:$AJ$69,3,0),"") -> 161 | G24: =IFERROR(VLOOKUP(A24,'البيانات الاساسية'!$AF$3:$AJ$69,4,0),"") -> 180 | H24: 1 | I24: =IFERROR(IF(A24="","",VLOOKUP(D24,'البيانات الاساسية'!$E$3:$F$316,2,0)),"") ->  | X24: =IF(ROW()-17<='البيانات الاساسية'!$C$8,ROW()-17,"") ->  | Z24: طباعة جميع الأيام | AE24: =VLOOKUP(X21,'البيانات الاساسية'!$AF$3:$AK$32,5,0) -> علمي علوم | AF24: 4 | AG24: =IF(AE24=$U$10,AF24,"") -> 
B25: 4 | C25: =IF($Y$8=1,VLOOKUP(B25,'الثانوية العامة'!$B$3:$AC$151,16,0),IF($Y$8=2,VLOOKUP(B25,'الثانوية العامة'!$B$3:$AC$151,17,0),IF($Y$8=3,VLOOKUP(B25,'الثانوية العامة'!$B$3:$AC$151,18,0),IF($Y$8=4,VLOOKUP(B25,'الثانوية العامة'!$B$3:$AC$151,19,0),IF($Y$8=5,VLOOKUP(B25,'الثانوية العامة'!$B$3:$AC$151,20,0),IF($Y$8=6,VLOOKUP(B25,'الثانوية العامة'!$B$3:$AC$151,21,0),IF($Y$8=7,VLOOKUP(B25,'الثانوية العامة'!$B$3:$AC$151,22,0),IF($Y$8=8,VLOOKUP(B25,'الثانوية العامة'!$B$3:$AC$151,23,0),IF($Y$8=9,VLOOKUP(B25,'الثانوية العامة'!$B$3:$AC$151,24,0),IF($Y$8=10,VLOOKUP(B25,'الثانوية العامة'!$B$3:$AC$151,25,0),IF($Y$8=11,VLOOKUP(B25,'الثانوية العامة'!$B$3:$AC$151,26,0),IF($Y$8=12,VLOOKUP(B25,'الثانوية العامة'!$B$3:$AC$151,27,0),IF($Y$8=13,VLOOKUP(B25,'الثانوية العامة'!$B$3:$AC$151,28,0)))))))))))))) -> 0 | H25: 2 | I25: =IFERROR(IF(A24="","",VLOOKUP(C25,'البيانات الاساسية'!$E$3:$F$316,2,0)),"") ->  | X25: =IF(ROW()-17<='البيانات الاساسية'!$C$8,ROW()-17,"") -> 
A26: =IF($E$7="",AG26,AF26) -> 5 | B26: =A26 -> 5 | D26: =IF($Y$8=1,VLOOKUP(B26,'الثانوية العامة'!$B$3:$AC$151,3,0),IF($Y$8=2,VLOOKUP(B26,'الثانوية العامة'!$B$3:$AC$151,4,0),IF($Y$8=3,VLOOKUP(B26,'الثانوية العامة'!$B$3:$AC$151,5,0),IF($Y$8=4,VLOOKUP(B26,'الثانوية العامة'!$B$3:$AC$151,6,0),IF($Y$8=5,VLOOKUP(B26,'الثانوية العامة'!$B$3:$AC$151,7,0),IF($Y$8=6,VLOOKUP(B26,'الثانوية العامة'!$B$3:$AC$151,8,0),IF($Y$8=7,VLOOKUP(B26,'الثانوية العامة'!$B$3:$AC$151,9,0),IF($Y$8=9,VLOOKUP(B26,'الثانوية العامة'!$B$3:$AC$151,11,0),IF($Y$8=10,VLOOKUP(B26,'الثانوية العامة'!$B$3:$AC$151,12,0),IF($Y$8=11,VLOOKUP(B26,'الثانوية العامة'!$B$3:$AC$151,13,0),IF($Y$8=12,VLOOKUP(B26,'الثانوية العامة'!$B$3:$AC$151,14,0),IF($Y$8=13,VLOOKUP(B26,'الثانوية العامة'!$B$3:$AC$151,15,0),IF($Y$8=8,VLOOKUP(B26,'الثانوية العامة'!$B$3:$AC$151,10,0)))))))))))))) -> 0 | E26: =IFERROR(VLOOKUP(A26,'البيانات الاساسية'!$AF$3:$AJ$69,2,0),"") -> 20 | F26: =IFERROR(VLOOKUP(A26,'البيانات الاساسية'!$AF$3:$AJ$69,3,0),"") -> 181 | G26: =IFERROR(VLOOKUP(A26,'البيانات الاساسية'!$AF$3:$AJ$69,4,0),"") -> 200 | H26: 1 | I26: =IFERROR(IF(A26="","",VLOOKUP(D26,'البيانات الاساسية'!$E$3:$F$316,2,0)),"") ->  | X26: =IF(ROW()-17<='البيانات الاساسية'!$C$8,ROW()-17,"") ->  | AE26: =VLOOKUP(X22,'البيانات الاساسية'!$AF$3:$AK$32,5,0) -> الأدبية | AF26: 5 | AG26: =IF(AE26=$U$10,AF26,"") -> 
B27: 5 | C27: =IF($Y$8=1,VLOOKUP(B27,'الثانوية العامة'!$B$3:$AC$151,16,0),IF($Y$8=2,VLOOKUP(B27,'الثانوية العامة'!$B$3:$AC$151,17,0),IF($Y$8=3,VLOOKUP(B27,'الثانوية العامة'!$B$3:$AC$151,18,0),IF($Y$8=4,VLOOKUP(B27,'الثانوية العامة'!$B$3:$AC$151,19,0),IF($Y$8=5,VLOOKUP(B27,'الثانوية العامة'!$B$3:$AC$151,20,0),IF($Y$8=6,VLOOKUP(B27,'الثانوية العامة'!$B$3:$AC$151,21,0),IF($Y$8=7,VLOOKUP(B27,'الثانوية العامة'!$B$3:$AC$151,22,0),IF($Y$8=8,VLOOKUP(B27,'الثانوية العامة'!$B$3:$AC$151,23,0),IF($Y$8=9,VLOOKUP(B27,'الثانوية العامة'!$B$3:$AC$151,24,0),IF($Y$8=10,VLOOKUP(B27,'الثانوية العامة'!$B$3:$AC$151,25,0),IF($Y$8=11,VLOOKUP(B27,'الثانوية العامة'!$B$3:$AC$151,26,0),IF($Y$8=12,VLOOKUP(B27,'الثانوية العامة'!$B$3:$AC$151,27,0),IF($Y$8=13,VLOOKUP(B27,'الثانوية العامة'!$B$3:$AC$151,28,0)))))))))))))) -> 0 | H27: 2 | I27: =IFERROR(IF(A26="","",VLOOKUP(C27,'البيانات الاساسية'!$E$3:$F$316,2,0)),"") ->  | X27: =IF(ROW()-17<='البيانات الاساسية'!$C$8,ROW()-17,"") -> 
A28: =IF($E$7="",AG28,AF28) -> 6 | B28: =A28 -> 6 | D28: =IF($Y$8=1,VLOOKUP(B28,'الثانوية العامة'!$B$3:$AC$151,3,0),IF($Y$8=2,VLOOKUP(B28,'الثانوية العامة'!$B$3:$AC$151,4,0),IF($Y$8=3,VLOOKUP(B28,'الثانوية العامة'!$B$3:$AC$151,5,0),IF($Y$8=4,VLOOKUP(B28,'الثانوية العامة'!$B$3:$AC$151,6,0),IF($Y$8=5,VLOOKUP(B28,'الثانوية العامة'!$B$3:$AC$151,7,0),IF($Y$8=6,VLOOKUP(B28,'الثانوية العامة'!$B$3:$AC$151,8,0),IF($Y$8=7,VLOOKUP(B28,'الثانوية العامة'!$B$3:$AC$151,9,0),IF($Y$8=9,VLOOKUP(B28,'الثانوية العامة'!$B$3:$AC$151,11,0),IF($Y$8=10,VLOOKUP(B28,'الثانوية العامة'!$B$3:$AC$151,12,0),IF($Y$8=11,VLOOKUP(B28,'الثانوية العامة'!$B$3:$AC$151,13,0),IF($Y$8=12,VLOOKUP(B28,'الثانوية العامة'!$B$3:$AC$151,14,0),IF($Y$8=13,VLOOKUP(B28,'الثانوية العامة'!$B$3:$AC$151,15,0),IF($Y$8=8,VLOOKUP(B28,'الثانوية العامة'!$B$3:$AC$151,10,0)))))))))))))) -> 0 | E28: =IFERROR(VLOOKUP(A28,'البيانات الاساسية'!$AF$3:$AJ$69,2,0),"") ->  | F28: =IFERROR(VLOOKUP(A28,'البيانات الاساسية'!$AF$3:$AJ$69,3,0),"") ->  | G28: =IFERROR(VLOOKUP(A28,'البيانات الاساسية'!$AF$3:$AJ$69,4,0),"") ->  | H28: 1 | I28: =IFERROR(IF(A28="","",VLOOKUP(D28,'البيانات الاساسية'!$E$3:$F$316,2,0)),"") ->  | X28: =IF(ROW()-17<='البيانات الاساسية'!$C$8,ROW()-17,"") ->  | AE28: =VLOOKUP(X23,'البيانات الاساسية'!$AF$3:$AK$32,5,0) -> 0 | AF28: 6 | AG28: =IF(AE28=$U$10,AF28,"") -> 
B29: 6 | C29: =IF($Y$8=1,VLOOKUP(B29,'الثانوية العامة'!$B$3:$AC$151,16,0),IF($Y$8=2,VLOOKUP(B29,'الثانوية العامة'!$B$3:$AC$151,17,0),IF($Y$8=3,VLOOKUP(B29,'الثانوية العامة'!$B$3:$AC$151,18,0),IF($Y$8=4,VLOOKUP(B29,'الثانوية العامة'!$B$3:$AC$151,19,0),IF($Y$8=5,VLOOKUP(B29,'الثانوية العامة'!$B$3:$AC$151,20,0),IF($Y$8=6,VLOOKUP(B29,'الثانوية العامة'!$B$3:$AC$151,21,0),IF($Y$8=7,VLOOKUP(B29,'الثانوية العامة'!$B$3:$AC$151,22,0),IF($Y$8=8,VLOOKUP(B29,'الثانوية العامة'!$B$3:$AC$151,23,0),IF($Y$8=9,VLOOKUP(B29,'الثانوية العامة'!$B$3:$AC$151,24,0),IF($Y$8=10,VLOOKUP(B29,'الثانوية العامة'!$B$3:$AC$151,25,0),IF($Y$8=11,VLOOKUP(B29,'الثانوية العامة'!$B$3:$AC$151,26,0),IF($Y$8=12,VLOOKUP(B29,'الثانوية العامة'!$B$3:$AC$151,27,0),IF($Y$8=13,VLOOKUP(B29,'الثانوية العامة'!$B$3:$AC$151,28,0)))))))))))))) -> 0 | H29: 2 | I29: =IFERROR(IF(A28="","",VLOOKUP(C29,'البيانات الاساسية'!$E$3:$F$316,2,0)),"") ->  | X29: =IF(ROW()-17<='البيانات الاساسية'!$C$8,ROW()-17,"") -> 
A30: =IF($E$7="",AG30,AF30) -> 7 | B30: =A30 -> 7 | D30: =IF($Y$8=1,VLOOKUP(B30,'الثانوية العامة'!$B$3:$AC$151,3,0),IF($Y$8=2,VLOOKUP(B30,'الثانوية العامة'!$B$3:$AC$151,4,0),IF($Y$8=3,VLOOKUP(B30,'الثانوية العامة'!$B$3:$AC$151,5,0),IF($Y$8=4,VLOOKUP(B30,'الثانوية العامة'!$B$3:$AC$151,6,0),IF($Y$8=5,VLOOKUP(B30,'الثانوية العامة'!$B$3:$AC$151,7,0),IF($Y$8=6,VLOOKUP(B30,'الثانوية العامة'!$B$3:$AC$151,8,0),IF($Y$8=7,VLOOKUP(B30,'الثانوية العامة'!$B$3:$AC$151,9,0),IF($Y$8=9,VLOOKUP(B30,'الثانوية العامة'!$B$3:$AC$151,11,0),IF($Y$8=10,VLOOKUP(B30,'الثانوية العامة'!$B$3:$AC$151,12,0),IF($Y$8=11,VLOOKUP(B30,'الثانوية العامة'!$B$3:$AC$151,13,0),IF($Y$8=12,VLOOKUP(B30,'الثانوية العامة'!$B$3:$AC$151,14,0),IF($Y$8=13,VLOOKUP(B30,'الثانوية العامة'!$B$3:$AC$151,15,0),IF($Y$8=8,VLOOKUP(B30,'الثانوية العامة'!$B$3:$AC$151,10,0)))))))))))))) -> 0 | E30: =IFERROR(VLOOKUP(A30,'البيانات الاساسية'!$AF$3:$AJ$69,2,0),"") ->  | F30: =IFERROR(VLOOKUP(A30,'البيانات الاساسية'!$AF$3:$AJ$69,3,0),"") ->  | G30: =IFERROR(VLOOKUP(A30,'البيانات الاساسية'!$AF$3:$AJ$69,4,0),"") ->  | H30: 1 | I30: =IFERROR(IF(A30="","",VLOOKUP(D30,'البيانات الاساسية'!$E$3:$F$316,2,0)),"") ->  | X30: =IF(ROW()-17<='البيانات الاساسية'!$C$8,ROW()-17,"") ->  | AE30: =VLOOKUP(X24,'البيانات الاساسية'!$AF$3:$AK$32,5,0) -> 0 | AF30: 7 | AG30: =IF(AE30=$U$10,AF30,"") -> 
B31: 7 | C31: =IF($Y$8=1,VLOOKUP(B31,'الثانوية العامة'!$B$3:$AC$151,16,0),IF($Y$8=2,VLOOKUP(B31,'الثانوية العامة'!$B$3:$AC$151,17,0),IF($Y$8=3,VLOOKUP(B31,'الثانوية العامة'!$B$3:$AC$151,18,0),IF($Y$8=4,VLOOKUP(B31,'الثانوية العامة'!$B$3:$AC$151,19,0),IF($Y$8=5,VLOOKUP(B31,'الثانوية العامة'!$B$3:$AC$151,20,0),IF($Y$8=6,VLOOKUP(B31,'الثانوية العامة'!$B$3:$AC$151,21,0),IF($Y$8=7,VLOOKUP(B31,'الثانوية العامة'!$B$3:$AC$151,22,0),IF($Y$8=8,VLOOKUP(B31,'الثانوية العامة'!$B$3:$AC$151,23,0),IF($Y$8=9,VLOOKUP(B31,'الثانوية العامة'!$B$3:$AC$151,24,0),IF($Y$8=10,VLOOKUP(B31,'الثانوية العامة'!$B$3:$AC$151,25,0),IF($Y$8=11,VLOOKUP(B31,'الثانوية العامة'!$B$3:$AC$151,26,0),IF($Y$8=12,VLOOKUP(B31,'الثانوية العامة'!$B$3:$AC$151,27,0),IF($Y$8=13,VLOOKUP(B31,'الثانوية العامة'!$B$3:$AC$151,28,0)))))))))))))) -> 0 | H31: 2 | I31: =IFERROR(IF(A30="","",VLOOKUP(C31,'البيانات الاساسية'!$E$3:$F$316,2,0)),"") ->  | X31: =IF(ROW()-17<='البيانات الاساسية'!$C$8,ROW()-17,"") -> 
A32: =IF($E$7="",AG32,AF32) -> 8 | B32: =A32 -> 8 | D32: =IF($Y$8=1,VLOOKUP(B32,'الثانوية العامة'!$B$3:$AC$151,3,0),IF($Y$8=2,VLOOKUP(B32,'الثانوية العامة'!$B$3:$AC$151,4,0),IF($Y$8=3,VLOOKUP(B32,'الثانوية العامة'!$B$3:$AC$151,5,0),IF($Y$8=4,VLOOKUP(B32,'الثانوية العامة'!$B$3:$AC$151,6,0),IF($Y$8=5,VLOOKUP(B32,'الثانوية العامة'!$B$3:$AC$151,7,0),IF($Y$8=6,VLOOKUP(B32,'الثانوية العامة'!$B$3:$AC$151,8,0),IF($Y$8=7,VLOOKUP(B32,'الثانوية العامة'!$B$3:$AC$151,9,0),IF($Y$8=9,VLOOKUP(B32,'الثانوية العامة'!$B$3:$AC$151,11,0),IF($Y$8=10,VLOOKUP(B32,'الثانوية العامة'!$B$3:$AC$151,12,0),IF($Y$8=11,VLOOKUP(B32,'الثانوية العامة'!$B$3:$AC$151,13,0),IF($Y$8=12,VLOOKUP(B32,'الثانوية العامة'!$B$3:$AC$151,14,0),IF($Y$8=13,VLOOKUP(B32,'الثانوية العامة'!$B$3:$AC$151,15,0),IF($Y$8=8,VLOOKUP(B32,'الثانوية العامة'!$B$3:$AC$151,10,0)))))))))))))) -> 0 | E32: =IFERROR(VLOOKUP(A32,'البيانات الاساسية'!$AF$3:$AJ$69,2,0),"") ->  | F32: =IFERROR(VLOOKUP(A32,'البيانات الاساسية'!$AF$3:$AJ$69,3,0),"") ->  | G32: =IFERROR(VLOOKUP(A32,'البيانات الاساسية'!$AF$3:$AJ$69,4,0),"") ->  | H32: 1 | I32: =IFERROR(IF(A32="","",VLOOKUP(D32,'البيانات الاساسية'!$E$3:$F$316,2,0)),"") ->  | X32: =IF(ROW()-17<='البيانات الاساسية'!$C$8,ROW()-17,"") ->  | AE32: =VLOOKUP(X25,'البيانات الاساسية'!$AF$3:$AK$32,5,0) -> 0 | AF32: 8 | AG32: =IF(AE32=$U$10,AF32,"") -> 
B33: 8 | C33: =IF($Y$8=1,VLOOKUP(B33,'الثانوية العامة'!$B$3:$AC$151,16,0),IF($Y$8=2,VLOOKUP(B33,'الثانوية العامة'!$B$3:$AC$151,17,0),IF($Y$8=3,VLOOKUP(B33,'الثانوية العامة'!$B$3:$AC$151,18,0),IF($Y$8=4,VLOOKUP(B33,'الثانوية العامة'!$B$3:$AC$151,19,0),IF($Y$8=5,VLOOKUP(B33,'الثانوية العامة'!$B$3:$AC$151,20,0),IF($Y$8=6,VLOOKUP(B33,'الثانوية العامة'!$B$3:$AC$151,21,0),IF($Y$8=7,VLOOKUP(B33,'الثانوية العامة'!$B$3:$AC$151,22,0),IF($Y$8=8,VLOOKUP(B33,'الثانوية العامة'!$B$3:$AC$151,23,0),IF($Y$8=9,VLOOKUP(B33,'الثانوية العامة'!$B$3:$AC$151,24,0),IF($Y$8=10,VLOOKUP(B33,'الثانوية العامة'!$B$3:$AC$151,25,0),IF($Y$8=11,VLOOKUP(B33,'الثانوية العامة'!$B$3:$AC$151,26,0),IF($Y$8=12,VLOOKUP(B33,'الثانوية العامة'!$B$3:$AC$151,27,0),IF($Y$8=13,VLOOKUP(B33,'الثانوية العامة'!$B$3:$AC$151,28,0)))))))))))))) -> 0 | H33: 2 | I33: =IFERROR(IF(A32="","",VLOOKUP(C33,'البيانات الاساسية'!$E$3:$F$316,2,0)),"") ->  | X33: =IF(ROW()-17<='البيانات الاساسية'!$C$8,ROW()-17,"") -> 
A34: =IF($E$7="",AG34,AF34) -> 9 | B34: =A34 -> 9 | D34: =IF($Y$8=1,VLOOKUP(B34,'الثانوية العامة'!$B$3:$AC$151,3,0),IF($Y$8=2,VLOOKUP(B34,'الثانوية العامة'!$B$3:$AC$151,4,0),IF($Y$8=3,VLOOKUP(B34,'الثانوية العامة'!$B$3:$AC$151,5,0),IF($Y$8=4,VLOOKUP(B34,'الثانوية العامة'!$B$3:$AC$151,6,0),IF($Y$8=5,VLOOKUP(B34,'الثانوية العامة'!$B$3:$AC$151,7,0),IF($Y$8=6,VLOOKUP(B34,'الثانوية العامة'!$B$3:$AC$151,8,0),IF($Y$8=7,VLOOKUP(B34,'الثانوية العامة'!$B$3:$AC$151,9,0),IF($Y$8=9,VLOOKUP(B34,'الثانوية العامة'!$B$3:$AC$151,11,0),IF($Y$8=10,VLOOKUP(B34,'الثانوية العامة'!$B$3:$AC$151,12,0),IF($Y$8=11,VLOOKUP(B34,'الثانوية العامة'!$B$3:$AC$151,13,0),IF($Y$8=12,VLOOKUP(B34,'الثانوية العامة'!$B$3:$AC$151,14,0),IF($Y$8=13,VLOOKUP(B34,'الثانوية العامة'!$B$3:$AC$151,15,0),IF($Y$8=8,VLOOKUP(B34,'الثانوية العامة'!$B$3:$AC$151,10,0)))))))))))))) -> 0 | E34: =IFERROR(VLOOKUP(A34,'البيانات الاساسية'!$AF$3:$AJ$69,2,0),"") ->  | F34: =IFERROR(VLOOKUP(A34,'البيانات الاساسية'!$AF$3:$AJ$69,3,0),"") ->  | G34: =IFERROR(VLOOKUP(A34,'البيانات الاساسية'!$AF$3:$AJ$69,4,0),"") ->  | H34: 1 | I34: =IFERROR(IF(A34="","",VLOOKUP(D34,'البيانات الاساسية'!$E$3:$F$316,2,0)),"") ->  | X34: =IF(ROW()-17<='البيانات الاساسية'!$C$8,ROW()-17,"") ->  | AE34: =VLOOKUP(X26,'البيانات الاساسية'!$AF$3:$AK$32,5,0) -> 0 | AF34: 9 | AG34: =IF(AE34=$U$10,AF34,"") -> 
B35: 9 | C35: =IF($Y$8=1,VLOOKUP(B35,'الثانوية العامة'!$B$3:$AC$151,16,0),IF($Y$8=2,VLOOKUP(B35,'الثانوية العامة'!$B$3:$AC$151,17,0),IF($Y$8=3,VLOOKUP(B35,'الثانوية العامة'!$B$3:$AC$151,18,0),IF($Y$8=4,VLOOKUP(B35,'الثانوية العامة'!$B$3:$AC$151,19,0),IF($Y$8=5,VLOOKUP(B35,'الثانوية العامة'!$B$3:$AC$151,20,0),IF($Y$8=6,VLOOKUP(B35,'الثانوية العامة'!$B$3:$AC$151,21,0),IF($Y$8=7,VLOOKUP(B35,'الثانوية العامة'!$B$3:$AC$151,22,0),IF($Y$8=8,VLOOKUP(B35,'الثانوية العامة'!$B$3:$AC$151,23,0),IF($Y$8=9,VLOOKUP(B35,'الثانوية العامة'!$B$3:$AC$151,24,0),IF($Y$8=10,VLOOKUP(B35,'الثانوية العامة'!$B$3:$AC$151,25,0),IF($Y$8=11,VLOOKUP(B35,'الثانوية العامة'!$B$3:$AC$151,26,0),IF($Y$8=12,VLOOKUP(B35,'الثانوية العامة'!$B$3:$AC$151,27,0),IF($Y$8=13,VLOOKUP(B35,'الثانوية العامة'!$B$3:$AC$151,28,0)))))))))))))) -> 0 | H35: 2 | I35: =IFERROR(IF(A34="","",VLOOKUP(C35,'البيانات الاساسية'!$E$3:$F$316,2,0)),"") ->  | X35: =IF(ROW()-17<='البيانات الاساسية'!$C$8,ROW()-17,"") -> 
A36: =IF($E$7="",AG36,AF36) -> 10 | B36: =A36 -> 10 | D36: =IF($Y$8=1,VLOOKUP(B36,'الثانوية العامة'!$B$3:$AC$151,3,0),IF($Y$8=2,VLOOKUP(B36,'الثانوية العامة'!$B$3:$AC$151,4,0),IF($Y$8=3,VLOOKUP(B36,'الثانوية العامة'!$B$3:$AC$151,5,0),IF($Y$8=4,VLOOKUP(B36,'الثانوية العامة'!$B$3:$AC$151,6,0),IF($Y$8=5,VLOOKUP(B36,'الثانوية العامة'!$B$3:$AC$151,7,0),IF($Y$8=6,VLOOKUP(B36,'الثانوية العامة'!$B$3:$AC$151,8,0),IF($Y$8=7,VLOOKUP(B36,'الثانوية العامة'!$B$3:$AC$151,9,0),IF($Y$8=9,VLOOKUP(B36,'الثانوية العامة'!$B$3:$AC$151,11,0),IF($Y$8=10,VLOOKUP(B36,'الثانوية العامة'!$B$3:$AC$151,12,0),IF($Y$8=11,VLOOKUP(B36,'الثانوية العامة'!$B$3:$AC$151,13,0),IF($Y$8=12,VLOOKUP(B36,'الثانوية العامة'!$B$3:$AC$151,14,0),IF($Y$8=13,VLOOKUP(B36,'الثانوية العامة'!$B$3:$AC$151,15,0),IF($Y$8=8,VLOOKUP(B36,'الثانوية العامة'!$B$3:$AC$151,10,0)))))))))))))) -> 0 | E36: =IFERROR(VLOOKUP(A36,'البيانات الاساسية'!$AF$3:$AJ$69,2,0),"") ->  | F36: =IFERROR(VLOOKUP(A36,'البيانات الاساسية'!$AF$3:$AJ$69,3,0),"") ->  | G36: =IFERROR(VLOOKUP(A36,'البيانات الاساسية'!$AF$3:$AJ$69,4,0),"") ->  | H36: 1 | I36: =IFERROR(IF(A36="","",VLOOKUP(D36,'البيانات الاساسية'!$E$3:$F$316,2,0)),"") ->  | X36: =IF(ROW()-17<='البيانات الاساسية'!$C$8,ROW()-17,"") ->  | AE36: =VLOOKUP(X27,'البيانات الاساسية'!$AF$3:$AK$32,5,0) -> 0 | AF36: 10 | AG36: =IF(AE36=$U$10,AF36,"") -> 
B37: 10 | C37: =IF($Y$8=1,VLOOKUP(B37,'الثانوية العامة'!$B$3:$AC$151,16,0),IF($Y$8=2,VLOOKUP(B37,'الثانوية العامة'!$B$3:$AC$151,17,0),IF($Y$8=3,VLOOKUP(B37,'الثانوية العامة'!$B$3:$AC$151,18,0),IF($Y$8=4,VLOOKUP(B37,'الثانوية العامة'!$B$3:$AC$151,19,0),IF($Y$8=5,VLOOKUP(B37,'الثانوية العامة'!$B$3:$AC$151,20,0),IF($Y$8=6,VLOOKUP(B37,'الثانوية العامة'!$B$3:$AC$151,21,0),IF($Y$8=7,VLOOKUP(B37,'الثانوية العامة'!$B$3:$AC$151,22,0),IF($Y$8=8,VLOOKUP(B37,'الثانوية العامة'!$B$3:$AC$151,23,0),IF($Y$8=9,VLOOKUP(B37,'الثانوية العامة'!$B$3:$AC$151,24,0),IF($Y$8=10,VLOOKUP(B37,'الثانوية العامة'!$B$3:$AC$151,25,0),IF($Y$8=11,VLOOKUP(B37,'الثانوية العامة'!$B$3:$AC$151,26,0),IF($Y$8=12,VLOOKUP(B37,'الثانوية العامة'!$B$3:$AC$151,27,0),IF($Y$8=13,VLOOKUP(B37,'الثانوية العامة'!$B$3:$AC$151,28,0)))))))))))))) -> 0 | H37: 2 | I37: =IFERROR(IF(A36="","",VLOOKUP(C37,'البيانات الاساسية'!$E$3:$F$316,2,0)),"") ->  | X37: =IF(ROW()-17<='البيانات الاساسية'!$C$8,ROW()-17,"") -> 
A38: =IF($E$7="",AG38,AF38) -> 11 | B38: =A38 -> 11 | D38: =IF($Y$8=1,VLOOKUP(B38,'الثانوية العامة'!$B$3:$AC$151,3,0),IF($Y$8=2,VLOOKUP(B38,'الثانوية العامة'!$B$3:$AC$151,4,0),IF($Y$8=3,VLOOKUP(B38,'الثانوية العامة'!$B$3:$AC$151,5,0),IF($Y$8=4,VLOOKUP(B38,'الثانوية العامة'!$B$3:$AC$151,6,0),IF($Y$8=5,VLOOKUP(B38,'الثانوية العامة'!$B$3:$AC$151,7,0),IF($Y$8=6,VLOOKUP(B38,'الثانوية العامة'!$B$3:$AC$151,8,0),IF($Y$8=7,VLOOKUP(B38,'الثانوية العامة'!$B$3:$AC$151,9,0),IF($Y$8=9,VLOOKUP(B38,'الثانوية العامة'!$B$3:$AC$151,11,0),IF($Y$8=10,VLOOKUP(B38,'الثانوية العامة'!$B$3:$AC$151,12,0),IF($Y$8=11,VLOOKUP(B38,'الثانوية العامة'!$B$3:$AC$151,13,0),IF($Y$8=12,VLOOKUP(B38,'الثانوية العامة'!$B$3:$AC$151,14,0),IF($Y$8=13,VLOOKUP(B38,'الثانوية العامة'!$B$3:$AC$151,15,0),IF($Y$8=8,VLOOKUP(B38,'الثانوية العامة'!$B$3:$AC$151,10,0)))))))))))))) ->  | E38: =IFERROR(VLOOKUP(A38,'البيانات الاساسية'!$AF$3:$AJ$69,2,0),"") ->  | F38: =IFERROR(VLOOKUP(A38,'البيانات الاساسية'!$AF$3:$AJ$69,3,0),"") ->  | G38: =IFERROR(VLOOKUP(A38,'البيانات الاساسية'!$AF$3:$AJ$69,4,0),"") ->  | H38: 1 | I38: =IFERROR(IF(A38="","",VLOOKUP(D38,'البيانات الاساسية'!$E$3:$F$316,2,0)),"") ->  | X38: =IF(ROW()-17<='البيانات الاساسية'!$C$8,ROW()-17,"") ->  | AE38: =VLOOKUP(X28,'البيانات الاساسية'!$AF$3:$AK$32,5,0) -> 0 | AF38: 11 | AG38: =IF(AE38=$U$10,AF38,"") -> 
B39: 11 | C39: =IF($Y$8=1,VLOOKUP(B39,'الثانوية العامة'!$B$3:$AC$151,16,0),IF($Y$8=2,VLOOKUP(B39,'الثانوية العامة'!$B$3:$AC$151,17,0),IF($Y$8=3,VLOOKUP(B39,'الثانوية العامة'!$B$3:$AC$151,18,0),IF($Y$8=4,VLOOKUP(B39,'الثانوية العامة'!$B$3:$AC$151,19,0),IF($Y$8=5,VLOOKUP(B39,'الثانوية العامة'!$B$3:$AC$151,20,0),IF($Y$8=6,VLOOKUP(B39,'الثانوية العامة'!$B$3:$AC$151,21,0),IF($Y$8=7,VLOOKUP(B39,'الثانوية العامة'!$B$3:$AC$151,22,0),IF($Y$8=8,VLOOKUP(B39,'الثانوية العامة'!$B$3:$AC$151,23,0),IF($Y$8=9,VLOOKUP(B39,'الثانوية العامة'!$B$3:$AC$151,24,0),IF($Y$8=10,VLOOKUP(B39,'الثانوية العامة'!$B$3:$AC$151,25,0),IF($Y$8=11,VLOOKUP(B39,'الثانوية العامة'!$B$3:$AC$151,26,0),IF($Y$8=12,VLOOKUP(B39,'الثانوية العامة'!$B$3:$AC$151,27,0),IF($Y$8=13,VLOOKUP(B39,'الثانوية العامة'!$B$3:$AC$151,28,0)))))))))))))) ->  | H39: 2 | I39: =IFERROR(IF(A38="","",VLOOKUP(C39,'البيانات الاساسية'!$E$3:$F$316,2,0)),"") ->  | X39: =IF(ROW()-17<='البيانات الاساسية'!$C$8,ROW()-17,"") -> 
A40: =IF($E$7="",AG40,AF40) -> 12 | B40: =A40 -> 12 | D40: =IF($Y$8=1,VLOOKUP(B40,'الثانوية العامة'!$B$3:$AC$151,3,0),IF($Y$8=2,VLOOKUP(B40,'الثانوية العامة'!$B$3:$AC$151,4,0),IF($Y$8=3,VLOOKUP(B40,'الثانوية العامة'!$B$3:$AC$151,5,0),IF($Y$8=4,VLOOKUP(B40,'الثانوية العامة'!$B$3:$AC$151,6,0),IF($Y$8=5,VLOOKUP(B40,'الثانوية العامة'!$B$3:$AC$151,7,0),IF($Y$8=6,VLOOKUP(B40,'الثانوية العامة'!$B$3:$AC$151,8,0),IF($Y$8=7,VLOOKUP(B40,'الثانوية العامة'!$B$3:$AC$151,9,0),IF($Y$8=9,VLOOKUP(B40,'الثانوية العامة'!$B$3:$AC$151,11,0),IF($Y$8=10,VLOOKUP(B40,'الثانوية العامة'!$B$3:$AC$151,12,0),IF($Y$8=11,VLOOKUP(B40,'الثانوية العامة'!$B$3:$AC$151,13,0),IF($Y$8=12,VLOOKUP(B40,'الثانوية العامة'!$B$3:$AC$151,14,0),IF($Y$8=13,VLOOKUP(B40,'الثانوية العامة'!$B$3:$AC$151,15,0),IF($Y$8=8,VLOOKUP(B40,'الثانوية العامة'!$B$3:$AC$151,10,0)))))))))))))) ->  | E40: =IFERROR(VLOOKUP(A40,'البيانات الاساسية'!$AF$3:$AJ$69,2,0),"") ->  | F40: =IFERROR(VLOOKUP(A40,'البيانات الاساسية'!$AF$3:$AJ$69,3,0),"") ->  | G40: =IFERROR(VLOOKUP(A40,'البيانات الاساسية'!$AF$3:$AJ$69,4,0),"") ->  | H40: 1 | I40: =IFERROR(IF(A40="","",VLOOKUP(D40,'البيانات الاساسية'!$E$3:$F$316,2,0)),"") ->  | X40: =IF(ROW()-17<='البيانات الاساسية'!$C$8,ROW()-17,"") ->  | AE40: =VLOOKUP(X29,'البيانات الاساسية'!$AF$3:$AK$32,5,0) -> 0 | AF40: 12 | AG40: =IF(AE40=$U$10,AF40,"") -> 
B41: 12 | C41: =IF($Y$8=1,VLOOKUP(B41,'الثانوية العامة'!$B$3:$AC$151,16,0),IF($Y$8=2,VLOOKUP(B41,'الثانوية العامة'!$B$3:$AC$151,17,0),IF($Y$8=3,VLOOKUP(B41,'الثانوية العامة'!$B$3:$AC$151,18,0),IF($Y$8=4,VLOOKUP(B41,'الثانوية العامة'!$B$3:$AC$151,19,0),IF($Y$8=5,VLOOKUP(B41,'الثانوية العامة'!$B$3:$AC$151,20,0),IF($Y$8=6,VLOOKUP(B41,'الثانوية العامة'!$B$3:$AC$151,21,0),IF($Y$8=7,VLOOKUP(B41,'الثانوية العامة'!$B$3:$AC$151,22,0),IF($Y$8=8,VLOOKUP(B41,'الثانوية العامة'!$B$3:$AC$151,23,0),IF($Y$8=9,VLOOKUP(B41,'الثانوية العامة'!$B$3:$AC$151,24,0),IF($Y$8=10,VLOOKUP(B41,'الثانوية العامة'!$B$3:$AC$151,25,0),IF($Y$8=11,VLOOKUP(B41,'الثانوية العامة'!$B$3:$AC$151,26,0),IF($Y$8=12,VLOOKUP(B41,'الثانوية العامة'!$B$3:$AC$151,27,0),IF($Y$8=13,VLOOKUP(B41,'الثانوية العامة'!$B$3:$AC$151,28,0)))))))))))))) ->  | H41: 2 | I41: =IFERROR(IF(A40="","",VLOOKUP(C41,'البيانات الاساسية'!$E$3:$F$316,2,0)),"") ->  | X41: =IF(ROW()-17<='البيانات الاساسية'!$C$8,ROW()-17,"") -> 
A42: =IF($E$7="",AG42,AF42) -> 13 | B42: =A42 -> 13 | D42: =IF($Y$8=1,VLOOKUP(B42,'الثانوية العامة'!$B$3:$AC$151,3,0),IF($Y$8=2,VLOOKUP(B42,'الثانوية العامة'!$B$3:$AC$151,4,0),IF($Y$8=3,VLOOKUP(B42,'الثانوية العامة'!$B$3:$AC$151,5,0),IF($Y$8=4,VLOOKUP(B42,'الثانوية العامة'!$B$3:$AC$151,6,0),IF($Y$8=5,VLOOKUP(B42,'الثانوية العامة'!$B$3:$AC$151,7,0),IF($Y$8=6,VLOOKUP(B42,'الثانوية العامة'!$B$3:$AC$151,8,0),IF($Y$8=7,VLOOKUP(B42,'الثانوية العامة'!$B$3:$AC$151,9,0),IF($Y$8=9,VLOOKUP(B42,'الثانوية العامة'!$B$3:$AC$151,11,0),IF($Y$8=10,VLOOKUP(B42,'الثانوية العامة'!$B$3:$AC$151,12,0),IF($Y$8=11,VLOOKUP(B42,'الثانوية العامة'!$B$3:$AC$151,13,0),IF($Y$8=12,VLOOKUP(B42,'الثانوية العامة'!$B$3:$AC$151,14,0),IF($Y$8=13,VLOOKUP(B42,'الثانوية العامة'!$B$3:$AC$151,15,0),IF($Y$8=8,VLOOKUP(B42,'الثانوية العامة'!$B$3:$AC$151,10,0)))))))))))))) ->  | E42: =IFERROR(VLOOKUP(A42,'البيانات الاساسية'!$AF$3:$AJ$69,2,0),"") ->  | F42: =IFERROR(VLOOKUP(A42,'البيانات الاساسية'!$AF$3:$AJ$69,3,0),"") ->  | G42: =IFERROR(VLOOKUP(A42,'البيانات الاساسية'!$AF$3:$AJ$69,4,0),"") ->  | H42: 1 | I42: =IFERROR(IF(A42="","",VLOOKUP(D42,'البيانات الاساسية'!$E$3:$F$316,2,0)),"") ->  | X42: =IF(ROW()-17<='البيانات الاساسية'!$C$8,ROW()-17,"") ->  | AE42: =VLOOKUP(X30,'البيانات الاساسية'!$AF$3:$AK$32,5,0) -> 0 | AF42: 13 | AG42: =IF(AE42=$U$10,AF42,"") -> 
B43: 13 | C43: =IF($Y$8=1,VLOOKUP(B43,'الثانوية العامة'!$B$3:$AC$151,16,0),IF($Y$8=2,VLOOKUP(B43,'الثانوية العامة'!$B$3:$AC$151,17,0),IF($Y$8=3,VLOOKUP(B43,'الثانوية العامة'!$B$3:$AC$151,18,0),IF($Y$8=4,VLOOKUP(B43,'الثانوية العامة'!$B$3:$AC$151,19,0),IF($Y$8=5,VLOOKUP(B43,'الثانوية العامة'!$B$3:$AC$151,20,0),IF($Y$8=6,VLOOKUP(B43,'الثانوية العامة'!$B$3:$AC$151,21,0),IF($Y$8=7,VLOOKUP(B43,'الثانوية العامة'!$B$3:$AC$151,22,0),IF($Y$8=8,VLOOKUP(B43,'الثانوية العامة'!$B$3:$AC$151,23,0),IF($Y$8=9,VLOOKUP(B43,'الثانوية العامة'!$B$3:$AC$151,24,0),IF($Y$8=10,VLOOKUP(B43,'الثانوية العامة'!$B$3:$AC$151,25,0),IF($Y$8=11,VLOOKUP(B43,'الثانوية العامة'!$B$3:$AC$151,26,0),IF($Y$8=12,VLOOKUP(B43,'الثانوية العامة'!$B$3:$AC$151,27,0),IF($Y$8=13,VLOOKUP(B43,'الثانوية العامة'!$B$3:$AC$151,28,0)))))))))))))) ->  | H43: 2 | I43: =IFERROR(IF(A42="","",VLOOKUP(C43,'البيانات الاساسية'!$E$3:$F$316,2,0)),"") ->  | X43: =IF(ROW()-17<='البيانات الاساسية'!$C$8,ROW()-17,"") -> 
A44: =IF($E$7="",AG44,AF44) -> 14 | B44: =A44 -> 14 | D44: =IF($Y$8=1,VLOOKUP(B44,'الثانوية العامة'!$B$3:$AC$151,3,0),IF($Y$8=2,VLOOKUP(B44,'الثانوية العامة'!$B$3:$AC$151,4,0),IF($Y$8=3,VLOOKUP(B44,'الثانوية العامة'!$B$3:$AC$151,5,0),IF($Y$8=4,VLOOKUP(B44,'الثانوية العامة'!$B$3:$AC$151,6,0),IF($Y$8=5,VLOOKUP(B44,'الثانوية العامة'!$B$3:$AC$151,7,0),IF($Y$8=6,VLOOKUP(B44,'الثانوية العامة'!$B$3:$AC$151,8,0),IF($Y$8=7,VLOOKUP(B44,'الثانوية العامة'!$B$3:$AC$151,9,0),IF($Y$8=9,VLOOKUP(B44,'الثانوية العامة'!$B$3:$AC$151,11,0),IF($Y$8=10,VLOOKUP(B44,'الثانوية العامة'!$B$3:$AC$151,12,0),IF($Y$8=11,VLOOKUP(B44,'الثانوية العامة'!$B$3:$AC$151,13,0),IF($Y$8=12,VLOOKUP(B44,'الثانوية العامة'!$B$3:$AC$151,14,0),IF($Y$8=13,VLOOKUP(B44,'الثانوية العامة'!$B$3:$AC$151,15,0),IF($Y$8=8,VLOOKUP(B44,'الثانوية العامة'!$B$3:$AC$151,10,0)))))))))))))) ->  | E44: =IFERROR(VLOOKUP(A44,'البيانات الاساسية'!$AF$3:$AJ$69,2,0),"") ->  | F44: =IFERROR(VLOOKUP(A44,'البيانات الاساسية'!$AF$3:$AJ$69,3,0),"") ->  | G44: =IFERROR(VLOOKUP(A44,'البيانات الاساسية'!$AF$3:$AJ$69,4,0),"") ->  | H44: 1 | I44: =IFERROR(IF(A44="","",VLOOKUP(D44,'البيانات الاساسية'!$E$3:$F$316,2,0)),"") ->  | X44: =IF(ROW()-17<='البيانات الاساسية'!$C$8,ROW()-17,"") ->  | AE44: =VLOOKUP(X31,'البيانات الاساسية'!$AF$3:$AK$32,5,0) -> 0 | AF44: 14 | AG44: =IF(AE44=$U$10,AF44,"") -> 
B45: =A44 -> 14 | C45: =IF($Y$8=1,VLOOKUP(B45,'الثانوية العامة'!$B$3:$AC$151,16,0),IF($Y$8=2,VLOOKUP(B45,'الثانوية العامة'!$B$3:$AC$151,17,0),IF($Y$8=3,VLOOKUP(B45,'الثانوية العامة'!$B$3:$AC$151,18,0),IF($Y$8=4,VLOOKUP(B45,'الثانوية العامة'!$B$3:$AC$151,19,0),IF($Y$8=5,VLOOKUP(B45,'الثانوية العامة'!$B$3:$AC$151,20,0),IF($Y$8=6,VLOOKUP(B45,'الثانوية العامة'!$B$3:$AC$151,21,0),IF($Y$8=7,VLOOKUP(B45,'الثانوية العامة'!$B$3:$AC$151,22,0),IF($Y$8=8,VLOOKUP(B45,'الثانوية العامة'!$B$3:$AC$151,23,0),IF($Y$8=9,VLOOKUP(B45,'الثانوية العامة'!$B$3:$AC$151,24,0),IF($Y$8=10,VLOOKUP(B45,'الثانوية العامة'!$B$3:$AC$151,25,0),IF($Y$8=11,VLOOKUP(B45,'الثانوية العامة'!$B$3:$AC$151,26,0),IF($Y$8=12,VLOOKUP(B45,'الثانوية العامة'!$B$3:$AC$151,27,0),IF($Y$8=13,VLOOKUP(B45,'الثانوية العامة'!$B$3:$AC$151,28,0)))))))))))))) ->  | H45: 2 | I45: =IFERROR(IF(A44="","",VLOOKUP(C45,'البيانات الاساسية'!$E$3:$F$316,2,0)),"") ->  | X45: =IF(ROW()-17<='البيانات الاساسية'!$C$8,ROW()-17,"") -> 
A46: =IF($E$7="",AG46,AF46) -> 15 | B46: =A46 -> 15 | D46: =IF($Y$8=1,VLOOKUP(B46,'الثانوية العامة'!$B$3:$AC$151,3,0),IF($Y$8=2,VLOOKUP(B46,'الثانوية العامة'!$B$3:$AC$151,4,0),IF($Y$8=3,VLOOKUP(B46,'الثانوية العامة'!$B$3:$AC$151,5,0),IF($Y$8=4,VLOOKUP(B46,'الثانوية العامة'!$B$3:$AC$151,6,0),IF($Y$8=5,VLOOKUP(B46,'الثانوية العامة'!$B$3:$AC$151,7,0),IF($Y$8=6,VLOOKUP(B46,'الثانوية العامة'!$B$3:$AC$151,8,0),IF($Y$8=7,VLOOKUP(B46,'الثانوية العامة'!$B$3:$AC$151,9,0),IF($Y$8=9,VLOOKUP(B46,'الثانوية العامة'!$B$3:$AC$151,11,0),IF($Y$8=10,VLOOKUP(B46,'الثانوية العامة'!$B$3:$AC$151,12,0),IF($Y$8=11,VLOOKUP(B46,'الثانوية العامة'!$B$3:$AC$151,13,0),IF($Y$8=12,VLOOKUP(B46,'الثانوية العامة'!$B$3:$AC$151,14,0),IF($Y$8=13,VLOOKUP(B46,'الثانوية العامة'!$B$3:$AC$151,15,0),IF($Y$8=8,VLOOKUP(B46,'الثانوية العامة'!$B$3:$AC$151,10,0)))))))))))))) ->  | E46: =IFERROR(VLOOKUP(A46,'البيانات الاساسية'!$AF$3:$AJ$69,2,0),"") ->  | F46: =IFERROR(VLOOKUP(A46,'البيانات الاساسية'!$AF$3:$AJ$69,3,0),"") ->  | G46: =IFERROR(VLOOKUP(A46,'البيانات الاساسية'!$AF$3:$AJ$69,4,0),"") ->  | H46: 1 | I46: =IFERROR(IF(A46="","",VLOOKUP(D46,'البيانات الاساسية'!$E$3:$F$316,2,0)),"") ->  | X46: =IF(ROW()-17<='البيانات الاساسية'!$C$8,ROW()-17,"") ->  | AE46: =VLOOKUP(X32,'البيانات الاساسية'!$AF$3:$AK$32,5,0) -> 0 | AF46: 15 | AG46: =IF(AE46=$U$10,AF46,"") -> 
B47: 15 | C47: =IF($Y$8=1,VLOOKUP(B47,'الثانوية العامة'!$B$3:$AC$151,16,0),IF($Y$8=2,VLOOKUP(B47,'الثانوية العامة'!$B$3:$AC$151,17,0),IF($Y$8=3,VLOOKUP(B47,'الثانوية العامة'!$B$3:$AC$151,18,0),IF($Y$8=4,VLOOKUP(B47,'الثانوية العامة'!$B$3:$AC$151,19,0),IF($Y$8=5,VLOOKUP(B47,'الثانوية العامة'!$B$3:$AC$151,20,0),IF($Y$8=6,VLOOKUP(B47,'الثانوية العامة'!$B$3:$AC$151,21,0),IF($Y$8=7,VLOOKUP(B47,'الثانوية العامة'!$B$3:$AC$151,22,0),IF($Y$8=8,VLOOKUP(B47,'الثانوية العامة'!$B$3:$AC$151,23,0),IF($Y$8=9,VLOOKUP(B47,'الثانوية العامة'!$B$3:$AC$151,24,0),IF($Y$8=10,VLOOKUP(B47,'الثانوية العامة'!$B$3:$AC$151,25,0),IF($Y$8=11,VLOOKUP(B47,'الثانوية العامة'!$B$3:$AC$151,26,0),IF($Y$8=12,VLOOKUP(B47,'الثانوية العامة'!$B$3:$AC$151,27,0),IF($Y$8=13,VLOOKUP(B47,'الثانوية العامة'!$B$3:$AC$151,28,0)))))))))))))) ->  | H47: 2 | I47: =IFERROR(IF(A46="","",VLOOKUP(C47,'البيانات الاساسية'!$E$3:$F$316,2,0)),"") ->  | X47: =IF(ROW()-17<='البيانات الاساسية'!$C$8,ROW()-17,"") -> 
A48: =IF($E$7="",AG48,AF48) -> 16 | B48: =A48 -> 16 | D48: =IF($Y$8=1,VLOOKUP(B48,'الثانوية العامة'!$B$3:$AC$151,3,0),IF($Y$8=2,VLOOKUP(B48,'الثانوية العامة'!$B$3:$AC$151,4,0),IF($Y$8=3,VLOOKUP(B48,'الثانوية العامة'!$B$3:$AC$151,5,0),IF($Y$8=4,VLOOKUP(B48,'الثانوية العامة'!$B$3:$AC$151,6,0),IF($Y$8=5,VLOOKUP(B48,'الثانوية العامة'!$B$3:$AC$151,7,0),IF($Y$8=6,VLOOKUP(B48,'الثانوية العامة'!$B$3:$AC$151,8,0),IF($Y$8=7,VLOOKUP(B48,'الثانوية العامة'!$B$3:$AC$151,9,0),IF($Y$8=9,VLOOKUP(B48,'الثانوية العامة'!$B$3:$AC$151,11,0),IF($Y$8=10,VLOOKUP(B48,'الثانوية العامة'!$B$3:$AC$151,12,0),IF($Y$8=11,VLOOKUP(B48,'الثانوية العامة'!$B$3:$AC$151,13,0),IF($Y$8=12,VLOOKUP(B48,'الثانوية العامة'!$B$3:$AC$151,14,0),IF($Y$8=13,VLOOKUP(B48,'الثانوية العامة'!$B$3:$AC$151,15,0),IF($Y$8=8,VLOOKUP(B48,'الثانوية العامة'!$B$3:$AC$151,10,0)))))))))))))) ->  | E48: =IFERROR(VLOOKUP(A48,'البيانات الاساسية'!$AF$3:$AJ$69,2,0),"") ->  | F48: =IFERROR(VLOOKUP(A48,'البيانات الاساسية'!$AF$3:$AJ$69,3,0),"") ->  | G48: =IFERROR(VLOOKUP(A48,'البيانات الاساسية'!$AF$3:$AJ$69,4,0),"") ->  | H48: 1 | I48: =IFERROR(IF(A48="","",VLOOKUP(D48,'البيانات الاساسية'!$E$3:$F$316,2,0)),"") ->  | X48: =IF(ROW()-17<='البيانات الاساسية'!$C$8,ROW()-17,"") ->  | AE48: =VLOOKUP(X33,'البيانات الاساسية'!$AF$3:$AK$32,5,0) -> 0 | AF48: 16 | AG48: =IF(AE48=$U$10,AF48,"") -> 
B49: 16 | C49: =IF($Y$8=1,VLOOKUP(B49,'الثانوية العامة'!$B$3:$AC$151,16,0),IF($Y$8=2,VLOOKUP(B49,'الثانوية العامة'!$B$3:$AC$151,17,0),IF($Y$8=3,VLOOKUP(B49,'الثانوية العامة'!$B$3:$AC$151,18,0),IF($Y$8=4,VLOOKUP(B49,'الثانوية العامة'!$B$3:$AC$151,19,0),IF($Y$8=5,VLOOKUP(B49,'الثانوية العامة'!$B$3:$AC$151,20,0),IF($Y$8=6,VLOOKUP(B49,'الثانوية العامة'!$B$3:$AC$151,21,0),IF($Y$8=7,VLOOKUP(B49,'الثانوية العامة'!$B$3:$AC$151,22,0),IF($Y$8=8,VLOOKUP(B49,'الثانوية العامة'!$B$3:$AC$151,23,0),IF($Y$8=9,VLOOKUP(B49,'الثانوية العامة'!$B$3:$AC$151,24,0),IF($Y$8=10,VLOOKUP(B49,'الثانوية العامة'!$B$3:$AC$151,25,0),IF($Y$8=11,VLOOKUP(B49,'الثانوية العامة'!$B$3:$AC$151,26,0),IF($Y$8=12,VLOOKUP(B49,'الثانوية العامة'!$B$3:$AC$151,27,0),IF($Y$8=13,VLOOKUP(B49,'الثانوية العامة'!$B$3:$AC$151,28,0)))))))))))))) ->  | H49: 2 | I49: =IFERROR(IF(A48="","",VLOOKUP(C49,'البيانات الاساسية'!$E$3:$F$316,2,0)),"") ->  | X49: =IF(ROW()-17<='البيانات الاساسية'!$C$8,ROW()-17,"") -> 
A50: =IF($E$7="",AG50,AF50) -> 17 | B50: =A50 -> 17 | D50: =IF($Y$8=1,VLOOKUP(B50,'الثانوية العامة'!$B$3:$AC$151,3,0),IF($Y$8=2,VLOOKUP(B50,'الثانوية العامة'!$B$3:$AC$151,4,0),IF($Y$8=3,VLOOKUP(B50,'الثانوية العامة'!$B$3:$AC$151,5,0),IF($Y$8=4,VLOOKUP(B50,'الثانوية العامة'!$B$3:$AC$151,6,0),IF($Y$8=5,VLOOKUP(B50,'الثانوية العامة'!$B$3:$AC$151,7,0),IF($Y$8=6,VLOOKUP(B50,'الثانوية العامة'!$B$3:$AC$151,8,0),IF($Y$8=7,VLOOKUP(B50,'الثانوية العامة'!$B$3:$AC$151,9,0),IF($Y$8=9,VLOOKUP(B50,'الثانوية العامة'!$B$3:$AC$151,11,0),IF($Y$8=10,VLOOKUP(B50,'الثانوية العامة'!$B$3:$AC$151,12,0),IF($Y$8=11,VLOOKUP(B50,'الثانوية العامة'!$B$3:$AC$151,13,0),IF($Y$8=12,VLOOKUP(B50,'الثانوية العامة'!$B$3:$AC$151,14,0),IF($Y$8=13,VLOOKUP(B50,'الثانوية العامة'!$B$3:$AC$151,15,0),IF($Y$8=8,VLOOKUP(B50,'الثانوية العامة'!$B$3:$AC$151,10,0)))))))))))))) ->  | E50: =IFERROR(VLOOKUP(A50,'البيانات الاساسية'!$AF$3:$AJ$69,2,0),"") ->  | F50: =IFERROR(VLOOKUP(A50,'البيانات الاساسية'!$AF$3:$AJ$69,3,0),"") ->  | G50: =IFERROR(VLOOKUP(A50,'البيانات الاساسية'!$AF$3:$AJ$69,4,0),"") ->  | H50: 1 | I50: =IFERROR(IF(A50="","",VLOOKUP(D50,'البيانات الاساسية'!$E$3:$F$316,2,0)),"") ->  | X50: =IF(ROW()-17<='البيانات الاساسية'!$C$8,ROW()-17,"") ->  | AE50: =VLOOKUP(X34,'البيانات الاساسية'!$AF$3:$AK$32,5,0) -> 0 | AF50: 17 | AG50: =IF(AE50=$U$10,AF50,"") -> 
B51: 17 | C51: =IF($Y$8=1,VLOOKUP(B51,'الثانوية العامة'!$B$3:$AC$151,16,0),IF($Y$8=2,VLOOKUP(B51,'الثانوية العامة'!$B$3:$AC$151,17,0),IF($Y$8=3,VLOOKUP(B51,'الثانوية العامة'!$B$3:$AC$151,18,0),IF($Y$8=4,VLOOKUP(B51,'الثانوية العامة'!$B$3:$AC$151,19,0),IF($Y$8=5,VLOOKUP(B51,'الثانوية العامة'!$B$3:$AC$151,20,0),IF($Y$8=6,VLOOKUP(B51,'الثانوية العامة'!$B$3:$AC$151,21,0),IF($Y$8=7,VLOOKUP(B51,'الثانوية العامة'!$B$3:$AC$151,22,0),IF($Y$8=8,VLOOKUP(B51,'الثانوية العامة'!$B$3:$AC$151,23,0),IF($Y$8=9,VLOOKUP(B51,'الثانوية العامة'!$B$3:$AC$151,24,0),IF($Y$8=10,VLOOKUP(B51,'الثانوية العامة'!$B$3:$AC$151,25,0),IF($Y$8=11,VLOOKUP(B51,'الثانوية العامة'!$B$3:$AC$151,26,0),IF($Y$8=12,VLOOKUP(B51,'الثانوية العامة'!$B$3:$AC$151,27,0),IF($Y$8=13,VLOOKUP(B51,'الثانوية العامة'!$B$3:$AC$151,28,0)))))))))))))) ->  | H51: 2 | I51: =IFERROR(IF(A50="","",VLOOKUP(C51,'البيانات الاساسية'!$E$3:$F$316,2,0)),"") ->  | X51: =IF(ROW()-17<='البيانات الاساسية'!$C$8,ROW()-17,"") -> 
A52: =IF($E$7="",AG52,AF52) -> 18 | B52: =A52 -> 18 | D52: =IF($Y$8=1,VLOOKUP(B52,'الثانوية العامة'!$B$3:$AC$151,3,0),IF($Y$8=2,VLOOKUP(B52,'الثانوية العامة'!$B$3:$AC$151,4,0),IF($Y$8=3,VLOOKUP(B52,'الثانوية العامة'!$B$3:$AC$151,5,0),IF($Y$8=4,VLOOKUP(B52,'الثانوية العامة'!$B$3:$AC$151,6,0),IF($Y$8=5,VLOOKUP(B52,'الثانوية العامة'!$B$3:$AC$151,7,0),IF($Y$8=6,VLOOKUP(B52,'الثانوية العامة'!$B$3:$AC$151,8,0),IF($Y$8=7,VLOOKUP(B52,'الثانوية العامة'!$B$3:$AC$151,9,0),IF($Y$8=9,VLOOKUP(B52,'الثانوية العامة'!$B$3:$AC$151,11,0),IF($Y$8=10,VLOOKUP(B52,'الثانوية العامة'!$B$3:$AC$151,12,0),IF($Y$8=11,VLOOKUP(B52,'الثانوية العامة'!$B$3:$AC$151,13,0),IF($Y$8=12,VLOOKUP(B52,'الثانوية العامة'!$B$3:$AC$151,14,0),IF($Y$8=13,VLOOKUP(B52,'الثانوية العامة'!$B$3:$AC$151,15,0),IF($Y$8=8,VLOOKUP(B52,'الثانوية العامة'!$B$3:$AC$151,10,0)))))))))))))) ->  | E52: =IFERROR(VLOOKUP(A52,'البيانات الاساسية'!$AF$3:$AJ$69,2,0),"") ->  | F52: =IFERROR(VLOOKUP(A52,'البيانات الاساسية'!$AF$3:$AJ$69,3,0),"") ->  | G52: =IFERROR(VLOOKUP(A52,'البيانات الاساسية'!$AF$3:$AJ$69,4,0),"") ->  | H52: 1 | I52: =IFERROR(IF(A52="","",VLOOKUP(D52,'البيانات الاساسية'!$E$3:$F$316,2,0)),"") ->  | X52: =IF(ROW()-17<='البيانات الاساسية'!$C$8,ROW()-17,"") ->  | AE52: =VLOOKUP(X35,'البيانات الاساسية'!$AF$3:$AK$32,5,0) -> 0 | AF52: 18 | AG52: =IF(AE52=$U$10,AF52,"") -> 
B53: 18 | C53: =IF($Y$8=1,VLOOKUP(B53,'الثانوية العامة'!$B$3:$AC$151,16,0),IF($Y$8=2,VLOOKUP(B53,'الثانوية العامة'!$B$3:$AC$151,17,0),IF($Y$8=3,VLOOKUP(B53,'الثانوية العامة'!$B$3:$AC$151,18,0),IF($Y$8=4,VLOOKUP(B53,'الثانوية العامة'!$B$3:$AC$151,19,0),IF($Y$8=5,VLOOKUP(B53,'الثانوية العامة'!$B$3:$AC$151,20,0),IF($Y$8=6,VLOOKUP(B53,'الثانوية العامة'!$B$3:$AC$151,21,0),IF($Y$8=7,VLOOKUP(B53,'الثانوية العامة'!$B$3:$AC$151,22,0),IF($Y$8=8,VLOOKUP(B53,'الثانوية العامة'!$B$3:$AC$151,23,0),IF($Y$8=9,VLOOKUP(B53,'الثانوية العامة'!$B$3:$AC$151,24,0),IF($Y$8=10,VLOOKUP(B53,'الثانوية العامة'!$B$3:$AC$151,25,0),IF($Y$8=11,VLOOKUP(B53,'الثانوية العامة'!$B$3:$AC$151,26,0),IF($Y$8=12,VLOOKUP(B53,'الثانوية العامة'!$B$3:$AC$151,27,0),IF($Y$8=13,VLOOKUP(B53,'الثانوية العامة'!$B$3:$AC$151,28,0)))))))))))))) ->  | H53: 2 | I53: =IFERROR(IF(A52="","",VLOOKUP(C53,'البيانات الاساسية'!$E$3:$F$316,2,0)),"") ->  | X53: =IF(ROW()-2<='البيانات الاساسية'!$C$8,ROW()-17,"") -> 
A54: =IF($E$7="",AG54,AF54) -> 19 | B54: =A54 -> 19 | D54: =IF($Y$8=1,VLOOKUP(B54,'الثانوية العامة'!$B$3:$AC$151,3,0),IF($Y$8=2,VLOOKUP(B54,'الثانوية العامة'!$B$3:$AC$151,4,0),IF($Y$8=3,VLOOKUP(B54,'الثانوية العامة'!$B$3:$AC$151,5,0),IF($Y$8=4,VLOOKUP(B54,'الثانوية العامة'!$B$3:$AC$151,6,0),IF($Y$8=5,VLOOKUP(B54,'الثانوية العامة'!$B$3:$AC$151,7,0),IF($Y$8=6,VLOOKUP(B54,'الثانوية العامة'!$B$3:$AC$151,8,0),IF($Y$8=7,VLOOKUP(B54,'الثانوية العامة'!$B$3:$AC$151,9,0),IF($Y$8=9,VLOOKUP(B54,'الثانوية العامة'!$B$3:$AC$151,11,0),IF($Y$8=10,VLOOKUP(B54,'الثانوية العامة'!$B$3:$AC$151,12,0),IF($Y$8=11,VLOOKUP(B54,'الثانوية العامة'!$B$3:$AC$151,13,0),IF($Y$8=12,VLOOKUP(B54,'الثانوية العامة'!$B$3:$AC$151,14,0),IF($Y$8=13,VLOOKUP(B54,'الثانوية العامة'!$B$3:$AC$151,15,0),IF($Y$8=8,VLOOKUP(B54,'الثانوية العامة'!$B$3:$AC$151,10,0)))))))))))))) ->  | E54: =IFERROR(VLOOKUP(A54,'البيانات الاساسية'!$AF$3:$AJ$69,2,0),"") ->  | F54: =IFERROR(VLOOKUP(A54,'البيانات الاساسية'!$AF$3:$AJ$69,3,0),"") ->  | G54: =IFERROR(VLOOKUP(A54,'البيانات الاساسية'!$AF$3:$AJ$69,4,0),"") ->  | H54: 1 | I54: =IFERROR(IF(A54="","",VLOOKUP(D54,'البيانات الاساسية'!$E$3:$F$316,2,0)),"") ->  | X54: =IF(ROW()-2<='البيانات الاساسية'!$C$8,ROW()-17,"") ->  | AE54: =VLOOKUP(X36,'البيانات الاساسية'!$AF$3:$AK$32,5,0) -> 0 | AF54: 19 | AG54: =IF(AE54=$U$10,AF54,"") -> 
B55: 19 | C55: =IF($Y$8=1,VLOOKUP(B55,'الثانوية العامة'!$B$3:$AC$151,16,0),IF($Y$8=2,VLOOKUP(B55,'الثانوية العامة'!$B$3:$AC$151,17,0),IF($Y$8=3,VLOOKUP(B55,'الثانوية العامة'!$B$3:$AC$151,18,0),IF($Y$8=4,VLOOKUP(B55,'الثانوية العامة'!$B$3:$AC$151,19,0),IF($Y$8=5,VLOOKUP(B55,'الثانوية العامة'!$B$3:$AC$151,20,0),IF($Y$8=6,VLOOKUP(B55,'الثانوية العامة'!$B$3:$AC$151,21,0),IF($Y$8=7,VLOOKUP(B55,'الثانوية العامة'!$B$3:$AC$151,22,0),IF($Y$8=8,VLOOKUP(B55,'الثانوية العامة'!$B$3:$AC$151,23,0),IF($Y$8=9,VLOOKUP(B55,'الثانوية العامة'!$B$3:$AC$151,24,0),IF($Y$8=10,VLOOKUP(B55,'الثانوية العامة'!$B$3:$AC$151,25,0),IF($Y$8=11,VLOOKUP(B55,'الثانوية العامة'!$B$3:$AC$151,26,0),IF($Y$8=12,VLOOKUP(B55,'الثانوية العامة'!$B$3:$AC$151,27,0),IF($Y$8=13,VLOOKUP(B55,'الثانوية العامة'!$B$3:$AC$151,28,0)))))))))))))) ->  | H55: 2 | I55: =IFERROR(IF(A54="","",VLOOKUP(C55,'البيانات الاساسية'!$E$3:$F$316,2,0)),"") ->  | X55: =IF(ROW()-2<='البيانات الاساسية'!$C$8,ROW()-17,"") -> 
A56: =IF($E$7="",AG56,AF56) -> 20 | B56: =A56 -> 20 | D56: =IF($Y$8=1,VLOOKUP(B56,'الثانوية العامة'!$B$3:$AC$151,3,0),IF($Y$8=2,VLOOKUP(B56,'الثانوية العامة'!$B$3:$AC$151,4,0),IF($Y$8=3,VLOOKUP(B56,'الثانوية العامة'!$B$3:$AC$151,5,0),IF($Y$8=4,VLOOKUP(B56,'الثانوية العامة'!$B$3:$AC$151,6,0),IF($Y$8=5,VLOOKUP(B56,'الثانوية العامة'!$B$3:$AC$151,7,0),IF($Y$8=6,VLOOKUP(B56,'الثانوية العامة'!$B$3:$AC$151,8,0),IF($Y$8=7,VLOOKUP(B56,'الثانوية العامة'!$B$3:$AC$151,9,0),IF($Y$8=9,VLOOKUP(B56,'الثانوية العامة'!$B$3:$AC$151,11,0),IF($Y$8=10,VLOOKUP(B56,'الثانوية العامة'!$B$3:$AC$151,12,0),IF($Y$8=11,VLOOKUP(B56,'الثانوية العامة'!$B$3:$AC$151,13,0),IF($Y$8=12,VLOOKUP(B56,'الثانوية العامة'!$B$3:$AC$151,14,0),IF($Y$8=13,VLOOKUP(B56,'الثانوية العامة'!$B$3:$AC$151,15,0),IF($Y$8=8,VLOOKUP(B56,'الثانوية العامة'!$B$3:$AC$151,10,0)))))))))))))) ->  | E56: =IFERROR(VLOOKUP(A56,'البيانات الاساسية'!$AF$3:$AJ$69,2,0),"") ->  | F56: =IFERROR(VLOOKUP(A56,'البيانات الاساسية'!$AF$3:$AJ$69,3,0),"") ->  | G56: =IFERROR(VLOOKUP(A56,'البيانات الاساسية'!$AF$3:$AJ$69,4,0),"") ->  | H56: 1 | I56: =IFERROR(IF(A56="","",VLOOKUP(D56,'البيانات الاساسية'!$E$3:$F$316,2,0)),"") ->  | X56: =IF(ROW()-2<='البيانات الاساسية'!$C$8,ROW()-17,"") ->  | AE56: =VLOOKUP(X37,'البيانات الاساسية'!$AF$3:$AK$32,5,0) -> 0 | AF56: 20 | AG56: =IF(AE56=$U$10,AF56,"") -> 
B57: 20 | C57: =IF($Y$8=1,VLOOKUP(B57,'الثانوية العامة'!$B$3:$AC$151,16,0),IF($Y$8=2,VLOOKUP(B57,'الثانوية العامة'!$B$3:$AC$151,17,0),IF($Y$8=3,VLOOKUP(B57,'الثانوية العامة'!$B$3:$AC$151,18,0),IF($Y$8=4,VLOOKUP(B57,'الثانوية العامة'!$B$3:$AC$151,19,0),IF($Y$8=5,VLOOKUP(B57,'الثانوية العامة'!$B$3:$AC$151,20,0),IF($Y$8=6,VLOOKUP(B57,'الثانوية العامة'!$B$3:$AC$151,21,0),IF($Y$8=7,VLOOKUP(B57,'الثانوية العامة'!$B$3:$AC$151,22,0),IF($Y$8=8,VLOOKUP(B57,'الثانوية العامة'!$B$3:$AC$151,23,0),IF($Y$8=9,VLOOKUP(B57,'الثانوية العامة'!$B$3:$AC$151,24,0),IF($Y$8=10,VLOOKUP(B57,'الثانوية العامة'!$B$3:$AC$151,25,0),IF($Y$8=11,VLOOKUP(B57,'الثانوية العامة'!$B$3:$AC$151,26,0),IF($Y$8=12,VLOOKUP(B57,'الثانوية العامة'!$B$3:$AC$151,27,0),IF($Y$8=13,VLOOKUP(B57,'الثانوية العامة'!$B$3:$AC$151,28,0)))))))))))))) ->  | H57: 2 | I57: =IFERROR(IF(A56="","",VLOOKUP(C57,'البيانات الاساسية'!$E$3:$F$316,2,0)),"") ->  | X57: =IF(ROW()-2<='البيانات الاساسية'!$C$8,ROW()-17,"") -> 
A58: =IF($E$7="",AG58,AF58) -> 21 | B58: =A58 -> 21 | D58: =IF($Y$8=1,VLOOKUP(B58,'الثانوية العامة'!$B$3:$AC$151,3,0),IF($Y$8=2,VLOOKUP(B58,'الثانوية العامة'!$B$3:$AC$151,4,0),IF($Y$8=3,VLOOKUP(B58,'الثانوية العامة'!$B$3:$AC$151,5,0),IF($Y$8=4,VLOOKUP(B58,'الثانوية العامة'!$B$3:$AC$151,6,0),IF($Y$8=5,VLOOKUP(B58,'الثانوية العامة'!$B$3:$AC$151,7,0),IF($Y$8=6,VLOOKUP(B58,'الثانوية العامة'!$B$3:$AC$151,8,0),IF($Y$8=7,VLOOKUP(B58,'الثانوية العامة'!$B$3:$AC$151,9,0),IF($Y$8=9,VLOOKUP(B58,'الثانوية العامة'!$B$3:$AC$151,11,0),IF($Y$8=10,VLOOKUP(B58,'الثانوية العامة'!$B$3:$AC$151,12,0),IF($Y$8=11,VLOOKUP(B58,'الثانوية العامة'!$B$3:$AC$151,13,0),IF($Y$8=12,VLOOKUP(B58,'الثانوية العامة'!$B$3:$AC$151,14,0),IF($Y$8=13,VLOOKUP(B58,'الثانوية العامة'!$B$3:$AC$151,15,0),IF($Y$8=8,VLOOKUP(B58,'الثانوية العامة'!$B$3:$AC$151,10,0)))))))))))))) ->  | E58: =IFERROR(VLOOKUP(A58,'البيانات الاساسية'!$AF$3:$AJ$69,2,0),"") ->  | F58: =IFERROR(VLOOKUP(A58,'البيانات الاساسية'!$AF$3:$AJ$69,3,0),"") ->  | G58: =IFERROR(VLOOKUP(A58,'البيانات الاساسية'!$AF$3:$AJ$69,4,0),"") ->  | H58: 1 | I58: =IFERROR(IF(A58="","",VLOOKUP(D58,'البيانات الاساسية'!$E$3:$F$316,2,0)),"") ->  | X58: =IF(ROW()-2<='البيانات الاساسية'!$C$8,ROW()-17,"") ->  | AE58: =VLOOKUP(X38,'البيانات الاساسية'!$AF$3:$AK$32,5,0) -> 0 | AF58: 21 | AG58: =IF(AE58=$U$10,AF58,"") -> 
B59: 21 | C59: =IF($Y$8=1,VLOOKUP(B59,'الثانوية العامة'!$B$3:$AC$151,16,0),IF($Y$8=2,VLOOKUP(B59,'الثانوية العامة'!$B$3:$AC$151,17,0),IF($Y$8=3,VLOOKUP(B59,'الثانوية العامة'!$B$3:$AC$151,18,0),IF($Y$8=4,VLOOKUP(B59,'الثانوية العامة'!$B$3:$AC$151,19,0),IF($Y$8=5,VLOOKUP(B59,'الثانوية العامة'!$B$3:$AC$151,20,0),IF($Y$8=6,VLOOKUP(B59,'الثانوية العامة'!$B$3:$AC$151,21,0),IF($Y$8=7,VLOOKUP(B59,'الثانوية العامة'!$B$3:$AC$151,22,0),IF($Y$8=8,VLOOKUP(B59,'الثانوية العامة'!$B$3:$AC$151,23,0),IF($Y$8=9,VLOOKUP(B59,'الثانوية العامة'!$B$3:$AC$151,24,0),IF($Y$8=10,VLOOKUP(B59,'الثانوية العامة'!$B$3:$AC$151,25,0),IF($Y$8=11,VLOOKUP(B59,'الثانوية العامة'!$B$3:$AC$151,26,0),IF($Y$8=12,VLOOKUP(B59,'الثانوية العامة'!$B$3:$AC$151,27,0),IF($Y$8=13,VLOOKUP(B59,'الثانوية العامة'!$B$3:$AC$151,28,0)))))))))))))) ->  | H59: 2 | I59: =IFERROR(IF(A58="","",VLOOKUP(C59,'البيانات الاساسية'!$E$3:$F$316,2,0)),"") ->  | X59: =IF(ROW()-2<='البيانات الاساسية'!$C$8,ROW()-17,"") -> 
A60: =IF($E$7="",AG60,AF60) -> 22 | B60: =A60 -> 22 | D60: =IF($Y$8=1,VLOOKUP(B60,'الثانوية العامة'!$B$3:$AC$151,3,0),IF($Y$8=2,VLOOKUP(B60,'الثانوية العامة'!$B$3:$AC$151,4,0),IF($Y$8=3,VLOOKUP(B60,'الثانوية العامة'!$B$3:$AC$151,5,0),IF($Y$8=4,VLOOKUP(B60,'الثانوية العامة'!$B$3:$AC$151,6,0),IF($Y$8=5,VLOOKUP(B60,'الثانوية العامة'!$B$3:$AC$151,7,0),IF($Y$8=6,VLOOKUP(B60,'الثانوية العامة'!$B$3:$AC$151,8,0),IF($Y$8=7,VLOOKUP(B60,'الثانوية العامة'!$B$3:$AC$151,9,0),IF($Y$8=9,VLOOKUP(B60,'الثانوية العامة'!$B$3:$AC$151,11,0),IF($Y$8=10,VLOOKUP(B60,'الثانوية العامة'!$B$3:$AC$151,12,0),IF($Y$8=11,VLOOKUP(B60,'الثانوية العامة'!$B$3:$AC$151,13,0),IF($Y$8=12,VLOOKUP(B60,'الثانوية العامة'!$B$3:$AC$151,14,0),IF($Y$8=13,VLOOKUP(B60,'الثانوية العامة'!$B$3:$AC$151,15,0),IF($Y$8=8,VLOOKUP(B60,'الثانوية العامة'!$B$3:$AC$151,10,0)))))))))))))) ->  | E60: =IFERROR(VLOOKUP(A60,'البيانات الاساسية'!$AF$3:$AJ$69,2,0),"") ->  | F60: =IFERROR(VLOOKUP(A60,'البيانات الاساسية'!$AF$3:$AJ$69,3,0),"") ->  | G60: =IFERROR(VLOOKUP(A60,'البيانات الاساسية'!$AF$3:$AJ$69,4,0),"") ->  | H60: 1 | I60: =IFERROR(IF(A60="","",VLOOKUP(D60,'البيانات الاساسية'!$E$3:$F$316,2,0)),"") ->  | X60: =IF(ROW()-2<='البيانات الاساسية'!$C$8,ROW()-17,"") ->  | AE60: =VLOOKUP(X39,'البيانات الاساسية'!$AF$3:$AK$32,5,0) -> 0 | AF60: 22 | AG60: =IF(AE60=$U$10,AF60,"") -> 
B61: 22 | C61: =IF($Y$8=1,VLOOKUP(B61,'الثانوية العامة'!$B$3:$AC$151,16,0),IF($Y$8=2,VLOOKUP(B61,'الثانوية العامة'!$B$3:$AC$151,17,0),IF($Y$8=3,VLOOKUP(B61,'الثانوية العامة'!$B$3:$AC$151,18,0),IF($Y$8=4,VLOOKUP(B61,'الثانوية العامة'!$B$3:$AC$151,19,0),IF($Y$8=5,VLOOKUP(B61,'الثانوية العامة'!$B$3:$AC$151,20,0),IF($Y$8=6,VLOOKUP(B61,'الثانوية العامة'!$B$3:$AC$151,21,0),IF($Y$8=7,VLOOKUP(B61,'الثانوية العامة'!$B$3:$AC$151,22,0),IF($Y$8=8,VLOOKUP(B61,'الثانوية العامة'!$B$3:$AC$151,23,0),IF($Y$8=9,VLOOKUP(B61,'الثانوية العامة'!$B$3:$AC$151,24,0),IF($Y$8=10,VLOOKUP(B61,'الثانوية العامة'!$B$3:$AC$151,25,0),IF($Y$8=11,VLOOKUP(B61,'الثانوية العامة'!$B$3:$AC$151,26,0),IF($Y$8=12,VLOOKUP(B61,'الثانوية العامة'!$B$3:$AC$151,27,0),IF($Y$8=13,VLOOKUP(B61,'الثانوية العامة'!$B$3:$AC$151,28,0)))))))))))))) ->  | H61: 2 | I61: =IFERROR(IF(A60="","",VLOOKUP(C61,'البيانات الاساسية'!$E$3:$F$316,2,0)),"") ->  | X61: =IF(ROW()-2<='البيانات الاساسية'!$C$8,ROW()-17,"") -> 
A62: =IF($E$7="",AG62,AF62) -> 23 | B62: =A62 -> 23 | D62: =IF($Y$8=1,VLOOKUP(B62,'الثانوية العامة'!$B$3:$AC$151,3,0),IF($Y$8=2,VLOOKUP(B62,'الثانوية العامة'!$B$3:$AC$151,4,0),IF($Y$8=3,VLOOKUP(B62,'الثانوية العامة'!$B$3:$AC$151,5,0),IF($Y$8=4,VLOOKUP(B62,'الثانوية العامة'!$B$3:$AC$151,6,0),IF($Y$8=5,VLOOKUP(B62,'الثانوية العامة'!$B$3:$AC$151,7,0),IF($Y$8=6,VLOOKUP(B62,'الثانوية العامة'!$B$3:$AC$151,8,0),IF($Y$8=7,VLOOKUP(B62,'الثانوية العامة'!$B$3:$AC$151,9,0),IF($Y$8=9,VLOOKUP(B62,'الثانوية العامة'!$B$3:$AC$151,11,0),IF($Y$8=10,VLOOKUP(B62,'الثانوية العامة'!$B$3:$AC$151,12,0),IF($Y$8=11,VLOOKUP(B62,'الثانوية العامة'!$B$3:$AC$151,13,0),IF($Y$8=12,VLOOKUP(B62,'الثانوية العامة'!$B$3:$AC$151,14,0),IF($Y$8=13,VLOOKUP(B62,'الثانوية العامة'!$B$3:$AC$151,15,0),IF($Y$8=8,VLOOKUP(B62,'الثانوية العامة'!$B$3:$AC$151,10,0)))))))))))))) ->  | E62: =IFERROR(VLOOKUP(A62,'البيانات الاساسية'!$AF$3:$AJ$69,2,0),"") ->  | F62: =IFERROR(VLOOKUP(A62,'البيانات الاساسية'!$AF$3:$AJ$69,3,0),"") ->  | G62: =IFERROR(VLOOKUP(A62,'البيانات الاساسية'!$AF$3:$AJ$69,4,0),"") ->  | H62: 1 | I62: =IFERROR(IF(A62="","",VLOOKUP(D62,'البيانات الاساسية'!$E$3:$F$316,2,0)),"") ->  | X62: =IF(ROW()-2<='البيانات الاساسية'!$C$8,ROW()-17,"") ->  | AE62: =VLOOKUP(X40,'البيانات الاساسية'!$AF$3:$AK$32,5,0) -> 0 | AF62: 23 | AG62: =IF(AE62=$U$10,AF62,"") -> 
B63: 23 | C63: =IF($Y$8=1,VLOOKUP(B63,'الثانوية العامة'!$B$3:$AC$151,16,0),IF($Y$8=2,VLOOKUP(B63,'الثانوية العامة'!$B$3:$AC$151,17,0),IF($Y$8=3,VLOOKUP(B63,'الثانوية العامة'!$B$3:$AC$151,18,0),IF($Y$8=4,VLOOKUP(B63,'الثانوية العامة'!$B$3:$AC$151,19,0),IF($Y$8=5,VLOOKUP(B63,'الثانوية العامة'!$B$3:$AC$151,20,0),IF($Y$8=6,VLOOKUP(B63,'الثانوية العامة'!$B$3:$AC$151,21,0),IF($Y$8=7,VLOOKUP(B63,'الثانوية العامة'!$B$3:$AC$151,22,0),IF($Y$8=8,VLOOKUP(B63,'الثانوية العامة'!$B$3:$AC$151,23,0),IF($Y$8=9,VLOOKUP(B63,'الثانوية العامة'!$B$3:$AC$151,24,0),IF($Y$8=10,VLOOKUP(B63,'الثانوية العامة'!$B$3:$AC$151,25,0),IF($Y$8=11,VLOOKUP(B63,'الثانوية العامة'!$B$3:$AC$151,26,0),IF($Y$8=12,VLOOKUP(B63,'الثانوية العامة'!$B$3:$AC$151,27,0),IF($Y$8=13,VLOOKUP(B63,'الثانوية العامة'!$B$3:$AC$151,28,0)))))))))))))) ->  | H63: 2 | I63: =IFERROR(IF(A62="","",VLOOKUP(C63,'البيانات الاساسية'!$E$3:$F$316,2,0)),"") ->  | X63: =IF(ROW()-2<='البيانات الاساسية'!$C$8,ROW()-17,"") -> 
A64: =IF($E$7="",AG64,AF64) -> 24 | B64: =A64 -> 24 | D64: =IF($Y$8=1,VLOOKUP(B64,'الثانوية العامة'!$B$3:$AC$151,3,0),IF($Y$8=2,VLOOKUP(B64,'الثانوية العامة'!$B$3:$AC$151,4,0),IF($Y$8=3,VLOOKUP(B64,'الثانوية العامة'!$B$3:$AC$151,5,0),IF($Y$8=4,VLOOKUP(B64,'الثانوية العامة'!$B$3:$AC$151,6,0),IF($Y$8=5,VLOOKUP(B64,'الثانوية العامة'!$B$3:$AC$151,7,0),IF($Y$8=6,VLOOKUP(B64,'الثانوية العامة'!$B$3:$AC$151,8,0),IF($Y$8=7,VLOOKUP(B64,'الثانوية العامة'!$B$3:$AC$151,9,0),IF($Y$8=9,VLOOKUP(B64,'الثانوية العامة'!$B$3:$AC$151,11,0),IF($Y$8=10,VLOOKUP(B64,'الثانوية العامة'!$B$3:$AC$151,12,0),IF($Y$8=11,VLOOKUP(B64,'الثانوية العامة'!$B$3:$AC$151,13,0),IF($Y$8=12,VLOOKUP(B64,'الثانوية العامة'!$B$3:$AC$151,14,0),IF($Y$8=13,VLOOKUP(B64,'الثانوية العامة'!$B$3:$AC$151,15,0),IF($Y$8=8,VLOOKUP(B64,'الثانوية العامة'!$B$3:$AC$151,10,0)))))))))))))) ->  | E64: =IFERROR(VLOOKUP(A64,'البيانات الاساسية'!$AF$3:$AJ$69,2,0),"") ->  | F64: =IFERROR(VLOOKUP(A64,'البيانات الاساسية'!$AF$3:$AJ$69,3,0),"") ->  | G64: =IFERROR(VLOOKUP(A64,'البيانات الاساسية'!$AF$3:$AJ$69,4,0),"") ->  | H64: 1 | I64: =IFERROR(IF(A64="","",VLOOKUP(D64,'البيانات الاساسية'!$E$3:$F$316,2,0)),"") ->  | X64: =IF(ROW()-2<='البيانات الاساسية'!$C$8,ROW()-17,"") ->  | AE64: =VLOOKUP(X41,'البيانات الاساسية'!$AF$3:$AK$32,5,0) -> 0 | AF64: 24 | AG64: =IF(AE64=$U$10,AF64,"") -> 
B65: 24 | C65: =IF($Y$8=1,VLOOKUP(B65,'الثانوية العامة'!$B$3:$AC$151,16,0),IF($Y$8=2,VLOOKUP(B65,'الثانوية العامة'!$B$3:$AC$151,17,0),IF($Y$8=3,VLOOKUP(B65,'الثانوية العامة'!$B$3:$AC$151,18,0),IF($Y$8=4,VLOOKUP(B65,'الثانوية العامة'!$B$3:$AC$151,19,0),IF($Y$8=5,VLOOKUP(B65,'الثانوية العامة'!$B$3:$AC$151,20,0),IF($Y$8=6,VLOOKUP(B65,'الثانوية العامة'!$B$3:$AC$151,21,0),IF($Y$8=7,VLOOKUP(B65,'الثانوية العامة'!$B$3:$AC$151,22,0),IF($Y$8=8,VLOOKUP(B65,'الثانوية العامة'!$B$3:$AC$151,23,0),IF($Y$8=9,VLOOKUP(B65,'الثانوية العامة'!$B$3:$AC$151,24,0),IF($Y$8=10,VLOOKUP(B65,'الثانوية العامة'!$B$3:$AC$151,25,0),IF($Y$8=11,VLOOKUP(B65,'الثانوية العامة'!$B$3:$AC$151,26,0),IF($Y$8=12,VLOOKUP(B65,'الثانوية العامة'!$B$3:$AC$151,27,0),IF($Y$8=13,VLOOKUP(B65,'الثانوية العامة'!$B$3:$AC$151,28,0)))))))))))))) ->  | H65: 2 | I65: =IFERROR(IF(A64="","",VLOOKUP(C65,'البيانات الاساسية'!$E$3:$F$316,2,0)),"") ->  | X65: =IF(ROW()-2<='البيانات الاساسية'!$C$8,ROW()-17,"") -> 
A66: =IF($E$7="",AG66,AF66) -> 25 | B66: =A66 -> 25 | D66: =IF($Y$8=1,VLOOKUP(B66,'الثانوية العامة'!$B$3:$AC$151,3,0),IF($Y$8=2,VLOOKUP(B66,'الثانوية العامة'!$B$3:$AC$151,4,0),IF($Y$8=3,VLOOKUP(B66,'الثانوية العامة'!$B$3:$AC$151,5,0),IF($Y$8=4,VLOOKUP(B66,'الثانوية العامة'!$B$3:$AC$151,6,0),IF($Y$8=5,VLOOKUP(B66,'الثانوية العامة'!$B$3:$AC$151,7,0),IF($Y$8=6,VLOOKUP(B66,'الثانوية العامة'!$B$3:$AC$151,8,0),IF($Y$8=7,VLOOKUP(B66,'الثانوية العامة'!$B$3:$AC$151,9,0),IF($Y$8=9,VLOOKUP(B66,'الثانوية العامة'!$B$3:$AC$151,11,0),IF($Y$8=10,VLOOKUP(B66,'الثانوية العامة'!$B$3:$AC$151,12,0),IF($Y$8=11,VLOOKUP(B66,'الثانوية العامة'!$B$3:$AC$151,13,0),IF($Y$8=12,VLOOKUP(B66,'الثانوية العامة'!$B$3:$AC$151,14,0),IF($Y$8=13,VLOOKUP(B66,'الثانوية العامة'!$B$3:$AC$151,15,0),IF($Y$8=8,VLOOKUP(B66,'الثانوية العامة'!$B$3:$AC$151,10,0)))))))))))))) ->  | E66: =IFERROR(VLOOKUP(A66,'البيانات الاساسية'!$AF$3:$AJ$69,2,0),"") ->  | F66: =IFERROR(VLOOKUP(A66,'البيانات الاساسية'!$AF$3:$AJ$69,3,0),"") ->  | G66: =IFERROR(VLOOKUP(A66,'البيانات الاساسية'!$AF$3:$AJ$69,4,0),"") ->  | H66: 1 | I66: =IFERROR(IF(A66="","",VLOOKUP(D66,'البيانات الاساسية'!$E$3:$F$316,2,0)),"") ->  | X66: =IF(ROW()-2<='البيانات الاساسية'!$C$8,ROW()-17,"") ->  | AE66: =VLOOKUP(X42,'البيانات الاساسية'!$AF$3:$AK$32,5,0) -> 0 | AF66: 25 | AG66: =IF(AE66=$U$10,AF66,"") -> 
B67: 25 | C67: =IF($Y$8=1,VLOOKUP(B67,'الثانوية العامة'!$B$3:$AC$151,16,0),IF($Y$8=2,VLOOKUP(B67,'الثانوية العامة'!$B$3:$AC$151,17,0),IF($Y$8=3,VLOOKUP(B67,'الثانوية العامة'!$B$3:$AC$151,18,0),IF($Y$8=4,VLOOKUP(B67,'الثانوية العامة'!$B$3:$AC$151,19,0),IF($Y$8=5,VLOOKUP(B67,'الثانوية العامة'!$B$3:$AC$151,20,0),IF($Y$8=6,VLOOKUP(B67,'الثانوية العامة'!$B$3:$AC$151,21,0),IF($Y$8=7,VLOOKUP(B67,'الثانوية العامة'!$B$3:$AC$151,22,0),IF($Y$8=8,VLOOKUP(B67,'الثانوية العامة'!$B$3:$AC$151,23,0),IF($Y$8=9,VLOOKUP(B67,'الثانوية العامة'!$B$3:$AC$151,24,0),IF($Y$8=10,VLOOKUP(B67,'الثانوية العامة'!$B$3:$AC$151,25,0),IF($Y$8=11,VLOOKUP(B67,'الثانوية العامة'!$B$3:$AC$151,26,0),IF($Y$8=12,VLOOKUP(B67,'الثانوية العامة'!$B$3:$AC$151,27,0),IF($Y$8=13,VLOOKUP(B67,'الثانوية العامة'!$B$3:$AC$151,28,0)))))))))))))) ->  | H67: 2 | I67: =IFERROR(IF(A66="","",VLOOKUP(C67,'البيانات الاساسية'!$E$3:$F$316,2,0)),"") ->  | X67: =IF(ROW()-2<='البيانات الاساسية'!$C$8,ROW()-17,"") -> 
A68: =IF($E$7="",AG68,AF68) -> 26 | B68: =A68 -> 26 | D68: =IF($Y$8=1,VLOOKUP(B68,'الثانوية العامة'!$B$3:$AC$151,3,0),IF($Y$8=2,VLOOKUP(B68,'الثانوية العامة'!$B$3:$AC$151,4,0),IF($Y$8=3,VLOOKUP(B68,'الثانوية العامة'!$B$3:$AC$151,5,0),IF($Y$8=4,VLOOKUP(B68,'الثانوية العامة'!$B$3:$AC$151,6,0),IF($Y$8=5,VLOOKUP(B68,'الثانوية العامة'!$B$3:$AC$151,7,0),IF($Y$8=6,VLOOKUP(B68,'الثانوية العامة'!$B$3:$AC$151,8,0),IF($Y$8=7,VLOOKUP(B68,'الثانوية العامة'!$B$3:$AC$151,9,0),IF($Y$8=9,VLOOKUP(B68,'الثانوية العامة'!$B$3:$AC$151,11,0),IF($Y$8=10,VLOOKUP(B68,'الثانوية العامة'!$B$3:$AC$151,12,0),IF($Y$8=11,VLOOKUP(B68,'الثانوية العامة'!$B$3:$AC$151,13,0),IF($Y$8=12,VLOOKUP(B68,'الثانوية العامة'!$B$3:$AC$151,14,0),IF($Y$8=13,VLOOKUP(B68,'الثانوية العامة'!$B$3:$AC$151,15,0),IF($Y$8=8,VLOOKUP(B68,'الثانوية العامة'!$B$3:$AC$151,10,0)))))))))))))) ->  | E68: =IFERROR(VLOOKUP(A68,'البيانات الاساسية'!$AF$3:$AJ$69,2,0),"") ->  | F68: =IFERROR(VLOOKUP(A68,'البيانات الاساسية'!$AF$3:$AJ$69,3,0),"") ->  | G68: =IFERROR(VLOOKUP(A68,'البيانات الاساسية'!$AF$3:$AJ$69,4,0),"") ->  | H68: 1 | I68: =IFERROR(IF(A68="","",VLOOKUP(D68,'البيانات الاساسية'!$E$3:$F$316,2,0)),"") ->  | X68: =IF(ROW()-2<='البيانات الاساسية'!$C$8,ROW()-17,"") ->  | AE68: =VLOOKUP(X43,'البيانات الاساسية'!$AF$3:$AK$32,5,0) -> 0 | AF68: 26 | AG68: =IF(AE68=$U$10,AF68,"") -> 
B69: 26 | C69: =IF($Y$8=1,VLOOKUP(B69,'الثانوية العامة'!$B$3:$AC$151,16,0),IF($Y$8=2,VLOOKUP(B69,'الثانوية العامة'!$B$3:$AC$151,17,0),IF($Y$8=3,VLOOKUP(B69,'الثانوية العامة'!$B$3:$AC$151,18,0),IF($Y$8=4,VLOOKUP(B69,'الثانوية العامة'!$B$3:$AC$151,19,0),IF($Y$8=5,VLOOKUP(B69,'الثانوية العامة'!$B$3:$AC$151,20,0),IF($Y$8=6,VLOOKUP(B69,'الثانوية العامة'!$B$3:$AC$151,21,0),IF($Y$8=7,VLOOKUP(B69,'الثانوية العامة'!$B$3:$AC$151,22,0),IF($Y$8=8,VLOOKUP(B69,'الثانوية العامة'!$B$3:$AC$151,23,0),IF($Y$8=9,VLOOKUP(B69,'الثانوية العامة'!$B$3:$AC$151,24,0),IF($Y$8=10,VLOOKUP(B69,'الثانوية العامة'!$B$3:$AC$151,25,0),IF($Y$8=11,VLOOKUP(B69,'الثانوية العامة'!$B$3:$AC$151,26,0),IF($Y$8=12,VLOOKUP(B69,'الثانوية العامة'!$B$3:$AC$151,27,0),IF($Y$8=13,VLOOKUP(B69,'الثانوية العامة'!$B$3:$AC$151,28,0)))))))))))))) ->  | H69: 2 | I69: =IFERROR(IF(A68="","",VLOOKUP(C69,'البيانات الاساسية'!$E$3:$F$316,2,0)),"") ->  | X69: =IF(ROW()-2<='البيانات الاساسية'!$C$8,ROW()-17,"") -> 
A70: =IF($E$7="",AG70,AF70) -> 27 | B70: =A70 -> 27 | D70: =IF($Y$8=1,VLOOKUP(B70,'الثانوية العامة'!$B$3:$AC$151,3,0),IF($Y$8=2,VLOOKUP(B70,'الثانوية العامة'!$B$3:$AC$151,4,0),IF($Y$8=3,VLOOKUP(B70,'الثانوية العامة'!$B$3:$AC$151,5,0),IF($Y$8=4,VLOOKUP(B70,'الثانوية العامة'!$B$3:$AC$151,6,0),IF($Y$8=5,VLOOKUP(B70,'الثانوية العامة'!$B$3:$AC$151,7,0),IF($Y$8=6,VLOOKUP(B70,'الثانوية العامة'!$B$3:$AC$151,8,0),IF($Y$8=7,VLOOKUP(B70,'الثانوية العامة'!$B$3:$AC$151,9,0),IF($Y$8=9,VLOOKUP(B70,'الثانوية العامة'!$B$3:$AC$151,11,0),IF($Y$8=10,VLOOKUP(B70,'الثانوية العامة'!$B$3:$AC$151,12,0),IF($Y$8=11,VLOOKUP(B70,'الثانوية العامة'!$B$3:$AC$151,13,0),IF($Y$8=12,VLOOKUP(B70,'الثانوية العامة'!$B$3:$AC$151,14,0),IF($Y$8=13,VLOOKUP(B70,'الثانوية العامة'!$B$3:$AC$151,15,0),IF($Y$8=8,VLOOKUP(B70,'الثانوية العامة'!$B$3:$AC$151,10,0)))))))))))))) ->  | E70: =IFERROR(VLOOKUP(A70,'البيانات الاساسية'!$AF$3:$AJ$69,2,0),"") ->  | F70: =IFERROR(VLOOKUP(A70,'البيانات الاساسية'!$AF$3:$AJ$69,3,0),"") ->  | G70: =IFERROR(VLOOKUP(A70,'البيانات الاساسية'!$AF$3:$AJ$69,4,0),"") ->  | H70: 1 | I70: =IFERROR(IF(A70="","",VLOOKUP(D70,'البيانات الاساسية'!$E$3:$F$316,2,0)),"") ->  | X70: =IF(ROW()-2<='البيانات الاساسية'!$C$8,ROW()-17,"") ->  | AE70: =VLOOKUP(X44,'البيانات الاساسية'!$AF$3:$AK$32,5,0) -> 0 | AF70: 27 | AG70: =IF(AE70=$U$10,AF70,"") -> 
B71: 27 | C71: =IF($Y$8=1,VLOOKUP(B71,'الثانوية العامة'!$B$3:$AC$151,16,0),IF($Y$8=2,VLOOKUP(B71,'الثانوية العامة'!$B$3:$AC$151,17,0),IF($Y$8=3,VLOOKUP(B71,'الثانوية العامة'!$B$3:$AC$151,18,0),IF($Y$8=4,VLOOKUP(B71,'الثانوية العامة'!$B$3:$AC$151,19,0),IF($Y$8=5,VLOOKUP(B71,'الثانوية العامة'!$B$3:$AC$151,20,0),IF($Y$8=6,VLOOKUP(B71,'الثانوية العامة'!$B$3:$AC$151,21,0),IF($Y$8=7,VLOOKUP(B71,'الثانوية العامة'!$B$3:$AC$151,22,0),IF($Y$8=8,VLOOKUP(B71,'الثانوية العامة'!$B$3:$AC$151,23,0),IF($Y$8=9,VLOOKUP(B71,'الثانوية العامة'!$B$3:$AC$151,24,0),IF($Y$8=10,VLOOKUP(B71,'الثانوية العامة'!$B$3:$AC$151,25,0),IF($Y$8=11,VLOOKUP(B71,'الثانوية العامة'!$B$3:$AC$151,26,0),IF($Y$8=12,VLOOKUP(B71,'الثانوية العامة'!$B$3:$AC$151,27,0),IF($Y$8=13,VLOOKUP(B71,'الثانوية العامة'!$B$3:$AC$151,28,0)))))))))))))) ->  | H71: 2 | I71: =IFERROR(IF(A70="","",VLOOKUP(C71,'البيانات الاساسية'!$E$3:$F$316,2,0)),"") ->  | X71: =IF(ROW()-2<='البيانات الاساسية'!$C$8,ROW()-17,"") -> 
A72: =IF($E$7="",AG72,AF72) -> 28 | B72: =A72 -> 28 | D72: =IF($Y$8=1,VLOOKUP(B72,'الثانوية العامة'!$B$3:$AC$151,3,0),IF($Y$8=2,VLOOKUP(B72,'الثانوية العامة'!$B$3:$AC$151,4,0),IF($Y$8=3,VLOOKUP(B72,'الثانوية العامة'!$B$3:$AC$151,5,0),IF($Y$8=4,VLOOKUP(B72,'الثانوية العامة'!$B$3:$AC$151,6,0),IF($Y$8=5,VLOOKUP(B72,'الثانوية العامة'!$B$3:$AC$151,7,0),IF($Y$8=6,VLOOKUP(B72,'الثانوية العامة'!$B$3:$AC$151,8,0),IF($Y$8=7,VLOOKUP(B72,'الثانوية العامة'!$B$3:$AC$151,9,0),IF($Y$8=9,VLOOKUP(B72,'الثانوية العامة'!$B$3:$AC$151,11,0),IF($Y$8=10,VLOOKUP(B72,'الثانوية العامة'!$B$3:$AC$151,12,0),IF($Y$8=11,VLOOKUP(B72,'الثانوية العامة'!$B$3:$AC$151,13,0),IF($Y$8=12,VLOOKUP(B72,'الثانوية العامة'!$B$3:$AC$151,14,0),IF($Y$8=13,VLOOKUP(B72,'الثانوية العامة'!$B$3:$AC$151,15,0),IF($Y$8=8,VLOOKUP(B72,'الثانوية العامة'!$B$3:$AC$151,10,0)))))))))))))) ->  | E72: =IFERROR(VLOOKUP(A72,'البيانات الاساسية'!$AF$3:$AJ$69,2,0),"") ->  | F72: =IFERROR(VLOOKUP(A72,'البيانات الاساسية'!$AF$3:$AJ$69,3,0),"") ->  | G72: =IFERROR(VLOOKUP(A72,'البيانات الاساسية'!$AF$3:$AJ$69,4,0),"") ->  | H72: 1 | I72: =IFERROR(IF(A72="","",VLOOKUP(D72,'البيانات الاساسية'!$E$3:$F$316,2,0)),"") ->  | AE72: =VLOOKUP(X45,'البيانات الاساسية'!$AF$3:$AK$32,5,0) -> 0 | AF72: 28 | AG72: =IF(AE72=$U$10,AF72,"") -> 
B73: 28 | C73: =IF($Y$8=1,VLOOKUP(B73,'الثانوية العامة'!$B$3:$AC$151,16,0),IF($Y$8=2,VLOOKUP(B73,'الثانوية العامة'!$B$3:$AC$151,17,0),IF($Y$8=3,VLOOKUP(B73,'الثانوية العامة'!$B$3:$AC$151,18,0),IF($Y$8=4,VLOOKUP(B73,'الثانوية العامة'!$B$3:$AC$151,19,0),IF($Y$8=5,VLOOKUP(B73,'الثانوية العامة'!$B$3:$AC$151,20,0),IF($Y$8=6,VLOOKUP(B73,'الثانوية العامة'!$B$3:$AC$151,21,0),IF($Y$8=7,VLOOKUP(B73,'الثانوية العامة'!$B$3:$AC$151,22,0),IF($Y$8=8,VLOOKUP(B73,'الثانوية العامة'!$B$3:$AC$151,23,0),IF($Y$8=9,VLOOKUP(B73,'الثانوية العامة'!$B$3:$AC$151,24,0),IF($Y$8=10,VLOOKUP(B73,'الثانوية العامة'!$B$3:$AC$151,25,0),IF($Y$8=11,VLOOKUP(B73,'الثانوية العامة'!$B$3:$AC$151,26,0),IF($Y$8=12,VLOOKUP(B73,'الثانوية العامة'!$B$3:$AC$151,27,0),IF($Y$8=13,VLOOKUP(B73,'الثانوية العامة'!$B$3:$AC$151,28,0)))))))))))))) ->  | H73: 2 | I73: =IFERROR(IF(A72="","",VLOOKUP(C73,'البيانات الاساسية'!$E$3:$F$316,2,0)),"") -> 
A74: =IF($E$7="",AG74,AF74) -> 29 | B74: =A74 -> 29 | D74: =IF($Y$8=1,VLOOKUP(B74,'الثانوية العامة'!$B$3:$AC$151,3,0),IF($Y$8=2,VLOOKUP(B74,'الثانوية العامة'!$B$3:$AC$151,4,0),IF($Y$8=3,VLOOKUP(B74,'الثانوية العامة'!$B$3:$AC$151,5,0),IF($Y$8=4,VLOOKUP(B74,'الثانوية العامة'!$B$3:$AC$151,6,0),IF($Y$8=5,VLOOKUP(B74,'الثانوية العامة'!$B$3:$AC$151,7,0),IF($Y$8=6,VLOOKUP(B74,'الثانوية العامة'!$B$3:$AC$151,8,0),IF($Y$8=7,VLOOKUP(B74,'الثانوية العامة'!$B$3:$AC$151,9,0),IF($Y$8=9,VLOOKUP(B74,'الثانوية العامة'!$B$3:$AC$151,11,0),IF($Y$8=10,VLOOKUP(B74,'الثانوية العامة'!$B$3:$AC$151,12,0),IF($Y$8=11,VLOOKUP(B74,'الثانوية العامة'!$B$3:$AC$151,13,0),IF($Y$8=12,VLOOKUP(B74,'الثانوية العامة'!$B$3:$AC$151,14,0),IF($Y$8=13,VLOOKUP(B74,'الثانوية العامة'!$B$3:$AC$151,15,0),IF($Y$8=8,VLOOKUP(B74,'الثانوية العامة'!$B$3:$AC$151,10,0)))))))))))))) ->  | E74: =IFERROR(VLOOKUP(A74,'البيانات الاساسية'!$AF$3:$AJ$69,2,0),"") ->  | F74: =IFERROR(VLOOKUP(A74,'البيانات الاساسية'!$AF$3:$AJ$69,3,0),"") ->  | G74: =IFERROR(VLOOKUP(A74,'البيانات الاساسية'!$AF$3:$AJ$69,4,0),"") ->  | H74: 1 | I74: =IFERROR(IF(A74="","",VLOOKUP(D74,'البيانات الاساسية'!$E$3:$F$316,2,0)),"") ->  | AE74: =VLOOKUP(X46,'البيانات الاساسية'!$AF$3:$AK$32,5,0) -> 0 | AF74: 29 | AG74: =IF(AE74=$U$10,AF74,"") -> 
B75: 29 | C75: =IF($Y$8=1,VLOOKUP(B75,'الثانوية العامة'!$B$3:$AC$151,16,0),IF($Y$8=2,VLOOKUP(B75,'الثانوية العامة'!$B$3:$AC$151,17,0),IF($Y$8=3,VLOOKUP(B75,'الثانوية العامة'!$B$3:$AC$151,18,0),IF($Y$8=4,VLOOKUP(B75,'الثانوية العامة'!$B$3:$AC$151,19,0),IF($Y$8=5,VLOOKUP(B75,'الثانوية العامة'!$B$3:$AC$151,20,0),IF($Y$8=6,VLOOKUP(B75,'الثانوية العامة'!$B$3:$AC$151,21,0),IF($Y$8=7,VLOOKUP(B75,'الثانوية العامة'!$B$3:$AC$151,22,0),IF($Y$8=8,VLOOKUP(B75,'الثانوية العامة'!$B$3:$AC$151,23,0),IF($Y$8=9,VLOOKUP(B75,'الثانوية العامة'!$B$3:$AC$151,24,0),IF($Y$8=10,VLOOKUP(B75,'الثانوية العامة'!$B$3:$AC$151,25,0),IF($Y$8=11,VLOOKUP(B75,'الثانوية العامة'!$B$3:$AC$151,26,0),IF($Y$8=12,VLOOKUP(B75,'الثانوية العامة'!$B$3:$AC$151,27,0),IF($Y$8=13,VLOOKUP(B75,'الثانوية العامة'!$B$3:$AC$151,28,0)))))))))))))) ->  | H75: 2 | I75: =IFERROR(IF(A74="","",VLOOKUP(C75,'البيانات الاساسية'!$E$3:$F$316,2,0)),"") -> 
A76: =IF($E$7="",AG76,AF76) -> 30 | B76: =A76 -> 30 | D76: =IF($Y$8=1,VLOOKUP(B76,'الثانوية العامة'!$B$3:$AC$151,3,0),IF($Y$8=2,VLOOKUP(B76,'الثانوية العامة'!$B$3:$AC$151,4,0),IF($Y$8=3,VLOOKUP(B76,'الثانوية العامة'!$B$3:$AC$151,5,0),IF($Y$8=4,VLOOKUP(B76,'الثانوية العامة'!$B$3:$AC$151,6,0),IF($Y$8=5,VLOOKUP(B76,'الثانوية العامة'!$B$3:$AC$151,7,0),IF($Y$8=6,VLOOKUP(B76,'الثانوية العامة'!$B$3:$AC$151,8,0),IF($Y$8=7,VLOOKUP(B76,'الثانوية العامة'!$B$3:$AC$151,9,0),IF($Y$8=9,VLOOKUP(B76,'الثانوية العامة'!$B$3:$AC$151,11,0),IF($Y$8=10,VLOOKUP(B76,'الثانوية العامة'!$B$3:$AC$151,12,0),IF($Y$8=11,VLOOKUP(B76,'الثانوية العامة'!$B$3:$AC$151,13,0),IF($Y$8=12,VLOOKUP(B76,'الثانوية العامة'!$B$3:$AC$151,14,0),IF($Y$8=13,VLOOKUP(B76,'الثانوية العامة'!$B$3:$AC$151,15,0),IF($Y$8=8,VLOOKUP(B76,'الثانوية العامة'!$B$3:$AC$151,10,0)))))))))))))) ->  | E76: =IFERROR(VLOOKUP(A76,'البيانات الاساسية'!$AF$3:$AJ$69,2,0),"") ->  | F76: =IFERROR(VLOOKUP(A76,'البيانات الاساسية'!$AF$3:$AJ$69,3,0),"") ->  | G76: =IFERROR(VLOOKUP(A76,'البيانات الاساسية'!$AF$3:$AJ$69,4,0),"") ->  | H76: 1 | I76: =IFERROR(IF(A76="","",VLOOKUP(D76,'البيانات الاساسية'!$E$3:$F$316,2,0)),"") ->  | AE76: =VLOOKUP(X47,'البيانات الاساسية'!$AF$3:$AK$32,5,0) -> 0 | AF76: 30 | AG76: =IF(AE76=$U$10,AF76,"") -> 
B77: 30 | C77: =IF($Y$8=1,VLOOKUP(B77,'الثانوية العامة'!$B$3:$AC$151,16,0),IF($Y$8=2,VLOOKUP(B77,'الثانوية العامة'!$B$3:$AC$151,17,0),IF($Y$8=3,VLOOKUP(B77,'الثانوية العامة'!$B$3:$AC$151,18,0),IF($Y$8=4,VLOOKUP(B77,'الثانوية العامة'!$B$3:$AC$151,19,0),IF($Y$8=5,VLOOKUP(B77,'الثانوية العامة'!$B$3:$AC$151,20,0),IF($Y$8=6,VLOOKUP(B77,'الثانوية العامة'!$B$3:$AC$151,21,0),IF($Y$8=7,VLOOKUP(B77,'الثانوية العامة'!$B$3:$AC$151,22,0),IF($Y$8=8,VLOOKUP(B77,'الثانوية العامة'!$B$3:$AC$151,23,0),IF($Y$8=9,VLOOKUP(B77,'الثانوية العامة'!$B$3:$AC$151,24,0),IF($Y$8=10,VLOOKUP(B77,'الثانوية العامة'!$B$3:$AC$151,25,0),IF($Y$8=11,VLOOKUP(B77,'الثانوية العامة'!$B$3:$AC$151,26,0),IF($Y$8=12,VLOOKUP(B77,'الثانوية العامة'!$B$3:$AC$151,27,0),IF($Y$8=13,VLOOKUP(B77,'الثانوية العامة'!$B$3:$AC$151,28,0)))))))))))))) ->  | H77: 2 | I77: =IFERROR(IF(A76="","",VLOOKUP(C77,'البيانات الاساسية'!$E$3:$F$316,2,0)),"") -> 
A79: الاحتياطيون | K79: اللجان | O79: المراقبون
A80: م | B80: الاســــــــــــــــــــم | I80: التوقيع | K80: من | M80: الى | O80: المراقب | U80: التوقيع
A81: 1 | B81: =IF(OR($AA$7=1,$AA$7=3,$AA$7=5,$AA$7=7,$AA$7=9,$AA$7=11,$AA$7=13),SMALL('البيانات الاساسية'!$H$3:$H$316,'البيانات الاساسية'!#REF!),LARGE('البيانات الاساسية'!$H$3:$H$316,'البيانات الاساسية'!#REF!)) ->  | C81: =IFERROR(VLOOKUP(B81,'البيانات الاساسية'!$E$3:$F$316,2,0),"") ->  | E81: =IF(OR($AA$7=1,$AA$7=3,$UAA$7=5,$AA$7=7,$AA$7=9,$AA$7=11,$AA$7=13),SMALL('البيانات الاساسية'!$H$3:$H$316,'البيانات الاساسية'!E3),LARGE('البيانات الاساسية'!$H$3:$H$316,'البيانات الاساسية'!E3)) -> 1 | F81: =IFERROR(VLOOKUP(E81,'البيانات الاساسية'!$E$3:$F$316,2,0),"") -> ملاحظ 1 | K81: 1 | M81: 5 | O81: =IF(OR($AA$7=1,$AA$7=3,$AA$7=5,$AA$7=7,$AA$7=9,$AA$7=11,$AA$7=13),SMALL('البيانات الاساسية'!$J$3:$K$316,'البيانات الاساسية'!J3),LARGE('البيانات الاساسية'!$J$3:$K$316,'البيانات الاساسية'!J3)) -> 1 | P81: =IF(K81="","",VLOOKUP(O81,'البيانات الاساسية'!$J$3:$K$316,2,0)) -> مراقب 1
A82: 2 | B82: =IF(OR($AA$7=1,$AA$7=3,$AA$7=5,$AA$7=7,$AA$7=9,$AA$7=11,$AA$7=13),SMALL('البيانات الاساسية'!$H$3:$H$316,'البيانات الاساسية'!#REF!),LARGE('البيانات الاساسية'!$H$3:$H$316,'البيانات الاساسية'!#REF!)) ->  | C82: =IFERROR(VLOOKUP(B82,'البيانات الاساسية'!$E$3:$F$316,2,0),"") ->  | E82: =IF(OR($AA$7=1,$AA$7=3,$UAA$7=5,$AA$7=7,$AA$7=9,$AA$7=11,$AA$7=13),SMALL('البيانات الاساسية'!$H$3:$H$316,'البيانات الاساسية'!E4),LARGE('البيانات الاساسية'!$H$3:$H$316,'البيانات الاساسية'!E4)) -> 2 | F82: =IFERROR(VLOOKUP(E82,'البيانات الاساسية'!$E$3:$F$316,2,0),"") -> ملاحظ 2 | K82: 6 | M82: 10 | O82: =IF(OR($AA$7=1,$AA$7=3,$AA$7=5,$AA$7=7,$AA$7=9,$AA$7=11,$AA$7=13),SMALL('البيانات الاساسية'!$J$3:$K$316,'البيانات الاساسية'!J4),LARGE('البيانات الاساسية'!$J$3:$K$316,'البيانات الاساسية'!J4)) -> 2 | P82: =IF(K82="","",VLOOKUP(O82,'البيانات الاساسية'!$J$3:$K$316,2,0)) -> مراقب 2
A83: 3 | B83: =IF(OR($AA$7=1,$AA$7=3,$AA$7=5,$AA$7=7,$AA$7=9,$AA$7=11,$AA$7=13),SMALL('البيانات الاساسية'!$H$3:$H$316,'البيانات الاساسية'!#REF!),LARGE('البيانات الاساسية'!$H$3:$H$316,'البيانات الاساسية'!#REF!)) ->  | C83: =IFERROR(VLOOKUP(B83,'البيانات الاساسية'!$E$3:$F$316,2,0),"") ->  | E83: =IF(OR($AA$7=1,$AA$7=3,$UAA$7=5,$AA$7=7,$AA$7=9,$AA$7=11,$AA$7=13),SMALL('البيانات الاساسية'!$H$3:$H$316,'البيانات الاساسية'!E5),LARGE('البيانات الاساسية'!$H$3:$H$316,'البيانات الاساسية'!E5)) -> 3 | F83: =IFERROR(VLOOKUP(E83,'البيانات الاساسية'!$E$3:$F$316,2,0),"") -> ملاحظ 3 | O83: =IF(OR($AA$7=1,$AA$7=3,$AA$7=5,$AA$7=7,$AA$7=9,$AA$7=11,$AA$7=13),SMALL('البيانات الاساسية'!$J$3:$K$316,'البيانات الاساسية'!J5),LARGE('البيانات الاساسية'!$J$3:$K$316,'البيانات الاساسية'!J5)) ->  | P83: =IF(K83="","",VLOOKUP(O83,'البيانات الاساسية'!$J$3:$K$316,2,0)) -> 
A84: 4 | B84: =IF(OR($AA$7=1,$AA$7=3,$AA$7=5,$AA$7=7,$AA$7=9,$AA$7=11,$AA$7=13),SMALL('البيانات الاساسية'!$H$3:$H$316,'البيانات الاساسية'!#REF!),LARGE('البيانات الاساسية'!$H$3:$H$316,'البيانات الاساسية'!#REF!)) ->  | C84: =IFERROR(VLOOKUP(B84,'البيانات الاساسية'!$E$3:$F$316,2,0),"") ->  | E84: =IF(OR($AA$7=1,$AA$7=3,$UAA$7=5,$AA$7=7,$AA$7=9,$AA$7=11,$AA$7=13),SMALL('البيانات الاساسية'!$H$3:$H$316,'البيانات الاساسية'!E6),LARGE('البيانات الاساسية'!$H$3:$H$316,'البيانات الاساسية'!E6)) -> 4 | F84: =IFERROR(VLOOKUP(E84,'البيانات الاساسية'!$E$3:$F$316,2,0),"") -> ملاحظ 4 | O84: =IF(OR($AA$7=1,$AA$7=3,$AA$7=5,$AA$7=7,$AA$7=9,$AA$7=11,$AA$7=13),SMALL('البيانات الاساسية'!$J$3:$K$316,'البيانات الاساسية'!J6),LARGE('البيانات الاساسية'!$J$3:$K$316,'البيانات الاساسية'!J6)) ->  | P84: =IF(K84="","",VLOOKUP(O84,'البيانات الاساسية'!$J$3:$K$316,2,0)) -> 
A85: 5 | B85: =IF(OR($AA$7=1,$AA$7=3,$AA$7=5,$AA$7=7,$AA$7=9,$AA$7=11,$AA$7=13),SMALL('البيانات الاساسية'!$H$3:$H$316,'البيانات الاساسية'!#REF!),LARGE('البيانات الاساسية'!$H$3:$H$316,'البيانات الاساسية'!#REF!)) ->  | C85: =IFERROR(VLOOKUP(B85,'البيانات الاساسية'!$E$3:$F$316,2,0),"") ->  | E85: =IF(OR($AA$7=1,$AA$7=3,$UAA$7=5,$AA$7=7,$AA$7=9,$AA$7=11,$AA$7=13),SMALL('البيانات الاساسية'!$H$3:$H$316,'البيانات الاساسية'!E7),LARGE('البيانات الاساسية'!$H$3:$H$316,'البيانات الاساسية'!E7)) -> 5 | F85: =IFERROR(VLOOKUP(E85,'البيانات الاساسية'!$E$3:$F$316,2,0),"") -> ملاحظ 5 | O85: =IF(OR($AA$7=1,$AA$7=3,$AA$7=5,$AA$7=7,$AA$7=9,$AA$7=11,$AA$7=13),SMALL('البيانات الاساسية'!$J$3:$K$316,'البيانات الاساسية'!J7),LARGE('البيانات الاساسية'!$J$3:$K$316,'البيانات الاساسية'!J7)) ->  | P85: =IF(K85="","",VLOOKUP(O85,'البيانات الاساسية'!$J$3:$K$316,2,0)) -> 
A86: 6 | B86: =IF(OR($AA$7=1,$AA$7=3,$AA$7=5,$AA$7=7,$AA$7=9,$AA$7=11,$AA$7=13),SMALL('البيانات الاساسية'!$H$3:$H$316,'البيانات الاساسية'!#REF!),LARGE('البيانات الاساسية'!$H$3:$H$316,'البيانات الاساسية'!#REF!)) ->  | C86: =IFERROR(VLOOKUP(B86,'البيانات الاساسية'!$E$3:$F$316,2,0),"") ->  | E86: =IF(OR($AA$7=1,$AA$7=3,$UAA$7=5,$AA$7=7,$AA$7=9,$AA$7=11,$AA$7=13),SMALL('البيانات الاساسية'!$H$3:$H$316,'البيانات الاساسية'!E8),LARGE('البيانات الاساسية'!$H$3:$H$316,'البيانات الاساسية'!E8)) -> 6 | F86: =IFERROR(VLOOKUP(E86,'البيانات الاساسية'!$E$3:$F$316,2,0),"") -> ملاحظ 6 | O86: =IF(OR($AA$7=1,$AA$7=3,$AA$7=5,$AA$7=7,$AA$7=9,$AA$7=11,$AA$7=13),SMALL('البيانات الاساسية'!$J$3:$K$316,'البيانات الاساسية'!J8),LARGE('البيانات الاساسية'!$J$3:$K$316,'البيانات الاساسية'!J8)) ->  | P86: =IF(K86="","",VLOOKUP(O86,'البيانات الاساسية'!$J$3:$K$316,2,0)) -> 
A87: 7 | B87: =IF(OR($AA$7=1,$AA$7=3,$AA$7=5,$AA$7=7,$AA$7=9,$AA$7=11,$AA$7=13),SMALL('البيانات الاساسية'!$H$3:$H$316,'البيانات الاساسية'!#REF!),LARGE('البيانات الاساسية'!$H$3:$H$316,'البيانات الاساسية'!#REF!)) ->  | C87: =IFERROR(VLOOKUP(B87,'البيانات الاساسية'!$E$3:$F$316,2,0),"") ->  | E87: =IF(OR($AA$7=1,$AA$7=3,$UAA$7=5,$AA$7=7,$AA$7=9,$AA$7=11,$AA$7=13),SMALL('البيانات الاساسية'!$H$3:$H$316,'البيانات الاساسية'!E9),LARGE('البيانات الاساسية'!$H$3:$H$316,'البيانات الاساسية'!E9)) -> 7 | F87: =IFERROR(VLOOKUP(E87,'البيانات الاساسية'!$E$3:$F$316,2,0),"") -> ملاحظ 7 | O87: =IF(OR($AA$7=1,$AA$7=3,$AA$7=5,$AA$7=7,$AA$7=9,$AA$7=11,$AA$7=13),SMALL('البيانات الاساسية'!$J$3:$K$316,'البيانات الاساسية'!J9),LARGE('البيانات الاساسية'!$J$3:$K$316,'البيانات الاساسية'!J9)) ->  | P87: =IF(K87="","",VLOOKUP(O87,'البيانات الاساسية'!$J$3:$K$316,2,0)) -> 
A88: 8 | B88: =IF(OR($AA$7=1,$AA$7=3,$AA$7=5,$AA$7=7,$AA$7=9,$AA$7=11,$AA$7=13),SMALL('البيانات الاساسية'!$H$3:$H$316,'البيانات الاساسية'!#REF!),LARGE('البيانات الاساسية'!$H$3:$H$316,'البيانات الاساسية'!#REF!)) ->  | C88: =IFERROR(VLOOKUP(B88,'البيانات الاساسية'!$E$3:$F$316,2,0),"") ->  | E88: =IF(OR($AA$7=1,$AA$7=3,$UAA$7=5,$AA$7=7,$AA$7=9,$AA$7=11,$AA$7=13),SMALL('البيانات الاساسية'!$H$3:$H$316,'البيانات الاساسية'!E10),LARGE('البيانات الاساسية'!$H$3:$H$316,'البيانات الاساسية'!E10)) -> 8 | F88: =IFERROR(VLOOKUP(E88,'البيانات الاساسية'!$E$3:$F$316,2,0),"") -> ملاحظ 8 | O88: =IF(OR($AA$7=1,$AA$7=3,$AA$7=5,$AA$7=7,$AA$7=9,$AA$7=11,$AA$7=13),SMALL('البيانات الاساسية'!$J$3:$K$316,'البيانات الاساسية'!J10),LARGE('البيانات الاساسية'!$J$3:$K$316,'البيانات الاساسية'!J10)) ->  | P88: =IF(K88="","",VLOOKUP(O88,'البيانات الاساسية'!$J$3:$K$316,2,0)) -> 
A89: 9 | B89: =IF(OR($AA$7=1,$AA$7=3,$AA$7=5,$AA$7=7,$AA$7=9,$AA$7=11,$AA$7=13),SMALL('البيانات الاساسية'!$H$3:$H$316,'البيانات الاساسية'!#REF!),LARGE('البيانات الاساسية'!$H$3:$H$316,'البيانات الاساسية'!#REF!)) ->  | C89: =IFERROR(VLOOKUP(B89,'البيانات الاساسية'!$E$3:$F$316,2,0),"") ->  | E89: =IF(OR($AA$7=1,$AA$7=3,$UAA$7=5,$AA$7=7,$AA$7=9,$AA$7=11,$AA$7=13),SMALL('البيانات الاساسية'!$H$3:$H$316,'البيانات الاساسية'!E11),LARGE('البيانات الاساسية'!$H$3:$H$316,'البيانات الاساسية'!E11)) -> 9 | F89: =IFERROR(VLOOKUP(E89,'البيانات الاساسية'!$E$3:$F$316,2,0),"") -> ملاحظ 9 | O89: =IF(OR($AA$7=1,$AA$7=3,$AA$7=5,$AA$7=7,$AA$7=9,$AA$7=11,$AA$7=13),SMALL('البيانات الاساسية'!$J$3:$K$316,'البيانات الاساسية'!J11),LARGE('البيانات الاساسية'!$J$3:$K$316,'البيانات الاساسية'!J11)) ->  | P89: =IF(K89="","",VLOOKUP(O89,'البيانات الاساسية'!$J$3:$K$316,2,0)) -> 
A90: 10 | B90: =IF(OR($AA$7=1,$AA$7=3,$AA$7=5,$AA$7=7,$AA$7=9,$AA$7=11,$AA$7=13),SMALL('البيانات الاساسية'!$H$3:$H$316,'البيانات الاساسية'!#REF!),LARGE('البيانات الاساسية'!$H$3:$H$316,'البيانات الاساسية'!#REF!)) ->  | C90: =IFERROR(VLOOKUP(B90,'البيانات الاساسية'!$E$3:$F$316,2,0),"") ->  | E90: =IF(OR($AA$7=1,$AA$7=3,$UAA$7=5,$AA$7=7,$AA$7=9,$AA$7=11,$AA$7=13),SMALL('البيانات الاساسية'!$H$3:$H$316,'البيانات الاساسية'!E12),LARGE('البيانات الاساسية'!$H$3:$H$316,'البيانات الاساسية'!E12)) -> 10 | F90: =IFERROR(VLOOKUP(E90,'البيانات الاساسية'!$E$3:$F$316,2,0),"") -> ملاحظ 10 | O90: =IF(OR($AA$7=1,$AA$7=3,$AA$7=5,$AA$7=7,$AA$7=9,$AA$7=11,$AA$7=13),SMALL('البيانات الاساسية'!$J$3:$K$316,'البيانات الاساسية'!J12),LARGE('البيانات الاساسية'!$J$3:$K$316,'البيانات الاساسية'!J12)) ->  | P90: =IF(K90="","",VLOOKUP(O90,'البيانات الاساسية'!$J$3:$K$316,2,0)) -> 
A91: 11 | B91: =IF(OR($AA$7=1,$AA$7=3,$AA$7=5,$AA$7=7,$AA$7=9,$AA$7=11,$AA$7=13),SMALL('البيانات الاساسية'!$H$3:$H$316,'البيانات الاساسية'!#REF!),LARGE('البيانات الاساسية'!$H$3:$H$316,'البيانات الاساسية'!#REF!)) ->  | C91: =IFERROR(VLOOKUP(B91,'البيانات الاساسية'!$E$3:$F$316,2,0),"") ->  | E91: =IF(OR($AA$7=1,$AA$7=3,$UAA$7=5,$AA$7=7,$AA$7=9,$AA$7=11,$AA$7=13),SMALL('البيانات الاساسية'!$H$3:$H$316,'البيانات الاساسية'!E13),LARGE('البيانات الاساسية'!$H$3:$H$316,'البيانات الاساسية'!E13)) ->  | F91: =IFERROR(VLOOKUP(E91,'البيانات الاساسية'!$E$3:$F$316,2,0),"") ->  | O91: =IF(OR($AA$7=1,$AA$7=3,$AA$7=5,$AA$7=7,$AA$7=9,$AA$7=11,$AA$7=13),SMALL('البيانات الاساسية'!$J$3:$K$316,'البيانات الاساسية'!J13),LARGE('البيانات الاساسية'!$J$3:$K$316,'البيانات الاساسية'!J13)) ->  | P91: =IF(K91="","",VLOOKUP(O91,'البيانات الاساسية'!$J$3:$K$316,2,0)) -> 
A92: 12 | B92: =IF(OR($AA$7=1,$AA$7=3,$AA$7=5,$AA$7=7,$AA$7=9,$AA$7=11,$AA$7=13),SMALL('البيانات الاساسية'!$H$3:$H$316,'البيانات الاساسية'!#REF!),LARGE('البيانات الاساسية'!$H$3:$H$316,'البيانات الاساسية'!#REF!)) ->  | C92: =IFERROR(VLOOKUP(B92,'البيانات الاساسية'!$E$3:$F$316,2,0),"") ->  | E92: =IF(OR($AA$7=1,$AA$7=3,$UAA$7=5,$AA$7=7,$AA$7=9,$AA$7=11,$AA$7=13),SMALL('البيانات الاساسية'!$H$3:$H$316,'البيانات الاساسية'!E14),LARGE('البيانات الاساسية'!$H$3:$H$316,'البيانات الاساسية'!E14)) ->  | F92: =IFERROR(VLOOKUP(E92,'البيانات الاساسية'!$E$3:$F$316,2,0),"") ->  | O92: =IF(OR($AA$7=1,$AA$7=3,$AA$7=5,$AA$7=7,$AA$7=9,$AA$7=11,$AA$7=13),SMALL('البيانات الاساسية'!$J$3:$K$316,'البيانات الاساسية'!J14),LARGE('البيانات الاساسية'!$J$3:$K$316,'البيانات الاساسية'!J14)) ->  | P92: =IF(K92="","",VLOOKUP(O92,'البيانات الاساسية'!$J$3:$K$316,2,0)) -> 
A93: 13 | B93: =IF(OR($AA$7=1,$AA$7=3,$AA$7=5,$AA$7=7,$AA$7=9,$AA$7=11,$AA$7=13),SMALL('البيانات الاساسية'!$H$3:$H$316,'البيانات الاساسية'!#REF!),LARGE('البيانات الاساسية'!$H$3:$H$316,'البيانات الاساسية'!#REF!)) ->  | C93: =IFERROR(VLOOKUP(B93,'البيانات الاساسية'!$E$3:$F$316,2,0),"") ->  | E93: =IF(OR($AA$7=1,$AA$7=3,$UAA$7=5,$AA$7=7,$AA$7=9,$AA$7=11,$AA$7=13),SMALL('البيانات الاساسية'!$H$3:$H$316,'البيانات الاساسية'!E15),LARGE('البيانات الاساسية'!$H$3:$H$316,'البيانات الاساسية'!E15)) ->  | F93: =IFERROR(VLOOKUP(E93,'البيانات الاساسية'!$E$3:$F$316,2,0),"") ->  | O93: =IF(OR($AA$7=1,$AA$7=3,$AA$7=5,$AA$7=7,$AA$7=9,$AA$7=11,$AA$7=13),SMALL('البيانات الاساسية'!$J$3:$K$316,'البيانات الاساسية'!J15),LARGE('البيانات الاساسية'!$J$3:$K$316,'البيانات الاساسية'!J15)) ->  | P93: =IF(K93="","",VLOOKUP(O93,'البيانات الاساسية'!$J$3:$K$316,2,0)) -> 
A94: 14 | B94: =IF(OR($AA$7=1,$AA$7=3,$AA$7=5,$AA$7=7,$AA$7=9,$AA$7=11,$AA$7=13),SMALL('البيانات الاساسية'!$H$3:$H$316,'البيانات الاساسية'!#REF!),LARGE('البيانات الاساسية'!$H$3:$H$316,'البيانات الاساسية'!#REF!)) ->  | C94: =IFERROR(VLOOKUP(B94,'البيانات الاساسية'!$E$3:$F$316,2,0),"") ->  | E94: =IF(OR($U$7=1,$U$7=3,$U$7=5,$U$7=7,$U$7=9,$U$7=11,$U$7=13),SMALL('البيانات الاساسية'!$H$3:$H$316,'البيانات الاساسية'!E16),LARGE('البيانات الاساسية'!$H$3:$H$316,'البيانات الاساسية'!E16)) ->  | F94: =IFERROR(VLOOKUP(E94,'البيانات الاساسية'!$E$3:$F$316,2,0),"") -> 
A95: 15 | B95: =IF(OR($AA$7=1,$AA$7=3,$AA$7=5,$AA$7=7,$AA$7=9,$AA$7=11,$AA$7=13),SMALL('البيانات الاساسية'!$H$3:$H$316,'البيانات الاساسية'!#REF!),LARGE('البيانات الاساسية'!$H$3:$H$316,'البيانات الاساسية'!#REF!)) ->  | C95: =IFERROR(VLOOKUP(B95,'البيانات الاساسية'!$E$3:$F$316,2,0),"") ->  | E95: =IF(OR($U$7=1,$U$7=3,$U$7=5,$U$7=7,$U$7=9,$U$7=11,$U$7=13),SMALL('البيانات الاساسية'!$H$3:$H$316,'البيانات الاساسية'!E17),LARGE('البيانات الاساسية'!$H$3:$H$316,'البيانات الاساسية'!E17)) ->  | F95: =IFERROR(VLOOKUP(E95,'البيانات الاساسية'!$E$3:$F$316,2,0),"") ->  | K95: المراقب الأول | M95: المراقب الأول
A96: 16 | B96: =IF(OR($AA$7=1,$AA$7=3,$AA$7=5,$AA$7=7,$AA$7=9,$AA$7=11,$AA$7=13),SMALL('البيانات الاساسية'!$H$3:$H$316,'البيانات الاساسية'!#REF!),LARGE('البيانات الاساسية'!$H$3:$H$316,'البيانات الاساسية'!#REF!)) ->  | C96: =IFERROR(VLOOKUP(B96,'البيانات الاساسية'!$E$3:$F$316,2,0),"") ->  | E96: =IF(OR($U$7=1,$U$7=3,$U$7=5,$U$7=7,$U$7=9,$U$7=11,$U$7=13),SMALL('البيانات الاساسية'!$H$3:$H$316,'البيانات الاساسية'!E18),LARGE('البيانات الاساسية'!$H$3:$H$316,'البيانات الاساسية'!E18)) ->  | F96: =IFERROR(VLOOKUP(E96,'البيانات الاساسية'!$E$3:$F$316,2,0),"") ->  | M96: ='البيانات الاساسية'!C7 -> أ/ محمود
A97: 17 | B97: =IF(OR($AA$7=1,$AA$7=3,$AA$7=5,$AA$7=7,$AA$7=9,$AA$7=11,$AA$7=13),SMALL('البيانات الاساسية'!$H$3:$H$316,'البيانات الاساسية'!#REF!),LARGE('البيانات الاساسية'!$H$3:$H$316,'البيانات الاساسية'!#REF!)) ->  | C97: =IFERROR(VLOOKUP(B97,'البيانات الاساسية'!$E$3:$F$316,2,0),"") ->  | E97: =IF(OR($U$7=1,$U$7=3,$U$7=5,$U$7=7,$U$7=9,$U$7=11,$U$7=13),SMALL('البيانات الاساسية'!$H$3:$H$316,'البيانات الاساسية'!E19),LARGE('البيانات الاساسية'!$H$3:$H$316,'البيانات الاساسية'!E19)) ->  | F97: =IFERROR(VLOOKUP(E97,'البيانات الاساسية'!$E$3:$F$316,2,0),"") -> 
A98: 18 | B98: =IF(OR($AA$7=1,$AA$7=3,$AA$7=5,$AA$7=7,$AA$7=9,$AA$7=11,$AA$7=13),SMALL('البيانات الاساسية'!$H$3:$H$316,'البيانات الاساسية'!#REF!),LARGE('البيانات الاساسية'!$H$3:$H$316,'البيانات الاساسية'!#REF!)) ->  | C98: =IFERROR(VLOOKUP(B98,'البيانات الاساسية'!$E$3:$F$316,2,0),"") ->  | E98: =IF(OR($U$7=1,$U$7=3,$U$7=5,$U$7=7,$U$7=9,$U$7=11,$U$7=13),SMALL('البيانات الاساسية'!$H$3:$H$316,'البيانات الاساسية'!E20),LARGE('البيانات الاساسية'!$H$3:$H$316,'البيانات الاساسية'!E20)) ->  | F98: =IFERROR(VLOOKUP(E98,'البيانات الاساسية'!$E$3:$F$316,2,0),"") -> 
A99: 19 | B99: =IF(OR($AA$7=1,$AA$7=3,$AA$7=5,$AA$7=7,$AA$7=9,$AA$7=11,$AA$7=13),SMALL('البيانات الاساسية'!$H$3:$H$316,'البيانات الاساسية'!#REF!),LARGE('البيانات الاساسية'!$H$3:$H$316,'البيانات الاساسية'!#REF!)) ->  | C99: =IFERROR(VLOOKUP(B99,'البيانات الاساسية'!$E$3:$F$316,2,0),"") ->  | E99: =IF(OR($U$7=1,$U$7=3,$U$7=5,$U$7=7,$U$7=9,$U$7=11,$U$7=13),SMALL('البيانات الاساسية'!$H$3:$H$316,'البيانات الاساسية'!E21),LARGE('البيانات الاساسية'!$H$3:$H$316,'البيانات الاساسية'!E21)) ->  | F99: =IFERROR(VLOOKUP(E99,'البيانات الاساسية'!$E$3:$F$316,2,0),"") -> 
A100: 20 | B100: =IF(OR($AA$7=1,$AA$7=3,$AA$7=5,$AA$7=7,$AA$7=9,$AA$7=11,$AA$7=13),SMALL('البيانات الاساسية'!$H$3:$H$316,'البيانات الاساسية'!#REF!),LARGE('البيانات الاساسية'!$H$3:$H$316,'البيانات الاساسية'!#REF!)) ->  | C100: =IFERROR(VLOOKUP(B100,'البيانات الاساسية'!$E$3:$F$316,2,0),"") ->  | E100: =IF(OR($U$7=1,$U$7=3,$U$7=5,$U$7=7,$U$7=9,$U$7=11,$U$7=13),SMALL('البيانات الاساسية'!$H$3:$H$316,'البيانات الاساسية'!E22),LARGE('البيانات الاساسية'!$H$3:$H$316,'البيانات الاساسية'!E22)) ->  | F100: =IFERROR(VLOOKUP(E100,'البيانات الاساسية'!$E$3:$F$316,2,0),"") ->  | M100: رئيس اللجنة
A101: 21 | B101: =IF(OR($AA$7=1,$AA$7=3,$AA$7=5,$AA$7=7,$AA$7=9,$AA$7=11,$AA$7=13),SMALL('البيانات الاساسية'!$H$3:$H$316,'البيانات الاساسية'!#REF!),LARGE('البيانات الاساسية'!$H$3:$H$316,'البيانات الاساسية'!#REF!)) ->  | C101: =IFERROR(VLOOKUP(B101,'البيانات الاساسية'!$E$3:$F$316,2,0),"") ->  | E101: =IF(OR($U$7=1,$U$7=3,$U$7=5,$U$7=7,$U$7=9,$U$7=11,$U$7=13),SMALL('البيانات الاساسية'!$H$3:$H$316,'البيانات الاساسية'!E23),LARGE('البيانات الاساسية'!$H$3:$H$316,'البيانات الاساسية'!E23)) ->  | F101: =IFERROR(VLOOKUP(E101,'البيانات الاساسية'!$E$3:$F$316,2,0),"") ->  | M101: ='البيانات الاساسية'!C6 -> أ/ محمود
A102: 22 | B102: =IF(OR($AA$7=1,$AA$7=3,$AA$7=5,$AA$7=7,$AA$7=9,$AA$7=11,$AA$7=13),SMALL('البيانات الاساسية'!$H$3:$H$316,'البيانات الاساسية'!#REF!),LARGE('البيانات الاساسية'!$H$3:$H$316,'البيانات الاساسية'!#REF!)) ->  | C102: =IFERROR(VLOOKUP(B102,'البيانات الاساسية'!$E$3:$F$316,2,0),"") ->  | E102: =IF(OR($U$7=1,$U$7=3,$U$7=5,$U$7=7,$U$7=9,$U$7=11,$U$7=13),SMALL('البيانات الاساسية'!$H$3:$H$316,'البيانات الاساسية'!E24),LARGE('البيانات الاساسية'!$H$3:$H$316,'البيانات الاساسية'!E24)) ->  | F102: =IFERROR(VLOOKUP(E102,'البيانات الاساسية'!$E$3:$F$316,2,0),"") -> 
A103: 23 | B103: =IF(OR($AA$7=1,$AA$7=3,$AA$7=5,$AA$7=7,$AA$7=9,$AA$7=11,$AA$7=13),SMALL('البيانات الاساسية'!$H$3:$H$316,'البيانات الاساسية'!#REF!),LARGE('البيانات الاساسية'!$H$3:$H$316,'البيانات الاساسية'!#REF!)) ->  | C103: =IFERROR(VLOOKUP(B103,'البيانات الاساسية'!$E$3:$F$316,2,0),"") ->  | E103: =IF(OR($U$7=1,$U$7=3,$U$7=5,$U$7=7,$U$7=9,$U$7=11,$U$7=13),SMALL('البيانات الاساسية'!$H$3:$H$316,'البيانات الاساسية'!E25),LARGE('البيانات الاساسية'!$H$3:$H$316,'البيانات الاساسية'!E25)) ->  | F103: =IFERROR(VLOOKUP(E103,'البيانات الاساسية'!$E$3:$F$316,2,0),"") -> 
A104: 24 | B104: =IF(OR($AA$7=1,$AA$7=3,$AA$7=5,$AA$7=7,$AA$7=9,$AA$7=11,$AA$7=13),SMALL('البيانات الاساسية'!$H$3:$H$316,'البيانات الاساسية'!#REF!),LARGE('البيانات الاساسية'!$H$3:$H$316,'البيانات الاساسية'!#REF!)) ->  | C104: =IFERROR(VLOOKUP(B104,'البيانات الاساسية'!$E$3:$F$316,2,0),"") ->  | E104: =IF(OR($U$7=1,$U$7=3,$U$7=5,$U$7=7,$U$7=9,$U$7=11,$U$7=13),SMALL('البيانات الاساسية'!$H$3:$H$316,'البيانات الاساسية'!E26),LARGE('البيانات الاساسية'!$H$3:$H$316,'البيانات الاساسية'!E26)) ->  | F104: =IFERROR(VLOOKUP(E104,'البيانات الاساسية'!$E$3:$F$316,2,0),"") -> 
A105: 25 | B105: =IF(OR($AA$7=1,$AA$7=3,$AA$7=5,$AA$7=7,$AA$7=9,$AA$7=11,$AA$7=13),SMALL('البيانات الاساسية'!$H$3:$H$316,'البيانات الاساسية'!#REF!),LARGE('البيانات الاساسية'!$H$3:$H$316,'البيانات الاساسية'!#REF!)) ->  | C105: =IFERROR(VLOOKUP(B105,'البيانات الاساسية'!$E$3:$F$316,2,0),"") ->  | E105: =IF(OR($U$7=1,$U$7=3,$U$7=5,$U$7=7,$U$7=9,$U$7=11,$U$7=13),SMALL('البيانات الاساسية'!$H$3:$H$316,'البيانات الاساسية'!E27),LARGE('البيانات الاساسية'!$H$3:$H$316,'البيانات الاساسية'!E27)) ->  | F105: =IFERROR(VLOOKUP(E105,'البيانات الاساسية'!$E$3:$F$316,2,0),"") -> 
